Workbook

Sheet Control
A1: State Inventory Tool - Wastewater Module
A5: 1. Select those sources you wish to analyze.
B6: CH4 from industrial wastewater
B7: - Fruits and Vegetables
B8: - Red Meat
B9: - Poultry
B10: - Pulp and Paper
A12: 2. Choose a State
A13: This is very important - it selects the correct default variables for your state.
A15: 3. Fill in the variables used throughout this module:
A17: Municipal Wastewater CH4 Emissions
D18: Default Values | F18: Values Used | G18: Use the Default? (Check for Yes)
B19: Per capita 5-day Biochemical Oxygen Demand (BOD5) (kg/day) | D19: 0.09
B20: Fraction of wastewater BOD5 anaerobically digested | D20: 0.1625
B21: Emission Factor (Gg CH4/Gg BOD5) | D21: 0.6
A23: Municipal Wastewater Direct N2O Emissions
B25: Factor non-consumption nitrogen | D25: 1.75
B26: Fraction of population not on septic | D26: 0.814
B27: Direct wastewater treatment plant emissions (g N2O/person/year) | D27: 4
A30: Municipal Wastewater N2O Emissions from Biosolids
B32: Emission Factor (kg N2O-N/kg sewage N-produced) | D32: 0.005
B33: Fraction of nitrogen in protein (FracNPR) | D33: 0.16
A35: Industrial Wastewater CH4 Emissions - Fruits and Vegetables
B37: Wastewater Outflow (m3/metric ton) | D37: 5.6
B38: WW Organic Content - Chemical Oxygen Demand (COD) (g/l) | D38: 5
B39: Fraction of COD anaerobically degraded | D39: 0.05
B40: Emission factor (g CH4/g COD) | D40: 0.25
A42: Industrial Wastewater CH4 Emissions - Red Meat
B44: Red Meat - Wastewater Outflow (m3/metric ton) | D44: 7.9
B45: WW Organic Content - Chemical Oxygen Demand (COD) (g/l) | D45: 4.1
B46: Fraction of COD anaerobically degraded | D46: 0.33
B47: Emission factor (g CH4/g COD) | D47: 0.25
A49: Industrial Wastewater CH4 Emissions - Poultry
B50: Poultry - Wastewater Outflow (m3/metric ton) | D50: 16.6
B51: WW Organic Content - Chemical Oxygen Demand (COD) (g/l) | D51: 4.1
B52: Fraction of COD anaerobically degraded | D52: 0.25
B53: Emission factor (g CH4/g COD) | D53: 0.25
A55: Industrial Wastewater CH4 Emissions - Pulp and Paper
B57: Wastewater Outflow (m3/metric ton) | D57: 85
B58: WW Organic Content - Biochemical Oxygen Demand (BOD) (g/l) | D58: 0.4
B59: Fraction of BOD anaerobically degraded | D59: 0.103
B60: Emission factor (g CH4/g BOD) | D60: 0.6
A77: 4.-10. Complete sector worksheets . . .
A82: 11. View Summary Data
A88: 12. Export the results for use in the Synthesis Tool.
A94: You should not find it necessary to change many of these constants, as they do not vary by state.
A95: The default GWPs used in this module are from the IPCC Fourth Assessment Report (AR4) but can be adjusted in the cells below to reflect other sources.
B97: Constants and/or Factors | D97: Default
B99: N2O/N2 (molecular weight ratio) | D99: =44/28 -> 1.571428571
B100: C/CO2 (molecular weight ratio) | D100: =12/44 -> 0.2727272727
B101: Methane GWP* | D101: 25
B102: Nitrous Oxide GWP* | D102: 298
B103: Number of Days per Year | D103: 365
B104: Million Metric Tons / Metric Tons (MMT/MT) | D104: 1e-06
B105: Metric Tons / Kg | D105: 0.001
B106: Liters / Cubic Meter (l/m3) | D106: 1000
B107: Grams / Teragram (g/Tg) | D107: =10^-12 -> 1e-12
B108: * As of January 2014, the UNFCCC approved the use of new (AR4) GWPs for GHG Inventories.

Sheet Municipal WW, CH4
B1: ="4. "&SelectedState & " Municipal Wastewater Methane Emissions" -> 4. Select a state . . . Municipal Wastewater Methane Emissions
C3: State Population | E3: Per Capita BOD5 | G3: Days per Year | I3: Unit Conversion | K3: Emission Factor | M3: WW BOD5 anaerobically digested | O3: Emissions | Q3: CH4 GWP | S3: Unit Conversion | U3: C/CO2 | W3: Emissions | Y3: Emissions | AC3: State Population
E4: (kg/day) | G4: (days) | I4: (metric tons/kg) | K4: (Gg CH4/Gg BOD5) | M4: (percent) | O4: (metric tons CH4) | Q4: (CO2 Eq.) | S4: (MMT/MT) | W4: (MMTCE) | Y4: (MMTCO2E)
A6: 2 | B6: 1990 | D6: x | E6: =Control!$F$19 -> 0 | F6: x | G6: =Control!$D$103 -> 365 | H6: x | I6: =Control!$D$105 -> 0.001 | J6: x | K6: =Control!$F$21 -> 0 | L6: x | M6: =Control!$F$20 -> 0 | N6: = | O6: =C6*$E$6*$G$6*$M$6*$K$6*$I$6 -> 0 | P6: x | Q6: =Control!$D$101 -> 25 | R6: x | S6: =Control!$D$104 -> 1e-06 | T6: x | U6: =Control!$D$100 -> 0.2727272727 | V6: = | W6: =O6*Q$6*S$6*U$6 -> 0 | X6: = | Y6: =W6*C_CO2 -> 0 | AC6: =VLOOKUP(SelectedStateAbbr,Population!$A$6:$AF$57,$A6,FALSE) -> 
AC7: ="" -> 
A8: 3 | B8: =B6+1 -> 1991 | D8: x | E8: =Control!$F$19 -> 0 | F8: x | G8: =Control!$D$103 -> 365 | H8: x | I8: =Control!$D$105 -> 0.001 | J8: x | K8: =Control!$F$21 -> 0 | L8: x | M8: =Control!$F$20 -> 0 | N8: = | O8: =C8*$E$6*$G$6*$M$6*$K$6*$I$6 -> 0 | P8: x | Q8: =Control!$D$101 -> 25 | R8: x | S8: =Control!$D$104 -> 1e-06 | T8: x | U8: =Control!$D$100 -> 0.2727272727 | V8: = | W8: =O8*Q$6*S$6*U$6 -> 0 | X8: = | Y8: =W8*C_CO2 -> 0 | AC8: =VLOOKUP(SelectedStateAbbr,Population!$A$6:$AF$57,$A8,FALSE) -> 
AC9: ="" -> 
A10: 4 | B10: =B8+1 -> 1992 | D10: x | E10: =Control!$F$19 -> 0 | F10: x | G10: =Control!$D$103 -> 365 | H10: x | I10: =Control!$D$105 -> 0.001 | J10: x | K10: =Control!$F$21 -> 0 | L10: x | M10: =Control!$F$20 -> 0 | N10: = | O10: =C10*$E$6*$G$6*$M$6*$K$6*$I$6 -> 0 | P10: x | Q10: =Control!$D$101 -> 25 | R10: x | S10: =Control!$D$104 -> 1e-06 | T10: x | U10: =Control!$D$100 -> 0.2727272727 | V10: = | W10: =O10*Q$6*S$6*U$6 -> 0 | X10: = | Y10: =W10*C_CO2 -> 0 | AC10: =VLOOKUP(SelectedStateAbbr,Population!$A$6:$AF$57,$A10,FALSE) -> 
AC11: ="" -> 
A12: 5 | B12: =B10+1 -> 1993 | D12: x | E12: =Control!$F$19 -> 0 | F12: x | G12: =Control!$D$103 -> 365 | H12: x | I12: =Control!$D$105 -> 0.001 | J12: x | K12: =Control!$F$21 -> 0 | L12: x | M12: =Control!$F$20 -> 0 | N12: = | O12: =C12*$E$6*$G$6*$M$6*$K$6*$I$6 -> 0 | P12: x | Q12: =Control!$D$101 -> 25 | R12: x | S12: =Control!$D$104 -> 1e-06 | T12: x | U12: =Control!$D$100 -> 0.2727272727 | V12: = | W12: =O12*Q$6*S$6*U$6 -> 0 | X12: = | Y12: =W12*C_CO2 -> 0 | AC12: =VLOOKUP(SelectedStateAbbr,Population!$A$6:$AF$57,$A12,FALSE) -> 
AC13: ="" -> 
A14: 6 | B14: =B12+1 -> 1994 | D14: x | E14: =Control!$F$19 -> 0 | F14: x | G14: =Control!$D$103 -> 365 | H14: x | I14: =Control!$D$105 -> 0.001 | J14: x | K14: =Control!$F$21 -> 0 | L14: x | M14: =Control!$F$20 -> 0 | N14: = | O14: =C14*$E$6*$G$6*$M$6*$K$6*$I$6 -> 0 | P14: x | Q14: =Control!$D$101 -> 25 | R14: x | S14: =Control!$D$104 -> 1e-06 | T14: x | U14: =Control!$D$100 -> 0.2727272727 | V14: = | W14: =O14*Q$6*S$6*U$6 -> 0 | X14: = | Y14: =W14*C_CO2 -> 0 | AC14: =VLOOKUP(SelectedStateAbbr,Population!$A$6:$AF$57,$A14,FALSE) -> 
AC15: ="" -> 
A16: 7 | B16: =B14+1 -> 1995 | D16: x | E16: =Control!$F$19 -> 0 | F16: x | G16: =Control!$D$103 -> 365 | H16: x | I16: =Control!$D$105 -> 0.001 | J16: x | K16: =Control!$F$21 -> 0 | L16: x | M16: =Control!$F$20 -> 0 | N16: = | O16: =C16*$E$6*$G$6*$M$6*$K$6*$I$6 -> 0 | P16: x | Q16: =Control!$D$101 -> 25 | R16: x | S16: =Control!$D$104 -> 1e-06 | T16: x | U16: =Control!$D$100 -> 0.2727272727 | V16: = | W16: =O16*Q$6*S$6*U$6 -> 0 | X16: = | Y16: =W16*C_CO2 -> 0 | AC16: =VLOOKUP(SelectedStateAbbr,Population!$A$6:$AF$57,$A16,FALSE) -> 
AC17: ="" -> 
A18: 8 | B18: =B16+1 -> 1996 | D18: x | E18: =Control!$F$19 -> 0 | F18: x | G18: =Control!$D$103 -> 365 | H18: x | I18: =Control!$D$105 -> 0.001 | J18: x | K18: =Control!$F$21 -> 0 | L18: x | M18: =Control!$F$20 -> 0 | N18: = | O18: =C18*$E$6*$G$6*$M$6*$K$6*$I$6 -> 0 | P18: x | Q18: =Control!$D$101 -> 25 | R18: x | S18: =Control!$D$104 -> 1e-06 | T18: x | U18: =Control!$D$100 -> 0.2727272727 | V18: = | W18: =O18*Q$6*S$6*U$6 -> 0 | X18: = | Y18: =W18*C_CO2 -> 0 | AC18: =VLOOKUP(SelectedStateAbbr,Population!$A$6:$AF$57,$A18,FALSE) -> 
AC19: ="" -> 
A20: 9 | B20: =B18+1 -> 1997 | D20: x | E20: =Control!$F$19 -> 0 | F20: x | G20: =Control!$D$103 -> 365 | H20: x | I20: =Control!$D$105 -> 0.001 | J20: x | K20: =Control!$F$21 -> 0 | L20: x | M20: =Control!$F$20 -> 0 | N20: = | O20: =C20*$E$6*$G$6*$M$6*$K$6*$I$6 -> 0 | P20: x | Q20: =Control!$D$101 -> 25 | R20: x | S20: =Control!$D$104 -> 1e-06 | T20: x | U20: =Control!$D$100 -> 0.2727272727 | V20: = | W20: =O20*Q$6*S$6*U$6 -> 0 | X20: = | Y20: =W20*C_CO2 -> 0 | AC20: =VLOOKUP(SelectedStateAbbr,Population!$A$6:$AF$57,$A20,FALSE) -> 
AC21: ="" -> 
A22: 10 | B22: =B20+1 -> 1998 | D22: x | E22: =Control!$F$19 -> 0 | F22: x | G22: =Control!$D$103 -> 365 | H22: x | I22: =Control!$D$105 -> 0.001 | J22: x | K22: =Control!$F$21 -> 0 | L22: x | M22: =Control!$F$20 -> 0 | N22: = | O22: =C22*$E$6*$G$6*$M$6*$K$6*$I$6 -> 0 | P22: x | Q22: =Control!$D$101 -> 25 | R22: x | S22: =Control!$D$104 -> 1e-06 | T22: x | U22: =Control!$D$100 -> 0.2727272727 | V22: = | W22: =O22*Q$6*S$6*U$6 -> 0 | X22: = | Y22: =W22*C_CO2 -> 0 | AC22: =VLOOKUP(SelectedStateAbbr,Population!$A$6:$AF$57,$A22,FALSE) -> 
AC23: ="" -> 
A24: 11 | B24: =B22+1 -> 1999 | D24: x | E24: =Control!$F$19 -> 0 | F24: x | G24: =Control!$D$103 -> 365 | H24: x | I24: =Control!$D$105 -> 0.001 | J24: x | K24: =Control!$F$21 -> 0 | L24: x | M24: =Control!$F$20 -> 0 | N24: = | O24: =C24*$E$6*$G$6*$M$6*$K$6*$I$6 -> 0 | P24: x | Q24: =Control!$D$101 -> 25 | R24: x | S24: =Control!$D$104 -> 1e-06 | T24: x | U24: =Control!$D$100 -> 0.2727272727 | V24: = | W24: =O24*Q$6*S$6*U$6 -> 0 | X24: = | Y24: =W24*C_CO2 -> 0 | AC24: =VLOOKUP(SelectedStateAbbr,Population!$A$6:$AF$57,$A24,FALSE) -> 
AC25: ="" -> 
A26: 12 | B26: =B24+1 -> 2000 | D26: x | E26: =Control!$F$19 -> 0 | F26: x | G26: =Control!$D$103 -> 365 | H26: x | I26: =Control!$D$105 -> 0.001 | J26: x | K26: =Control!$F$21 -> 0 | L26: x | M26: =Control!$F$20 -> 0 | N26: = | O26: =C26*$E$6*$G$6*$M$6*$K$6*$I$6 -> 0 | P26: x | Q26: =Control!$D$101 -> 25 | R26: x | S26: =Control!$D$104 -> 1e-06 | T26: x | U26: =Control!$D$100 -> 0.2727272727 | V26: = | W26: =O26*Q$6*S$6*U$6 -> 0 | X26: = | Y26: =W26*C_CO2 -> 0 | AC26: =VLOOKUP(SelectedStateAbbr,Population!$A$6:$AF$57,$A26,FALSE) -> 
AC27: ="" -> 
A28: 13 | B28: =B26+1 -> 2001 | D28: x | E28: =Control!$F$19 -> 0 | F28: x | G28: =Control!$D$103 -> 365 | H28: x | I28: =Control!$D$105 -> 0.001 | J28: x | K28: =Control!$F$21 -> 0 | L28: x | M28: =Control!$F$20 -> 0 | N28: = | O28: =C28*$E$6*$G$6*$M$6*$K$6*$I$6 -> 0 | P28: x | Q28: =Control!$D$101 -> 25 | R28: x | S28: =Control!$D$104 -> 1e-06 | T28: x | U28: =Control!$D$100 -> 0.2727272727 | V28: = | W28: =O28*Q$6*S$6*U$6 -> 0 | X28: = | Y28: =W28*C_CO2 -> 0 | AC28: =VLOOKUP(SelectedStateAbbr,Population!$A$6:$AF$57,$A28,FALSE) -> 
AC29: ="" -> 
A30: 14 | B30: =B28+1 -> 2002 | D30: x | E30: =Control!$F$19 -> 0 | F30: x | G30: =Control!$D$103 -> 365 | H30: x | I30: =Control!$D$105 -> 0.001 | J30: x | K30: =Control!$F$21 -> 0 | L30: x | M30: =Control!$F$20 -> 0 | N30: = | O30: =C30*$E$6*$G$6*$M$6*$K$6*$I$6 -> 0 | P30: x | Q30: =Control!$D$101 -> 25 | R30: x | S30: =Control!$D$104 -> 1e-06 | T30: x | U30: =Control!$D$100 -> 0.2727272727 | V30: = | W30: =O30*Q$6*S$6*U$6 -> 0 | X30: = | Y30: =W30*C_CO2 -> 0 | AC30: =VLOOKUP(SelectedStateAbbr,Population!$A$6:$AF$57,$A30,FALSE) -> 
AC31: ="" -> 
A32: 15 | B32: =B30+1 -> 2003 | D32: x | E32: =Control!$F$19 -> 0 | F32: x | G32: =Control!$D$103 -> 365 | H32: x | I32: =Control!$D$105 -> 0.001 | J32: x | K32: =Control!$F$21 -> 0 | L32: x | M32: =Control!$F$20 -> 0 | N32: = | O32: =C32*$E$6*$G$6*$M$6*$K$6*$I$6 -> 0 | P32: x | Q32: =Control!$D$101 -> 25 | R32: x | S32: =Control!$D$104 -> 1e-06 | T32: x | U32: =Control!$D$100 -> 0.2727272727 | V32: = | W32: =O32*Q$6*S$6*U$6 -> 0 | X32: = | Y32: =W32*C_CO2 -> 0 | AC32: =VLOOKUP(SelectedStateAbbr,Population!$A$6:$AF$57,$A32,FALSE) -> 
AC33: ="" -> 
A34: 16 | B34: =B32+1 -> 2004 | D34: x | E34: =Control!$F$19 -> 0 | F34: x | G34: =Control!$D$103 -> 365 | H34: x | I34: =Control!$D$105 -> 0.001 | J34: x | K34: =Control!$F$21 -> 0 | L34: x | M34: =Control!$F$20 -> 0 | N34: = | O34: =C34*$E$6*$G$6*$M$6*$K$6*$I$6 -> 0 | P34: x | Q34: =Control!$D$101 -> 25 | R34: x | S34: =Control!$D$104 -> 1e-06 | T34: x | U34: =Control!$D$100 -> 0.2727272727 | V34: = | W34: =O34*Q$6*S$6*U$6 -> 0 | X34: = | Y34: =W34*C_CO2 -> 0 | AC34: =VLOOKUP(SelectedStateAbbr,Population!$A$6:$AF$57,$A34,FALSE) -> 
AC35: ="" -> 
A36: 17 | B36: =B34+1 -> 2005 | D36: x | E36: =Control!$F$19 -> 0 | F36: x | G36: =Control!$D$103 -> 365 | H36: x | I36: =Control!$D$105 -> 0.001 | J36: x | K36: =Control!$F$21 -> 0 | L36: x | M36: =Control!$F$20 -> 0 | N36: = | O36: =C36*$E$6*$G$6*$M$6*$K$6*$I$6 -> 0 | P36: x | Q36: =Control!$D$101 -> 25 | R36: x | S36: =Control!$D$104 -> 1e-06 | T36: x | U36: =Control!$D$100 -> 0.2727272727 | V36: = | W36: =O36*Q$6*S$6*U$6 -> 0 | X36: = | Y36: =W36*C_CO2 -> 0 | AC36: =VLOOKUP(SelectedStateAbbr,Population!$A$6:$AF$57,$A36,FALSE) -> 
AC37: ="" -> 
A38: 18 | B38: =B36+1 -> 2006 | D38: x | E38: =Control!$F$19 -> 0 | F38: x | G38: =Control!$D$103 -> 365 | H38: x | I38: =Control!$D$105 -> 0.001 | J38: x | K38: =Control!$F$21 -> 0 | L38: x | M38: =Control!$F$20 -> 0 | N38: = | O38: =C38*$E$6*$G$6*$M$6*$K$6*$I$6 -> 0 | P38: x | Q38: =Control!$D$101 -> 25 | R38: x | S38: =Control!$D$104 -> 1e-06 | T38: x | U38: =Control!$D$100 -> 0.2727272727 | V38: = | W38: =O38*Q$6*S$6*U$6 -> 0 | X38: = | Y38: =W38*C_CO2 -> 0 | AC38: =VLOOKUP(SelectedStateAbbr,Population!$A$6:$AF$57,$A38,FALSE) -> 
AC39: ="" -> 
A40: 19 | B40: =B38+1 -> 2007 | D40: x | E40: =Control!$F$19 -> 0 | F40: x | G40: =Control!$D$103 -> 365 | H40: x | I40: =Control!$D$105 -> 0.001 | J40: x | K40: =Control!$F$21 -> 0 | L40: x | M40: =Control!$F$20 -> 0 | N40: = | O40: =C40*$E$6*$G$6*$M$6*$K$6*$I$6 -> 0 | P40: x | Q40: =Control!$D$101 -> 25 | R40: x | S40: =Control!$D$104 -> 1e-06 | T40: x | U40: =Control!$D$100 -> 0.2727272727 | V40: = | W40: =O40*Q$6*S$6*U$6 -> 0 | X40: = | Y40: =W40*C_CO2 -> 0 | AC40: =VLOOKUP(SelectedStateAbbr,Population!$A$6:$AF$57,$A40,FALSE) -> 
AC41: ="" -> 
A42: 20 | B42: =B40+1 -> 2008 | D42: x | E42: =Control!$F$19 -> 0 | F42: x | G42: =Control!$D$103 -> 365 | H42: x | I42: =Control!$D$105 -> 0.001 | J42: x | K42: =Control!$F$21 -> 0 | L42: x | M42: =Control!$F$20 -> 0 | N42: = | O42: =C42*$E$6*$G$6*$M$6*$K$6*$I$6 -> 0 | P42: x | Q42: =Control!$D$101 -> 25 | R42: x | S42: =Control!$D$104 -> 1e-06 | T42: x | U42: =Control!$D$100 -> 0.2727272727 | V42: = | W42: =O42*Q$6*S$6*U$6 -> 0 | X42: = | Y42: =W42*C_CO2 -> 0 | AC42: =VLOOKUP(SelectedStateAbbr,Population!$A$6:$AF$57,$A42,FALSE) -> 
AC43: ="" -> 
A44: 21 | B44: =B42+1 -> 2009 | D44: x | E44: =Control!$F$19 -> 0 | F44: x | G44: =Control!$D$103 -> 365 | H44: x | I44: =Control!$D$105 -> 0.001 | J44: x | K44: =Control!$F$21 -> 0 | L44: x | M44: =Control!$F$20 -> 0 | N44: = | O44: =C44*$E$6*$G$6*$M$6*$K$6*$I$6 -> 0 | P44: x | Q44: =Control!$D$101 -> 25 | R44: x | S44: =Control!$D$104 -> 1e-06 | T44: x | U44: =Control!$D$100 -> 0.2727272727 | V44: = | W44: =O44*Q$6*S$6*U$6 -> 0 | X44: = | Y44: =W44*C_CO2 -> 0 | AC44: =VLOOKUP(SelectedStateAbbr,Population!$A$6:$AF$57,$A44,FALSE) -> 
AC45: ="" -> 
A46: 22 | B46: =B44+1 -> 2010 | D46: x | E46: =Control!$F$19 -> 0 | F46: x | G46: =Control!$D$103 -> 365 | H46: x | I46: =Control!$D$105 -> 0.001 | J46: x | K46: =Control!$F$21 -> 0 | L46: x | M46: =Control!$F$20 -> 0 | N46: = | O46: =C46*$E$6*$G$6*$M$6*$K$6*$I$6 -> 0 | P46: x | Q46: =Control!$D$101 -> 25 | R46: x | S46: =Control!$D$104 -> 1e-06 | T46: x | U46: =Control!$D$100 -> 0.2727272727 | V46: = | W46: =O46*Q$6*S$6*U$6 -> 0 | X46: = | Y46: =W46*C_CO2 -> 0 | AC46: =VLOOKUP(SelectedStateAbbr,Population!$A$6:$AF$57,$A46,FALSE) -> 
AC47: ="" -> 
A48: 23 | B48: =B46+1 -> 2011 | D48: x | E48: =Control!$F$19 -> 0 | F48: x | G48: =Control!$D$103 -> 365 | H48: x | I48: =Control!$D$105 -> 0.001 | J48: x | K48: =Control!$F$21 -> 0 | L48: x | M48: =Control!$F$20 -> 0 | N48: = | O48: =C48*$E$6*$G$6*$M$6*$K$6*$I$6 -> 0 | P48: x | Q48: =Control!$D$101 -> 25 | R48: x | S48: =Control!$D$104 -> 1e-06 | T48: x | U48: =Control!$D$100 -> 0.2727272727 | V48: = | W48: =O48*Q$6*S$6*U$6 -> 0 | X48: = | Y48: =W48*C_CO2 -> 0 | AC48: =VLOOKUP(SelectedStateAbbr,Population!$A$6:$AF$57,$A48,FALSE) -> 
AC49: ="" -> 
A50: 24 | B50: =B48+1 -> 2012 | D50: x | E50: =Control!$F$19 -> 0 | F50: x | G50: =Control!$D$103 -> 365 | H50: x | I50: =Control!$D$105 -> 0.001 | J50: x | K50: =Control!$F$21 -> 0 | L50: x | M50: =Control!$F$20 -> 0 | N50: = | O50: =C50*$E$6*$G$6*$M$6*$K$6*$I$6 -> 0 | P50: x | Q50: =Control!$D$101 -> 25 | R50: x | S50: =Control!$D$104 -> 1e-06 | T50: x | U50: =Control!$D$100 -> 0.2727272727 | V50: = | W50: =O50*Q$6*S$6*U$6 -> 0 | X50: = | Y50: =W50*C_CO2 -> 0 | AC50: =VLOOKUP(SelectedStateAbbr,Population!$A$6:$AF$57,$A50,FALSE) -> 
AC51: ="" -> 
A52: 25 | B52: =B50+1 -> 2013 | D52: x | E52: =Control!$F$19 -> 0 | F52: x | G52: =Control!$D$103 -> 365 | H52: x | I52: =Control!$D$105 -> 0.001 | J52: x | K52: =Control!$F$21 -> 0 | L52: x | M52: =Control!$F$20 -> 0 | N52: = | O52: =C52*$E$6*$G$6*$M$6*$K$6*$I$6 -> 0 | P52: x | Q52: =Control!$D$101 -> 25 | R52: x | S52: =Control!$D$104 -> 1e-06 | T52: x | U52: =Control!$D$100 -> 0.2727272727 | V52: = | W52: =O52*Q$6*S$6*U$6 -> 0 | X52: = | Y52: =W52*C_CO2 -> 0 | AC52: =VLOOKUP(SelectedStateAbbr,Population!$A$6:$AF$57,$A52,FALSE) -> 
AC53: ="" -> 
A54: 26 | B54: =B52+1 -> 2014 | D54: x | E54: =Control!$F$19 -> 0 | F54: x | G54: =Control!$D$103 -> 365 | H54: x | I54: =Control!$D$105 -> 0.001 | J54: x | K54: =Control!$F$21 -> 0 | L54: x | M54: =Control!$F$20 -> 0 | N54: = | O54: =C54*$E$6*$G$6*$M$6*$K$6*$I$6 -> 0 | P54: x | Q54: =Control!$D$101 -> 25 | R54: x | S54: =Control!$D$104 -> 1e-06 | T54: x | U54: =Control!$D$100 -> 0.2727272727 | V54: = | W54: =O54*Q$6*S$6*U$6 -> 0 | X54: = | Y54: =W54*C_CO2 -> 0 | AC54: =VLOOKUP(SelectedStateAbbr,Population!$A$6:$AF$57,$A54,FALSE) -> 
AC55: ="" -> 
A56: 27 | B56: =B54+1 -> 2015 | D56: x | E56: =Control!$F$19 -> 0 | F56: x | G56: =Control!$D$103 -> 365 | H56: x | I56: =Control!$D$105 -> 0.001 | J56: x | K56: =Control!$F$21 -> 0 | L56: x | M56: =Control!$F$20 -> 0 | N56: = | O56: =C56*$E$6*$G$6*$M$6*$K$6*$I$6 -> 0 | P56: x | Q56: =Control!$D$101 -> 25 | R56: x | S56: =Control!$D$104 -> 1e-06 | T56: x | U56: =Control!$D$100 -> 0.2727272727 | V56: = | W56: =O56*Q$6*S$6*U$6 -> 0 | X56: = | Y56: =W56*C_CO2 -> 0 | AC56: =VLOOKUP(SelectedStateAbbr,Population!$A$6:$AF$57,$A56,FALSE) -> 
AC57: ="" -> 
A58: 28 | B58: =B56+1 -> 2016 | D58: x | E58: =Control!$F$19 -> 0 | F58: x | G58: =Control!$D$103 -> 365 | H58: x | I58: =Control!$D$105 -> 0.001 | J58: x | K58: =Control!$F$21 -> 0 | L58: x | M58: =Control!$F$20 -> 0 | N58: = | O58: =C58*$E$6*$G$6*$M$6*$K$6*$I$6 -> 0 | P58: x | Q58: =Control!$D$101 -> 25 | R58: x | S58: =Control!$D$104 -> 1e-06 | T58: x | U58: =Control!$D$100 -> 0.2727272727 | V58: = | W58: =O58*Q$6*S$6*U$6 -> 0 | X58: = | Y58: =W58*C_CO2 -> 0 | AC58: =VLOOKUP(SelectedStateAbbr,Population!$A$6:$AF$57,$A58,FALSE) -> 
AC59: ="" -> 
A60: 29 | B60: =B58+1 -> 2017 | D60: x | E60: =Control!$F$19 -> 0 | F60: x | G60: =Control!$D$103 -> 365 | H60: x | I60: =Control!$D$105 -> 0.001 | J60: x | K60: =Control!$F$21 -> 0 | L60: x | M60: =Control!$F$20 -> 0 | N60: = | O60: =C60*$E$6*$G$6*$M$6*$K$6*$I$6 -> 0 | P60: x | Q60: =Control!$D$101 -> 25 | R60: x | S60: =Control!$D$104 -> 1e-06 | T60: x | U60: =Control!$D$100 -> 0.2727272727 | V60: = | W60: =O60*Q$6*S$6*U$6 -> 0 | X60: = | Y60: =W60*C_CO2 -> 0 | AC60: =VLOOKUP(SelectedStateAbbr,Population!$A$6:$AF$57,$A60,FALSE) -> 
AC61: ="" -> 
A62: 30 | B62: =B60+1 -> 2018 | D62: x | E62: =Control!$F$19 -> 0 | F62: x | G62: =Control!$D$103 -> 365 | H62: x | I62: =Control!$D$105 -> 0.001 | J62: x | K62: =Control!$F$21 -> 0 | L62: x | M62: =Control!$F$20 -> 0 | N62: = | O62: =C62*$E$6*$G$6*$M$6*$K$6*$I$6 -> 0 | P62: x | Q62: =Control!$D$101 -> 25 | R62: x | S62: =Control!$D$104 -> 1e-06 | T62: x | U62: =Control!$D$100 -> 0.2727272727 | V62: = | W62: =O62*Q$6*S$6*U$6 -> 0 | X62: = | Y62: =W62*C_CO2 -> 0 | AC62: =VLOOKUP(SelectedStateAbbr,Population!$A$6:$AF$57,$A62,FALSE) -> 
AC63: ="" -> 
A64: 31 | B64: =B62+1 -> 2019 | D64: x | E64: =Control!$F$19 -> 0 | F64: x | G64: =Control!$D$103 -> 365 | H64: x | I64: =Control!$D$105 -> 0.001 | J64: x | K64: =Control!$F$21 -> 0 | L64: x | M64: =Control!$F$20 -> 0 | N64: = | O64: =C64*$E$6*$G$6*$M$6*$K$6*$I$6 -> 0 | P64: x | Q64: =Control!$D$101 -> 25 | R64: x | S64: =Control!$D$104 -> 1e-06 | T64: x | U64: =Control!$D$100 -> 0.2727272727 | V64: = | W64: =O64*Q$6*S$6*U$6 -> 0 | X64: = | Y64: =W64*C_CO2 -> 0 | AC64: =VLOOKUP(SelectedStateAbbr,Population!$A$6:$AF$57,$A64,FALSE) -> 
AC65: ="" -> 
A66: 32 | B66: =B64+1 -> 2020 | D66: x | E66: =Control!$F$19 -> 0 | F66: x | G66: =Control!$D$103 -> 365 | H66: x | I66: =Control!$D$105 -> 0.001 | J66: x | K66: =Control!$F$21 -> 0 | L66: x | M66: =Control!$F$20 -> 0 | N66: = | O66: =C66*$E$6*$G$6*$M$6*$K$6*$I$6 -> 0 | P66: x | Q66: =Control!$D$101 -> 25 | R66: x | S66: =Control!$D$104 -> 1e-06 | T66: x | U66: =Control!$D$100 -> 0.2727272727 | V66: = | W66: =O66*Q$6*S$6*U$6 -> 0 | X66: = | Y66: =W66*C_CO2 -> 0 | AC66: =VLOOKUP(SelectedStateAbbr,Population!$A$6:$AF$57,$A66,FALSE) -> 

Sheet Municipal WW, N2O, direct
B1: ="5. "&SelectedState & " Direct Nitrous Oxide Emissions from Municipal Wastewater Treatment" -> 5. Select a state . . . Direct Nitrous Oxide Emissions from Municipal Wastewater Treatment
C3: State Population | E3: Fraction of Population not on Septic | G3: Direct N2O Emissions from Wastewater Treatment | I3: Unit Conversion | K3: Emissions | M3: N2O GWP | O3: Unit Conversion | Q3: C/CO2 | S3: Emissions | U3: Emissions
G4: (g N2O/person/year) | I4: (g/metric ton) | K4: (Metric Tons N2O) | M4: (CO2 Eq.) | O4: (MMT/MT) | S4: (MMTCE) | U4: (MMTCO2E)
A6: 2 | B6: 1990 | C6: ='Municipal WW, CH4'!C6 -> 0 | D6: x | E6: =Control!$F$26 -> 0 | F6: x | G6: =Control!$F$27 -> 0 | H6: x | I6: =0.000001 -> 1e-06 | J6: = | K6: =C6*E6*G6*I6 -> 0 | L6: x | M6: =Control!$D$102 -> 298 | N6: x | O6: =Control!$D$104 -> 1e-06 | P6: x | Q6: =Control!$D$100 -> 0.2727272727 | R6: = | S6: =K6*M6*O6*Q6 -> 0 | T6: = | U6: =S6*C_CO2 -> 0
A8: 3 | B8: =B6+1 -> 1991 | C8: ='Municipal WW, CH4'!C8 -> 0 | D8: x | E8: =Control!$F$26 -> 0 | F8: x | G8: =Control!$F$27 -> 0 | H8: x | I8: =0.000001 -> 1e-06 | J8: = | K8: =C8*E8*G8*I8 -> 0 | L8: x | M8: =Control!$D$102 -> 298 | N8: x | O8: =Control!$D$104 -> 1e-06 | P8: x | Q8: =Control!$D$100 -> 0.2727272727 | R8: = | S8: =K8*M8*O8*Q8 -> 0 | T8: = | U8: =S8*C_CO2 -> 0
A10: 4 | B10: =B8+1 -> 1992 | C10: ='Municipal WW, CH4'!C10 -> 0 | D10: x | E10: =Control!$F$26 -> 0 | F10: x | G10: =Control!$F$27 -> 0 | H10: x | I10: =0.000001 -> 1e-06 | J10: = | K10: =C10*E10*G10*I10 -> 0 | L10: x | M10: =Control!$D$102 -> 298 | N10: x | O10: =Control!$D$104 -> 1e-06 | P10: x | Q10: =Control!$D$100 -> 0.2727272727 | R10: = | S10: =K10*M10*O10*Q10 -> 0 | T10: = | U10: =S10*C_CO2 -> 0
A12: 5 | B12: =B10+1 -> 1993 | C12: ='Municipal WW, CH4'!C12 -> 0 | D12: x | E12: =Control!$F$26 -> 0 | F12: x | G12: =Control!$F$27 -> 0 | H12: x | I12: =0.000001 -> 1e-06 | J12: = | K12: =C12*E12*G12*I12 -> 0 | L12: x | M12: =Control!$D$102 -> 298 | N12: x | O12: =Control!$D$104 -> 1e-06 | P12: x | Q12: =Control!$D$100 -> 0.2727272727 | R12: = | S12: =K12*M12*O12*Q12 -> 0 | T12: = | U12: =S12*C_CO2 -> 0
A14: 6 | B14: =B12+1 -> 1994 | C14: ='Municipal WW, CH4'!C14 -> 0 | D14: x | E14: =Control!$F$26 -> 0 | F14: x | G14: =Control!$F$27 -> 0 | H14: x | I14: =0.000001 -> 1e-06 | J14: = | K14: =C14*E14*G14*I14 -> 0 | L14: x | M14: =Control!$D$102 -> 298 | N14: x | O14: =Control!$D$104 -> 1e-06 | P14: x | Q14: =Control!$D$100 -> 0.2727272727 | R14: = | S14: =K14*M14*O14*Q14 -> 0 | T14: = | U14: =S14*C_CO2 -> 0
A16: 7 | B16: =B14+1 -> 1995 | C16: ='Municipal WW, CH4'!C16 -> 0 | D16: x | E16: =Control!$F$26 -> 0 | F16: x | G16: =Control!$F$27 -> 0 | H16: x | I16: =0.000001 -> 1e-06 | J16: = | K16: =C16*E16*G16*I16 -> 0 | L16: x | M16: =Control!$D$102 -> 298 | N16: x | O16: =Control!$D$104 -> 1e-06 | P16: x | Q16: =Control!$D$100 -> 0.2727272727 | R16: = | S16: =K16*M16*O16*Q16 -> 0 | T16: = | U16: =S16*C_CO2 -> 0
A18: 8 | B18: =B16+1 -> 1996 | C18: ='Municipal WW, CH4'!C18 -> 0 | D18: x | E18: =Control!$F$26 -> 0 | F18: x | G18: =Control!$F$27 -> 0 | H18: x | I18: =0.000001 -> 1e-06 | J18: = | K18: =C18*E18*G18*I18 -> 0 | L18: x | M18: =Control!$D$102 -> 298 | N18: x | O18: =Control!$D$104 -> 1e-06 | P18: x | Q18: =Control!$D$100 -> 0.2727272727 | R18: = | S18: =K18*M18*O18*Q18 -> 0 | T18: = | U18: =S18*C_CO2 -> 0
A20: 9 | B20: =B18+1 -> 1997 | C20: ='Municipal WW, CH4'!C20 -> 0 | D20: x | E20: =Control!$F$26 -> 0 | F20: x | G20: =Control!$F$27 -> 0 | H20: x | I20: =0.000001 -> 1e-06 | J20: = | K20: =C20*E20*G20*I20 -> 0 | L20: x | M20: =Control!$D$102 -> 298 | N20: x | O20: =Control!$D$104 -> 1e-06 | P20: x | Q20: =Control!$D$100 -> 0.2727272727 | R20: = | S20: =K20*M20*O20*Q20 -> 0 | T20: = | U20: =S20*C_CO2 -> 0
A22: 10 | B22: =B20+1 -> 1998 | C22: ='Municipal WW, CH4'!C22 -> 0 | D22: x | E22: =Control!$F$26 -> 0 | F22: x | G22: =Control!$F$27 -> 0 | H22: x | I22: =0.000001 -> 1e-06 | J22: = | K22: =C22*E22*G22*I22 -> 0 | L22: x | M22: =Control!$D$102 -> 298 | N22: x | O22: =Control!$D$104 -> 1e-06 | P22: x | Q22: =Control!$D$100 -> 0.2727272727 | R22: = | S22: =K22*M22*O22*Q22 -> 0 | T22: = | U22: =S22*C_CO2 -> 0
A24: 11 | B24: =B22+1 -> 1999 | C24: ='Municipal WW, CH4'!C24 -> 0 | D24: x | E24: =Control!$F$26 -> 0 | F24: x | G24: =Control!$F$27 -> 0 | H24: x | I24: =0.000001 -> 1e-06 | J24: = | K24: =C24*E24*G24*I24 -> 0 | L24: x | M24: =Control!$D$102 -> 298 | N24: x | O24: =Control!$D$104 -> 1e-06 | P24: x | Q24: =Control!$D$100 -> 0.2727272727 | R24: = | S24: =K24*M24*O24*Q24 -> 0 | T24: = | U24: =S24*C_CO2 -> 0
A26: 12 | B26: =B24+1 -> 2000 | C26: ='Municipal WW, CH4'!C26 -> 0 | D26: x | E26: =Control!$F$26 -> 0 | F26: x | G26: =Control!$F$27 -> 0 | H26: x | I26: =0.000001 -> 1e-06 | J26: = | K26: =C26*E26*G26*I26 -> 0 | L26: x | M26: =Control!$D$102 -> 298 | N26: x | O26: =Control!$D$104 -> 1e-06 | P26: x | Q26: =Control!$D$100 -> 0.2727272727 | R26: = | S26: =K26*M26*O26*Q26 -> 0 | T26: = | U26: =S26*C_CO2 -> 0
A28: 11 | B28: =B26+1 -> 2001 | C28: ='Municipal WW, CH4'!C28 -> 0 | D28: x | E28: =Control!$F$26 -> 0 | F28: x | G28: =Control!$F$27 -> 0 | H28: x | I28: =0.000001 -> 1e-06 | J28: = | K28: =C28*E28*G28*I28 -> 0 | L28: x | M28: =Control!$D$102 -> 298 | N28: x | O28: =Control!$D$104 -> 1e-06 | P28: x | Q28: =Control!$D$100 -> 0.2727272727 | R28: = | S28: =K28*M28*O28*Q28 -> 0 | T28: = | U28: =S28*C_CO2 -> 0
A30: 12 | B30: =B28+1 -> 2002 | C30: ='Municipal WW, CH4'!C30 -> 0 | D30: x | E30: =Control!$F$26 -> 0 | F30: x | G30: =Control!$F$27 -> 0 | H30: x | I30: =0.000001 -> 1e-06 | J30: = | K30: =C30*E30*G30*I30 -> 0 | L30: x | M30: =Control!$D$102 -> 298 | N30: x | O30: =Control!$D$104 -> 1e-06 | P30: x | Q30: =Control!$D$100 -> 0.2727272727 | R30: = | S30: =K30*M30*O30*Q30 -> 0 | T30: = | U30: =S30*C_CO2 -> 0
A32: 11 | B32: =B30+1 -> 2003 | C32: ='Municipal WW, CH4'!C32 -> 0 | D32: x | E32: =Control!$F$26 -> 0 | F32: x | G32: =Control!$F$27 -> 0 | H32: x | I32: =0.000001 -> 1e-06 | J32: = | K32: =C32*E32*G32*I32 -> 0 | L32: x | M32: =Control!$D$102 -> 298 | N32: x | O32: =Control!$D$104 -> 1e-06 | P32: x | Q32: =Control!$D$100 -> 0.2727272727 | R32: = | S32: =K32*M32*O32*Q32 -> 0 | T32: = | U32: =S32*C_CO2 -> 0
A34: 12 | B34: =B32+1 -> 2004 | C34: ='Municipal WW, CH4'!C34 -> 0 | D34: x | E34: =Control!$F$26 -> 0 | F34: x | G34: =Control!$F$27 -> 0 | H34: x | I34: =0.000001 -> 1e-06 | J34: = | K34: =C34*E34*G34*I34 -> 0 | L34: x | M34: =Control!$D$102 -> 298 | N34: x | O34: =Control!$D$104 -> 1e-06 | P34: x | Q34: =Control!$D$100 -> 0.2727272727 | R34: = | S34: =K34*M34*O34*Q34 -> 0 | T34: = | U34: =S34*C_CO2 -> 0
A36: 12 | B36: =B34+1 -> 2005 | C36: ='Municipal WW, CH4'!C36 -> 0 | D36: x | E36: =Control!$F$26 -> 0 | F36: x | G36: =Control!$F$27 -> 0 | H36: x | I36: =0.000001 -> 1e-06 | J36: = | K36: =C36*E36*G36*I36 -> 0 | L36: x | M36: =Control!$D$102 -> 298 | N36: x | O36: =Control!$D$104 -> 1e-06 | P36: x | Q36: =Control!$D$100 -> 0.2727272727 | R36: = | S36: =K36*M36*O36*Q36 -> 0 | T36: = | U36: =S36*C_CO2 -> 0
A38: 12 | B38: =B36+1 -> 2006 | C38: ='Municipal WW, CH4'!C38 -> 0 | D38: x | E38: =Control!$F$26 -> 0 | F38: x | G38: =Control!$F$27 -> 0 | H38: x | I38: =0.000001 -> 1e-06 | J38: = | K38: =C38*E38*G38*I38 -> 0 | L38: x | M38: =Control!$D$102 -> 298 | N38: x | O38: =Control!$D$104 -> 1e-06 | P38: x | Q38: =Control!$D$100 -> 0.2727272727 | R38: = | S38: =K38*M38*O38*Q38 -> 0 | T38: = | U38: =S38*C_CO2 -> 0
A40: 12 | B40: =B38+1 -> 2007 | C40: ='Municipal WW, CH4'!C40 -> 0 | D40: x | E40: =Control!$F$26 -> 0 | F40: x | G40: =Control!$F$27 -> 0 | H40: x | I40: =0.000001 -> 1e-06 | J40: = | K40: =C40*E40*G40*I40 -> 0 | L40: x | M40: =Control!$D$102 -> 298 | N40: x | O40: =Control!$D$104 -> 1e-06 | P40: x | Q40: =Control!$D$100 -> 0.2727272727 | R40: = | S40: =K40*M40*O40*Q40 -> 0 | T40: = | U40: =S40*C_CO2 -> 0
A42: 12 | B42: =B40+1 -> 2008 | C42: ='Municipal WW, CH4'!C42 -> 0 | D42: x | E42: =Control!$F$26 -> 0 | F42: x | G42: =Control!$F$27 -> 0 | H42: x | I42: =0.000001 -> 1e-06 | J42: = | K42: =C42*E42*G42*I42 -> 0 | L42: x | M42: =Control!$D$102 -> 298 | N42: x | O42: =Control!$D$104 -> 1e-06 | P42: x | Q42: =Control!$D$100 -> 0.2727272727 | R42: = | S42: =K42*M42*O42*Q42 -> 0 | T42: = | U42: =S42*C_CO2 -> 0
A44: 12 | B44: =B42+1 -> 2009 | C44: ='Municipal WW, CH4'!C44 -> 0 | D44: x | E44: =Control!$F$26 -> 0 | F44: x | G44: =Control!$F$27 -> 0 | H44: x | I44: =0.000001 -> 1e-06 | J44: = | K44: =C44*E44*G44*I44 -> 0 | L44: x | M44: =Control!$D$102 -> 298 | N44: x | O44: =Control!$D$104 -> 1e-06 | P44: x | Q44: =Control!$D$100 -> 0.2727272727 | R44: = | S44: =K44*M44*O44*Q44 -> 0 | T44: = | U44: =S44*C_CO2 -> 0
A46: 12 | B46: =B44+1 -> 2010 | C46: ='Municipal WW, CH4'!C46 -> 0 | D46: x | E46: =Control!$F$26 -> 0 | F46: x | G46: =Control!$F$27 -> 0 | H46: x | I46: =0.000001 -> 1e-06 | J46: = | K46: =C46*E46*G46*I46 -> 0 | L46: x | M46: =Control!$D$102 -> 298 | N46: x | O46: =Control!$D$104 -> 1e-06 | P46: x | Q46: =Control!$D$100 -> 0.2727272727 | R46: = | S46: =K46*M46*O46*Q46 -> 0 | T46: = | U46: =S46*C_CO2 -> 0
A48: 12 | B48: =B46+1 -> 2011 | C48: ='Municipal WW, CH4'!C48 -> 0 | D48: x | E48: =Control!$F$26 -> 0 | F48: x | G48: =Control!$F$27 -> 0 | H48: x | I48: =0.000001 -> 1e-06 | J48: = | K48: =C48*E48*G48*I48 -> 0 | L48: x | M48: =Control!$D$102 -> 298 | N48: x | O48: =Control!$D$104 -> 1e-06 | P48: x | Q48: =Control!$D$100 -> 0.2727272727 | R48: = | S48: =K48*M48*O48*Q48 -> 0 | T48: = | U48: =S48*C_CO2 -> 0
A50: 12 | B50: =B48+1 -> 2012 | C50: ='Municipal WW, CH4'!C50 -> 0 | D50: x | E50: =Control!$F$26 -> 0 | F50: x | G50: =Control!$F$27 -> 0 | H50: x | I50: =0.000001 -> 1e-06 | J50: = | K50: =C50*E50*G50*I50 -> 0 | L50: x | M50: =Control!$D$102 -> 298 | N50: x | O50: =Control!$D$104 -> 1e-06 | P50: x | Q50: =Control!$D$100 -> 0.2727272727 | R50: = | S50: =K50*M50*O50*Q50 -> 0 | T50: = | U50: =S50*C_CO2 -> 0
A52: 12 | B52: =B50+1 -> 2013 | C52: ='Municipal WW, CH4'!C52 -> 0 | D52: x | E52: =Control!$F$26 -> 0 | F52: x | G52: =Control!$F$27 -> 0 | H52: x | I52: =0.000001 -> 1e-06 | J52: = | K52: =C52*E52*G52*I52 -> 0 | L52: x | M52: =Control!$D$102 -> 298 | N52: x | O52: =Control!$D$104 -> 1e-06 | P52: x | Q52: =Control!$D$100 -> 0.2727272727 | R52: = | S52: =K52*M52*O52*Q52 -> 0 | T52: = | U52: =S52*C_CO2 -> 0
A54: 12 | B54: =B52+1 -> 2014 | C54: ='Municipal WW, CH4'!C54 -> 0 | D54: x | E54: =Control!$F$26 -> 0 | F54: x | G54: =Control!$F$27 -> 0 | H54: x | I54: =0.000001 -> 1e-06 | J54: = | K54: =C54*E54*G54*I54 -> 0 | L54: x | M54: =Control!$D$102 -> 298 | N54: x | O54: =Control!$D$104 -> 1e-06 | P54: x | Q54: =Control!$D$100 -> 0.2727272727 | R54: = | S54: =K54*M54*O54*Q54 -> 0 | T54: = | U54: =S54*C_CO2 -> 0
A56: 12 | B56: =B54+1 -> 2015 | C56: ='Municipal WW, CH4'!C56 -> 0 | D56: x | E56: =Control!$F$26 -> 0 | F56: x | G56: =Control!$F$27 -> 0 | H56: x | I56: =0.000001 -> 1e-06 | J56: = | K56: =C56*E56*G56*I56 -> 0 | L56: x | M56: =Control!$D$102 -> 298 | N56: x | O56: =Control!$D$104 -> 1e-06 | P56: x | Q56: =Control!$D$100 -> 0.2727272727 | R56: = | S56: =K56*M56*O56*Q56 -> 0 | T56: = | U56: =S56*C_CO2 -> 0
A58: 12 | B58: =B56+1 -> 2016 | C58: ='Municipal WW, CH4'!C58 -> 0 | D58: x | E58: =Control!$F$26 -> 0 | F58: x | G58: =Control!$F$27 -> 0 | H58: x | I58: =0.000001 -> 1e-06 | J58: = | K58: =C58*E58*G58*I58 -> 0 | L58: x | M58: =Control!$D$102 -> 298 | N58: x | O58: =Control!$D$104 -> 1e-06 | P58: x | Q58: =Control!$D$100 -> 0.2727272727 | R58: = | S58: =K58*M58*O58*Q58 -> 0 | T58: = | U58: =S58*C_CO2 -> 0
A60: 12 | B60: =B58+1 -> 2017 | C60: ='Municipal WW, CH4'!C60 -> 0 | D60: x | E60: =Control!$F$26 -> 0 | F60: x | G60: =Control!$F$27 -> 0 | H60: x | I60: =0.000001 -> 1e-06 | J60: = | K60: =C60*E60*G60*I60 -> 0 | L60: x | M60: =Control!$D$102 -> 298 | N60: x | O60: =Control!$D$104 -> 1e-06 | P60: x | Q60: =Control!$D$100 -> 0.2727272727 | R60: = | S60: =K60*M60*O60*Q60 -> 0 | T60: = | U60: =S60*C_CO2 -> 0
A62: 12 | B62: =B60+1 -> 2018 | C62: ='Municipal WW, CH4'!C62 -> 0 | D62: x | E62: =Control!$F$26 -> 0 | F62: x | G62: =Control!$F$27 -> 0 | H62: x | I62: =0.000001 -> 1e-06 | J62: = | K62: =C62*E62*G62*I62 -> 0 | L62: x | M62: =Control!$D$102 -> 298 | N62: x | O62: =Control!$D$104 -> 1e-06 | P62: x | Q62: =Control!$D$100 -> 0.2727272727 | R62: = | S62: =K62*M62*O62*Q62 -> 0 | T62: = | U62: =S62*C_CO2 -> 0
A64: 12 | B64: =B62+1 -> 2019 | C64: ='Municipal WW, CH4'!C64 -> 0 | D64: x | E64: =Control!$F$26 -> 0 | F64: x | G64: =Control!$F$27 -> 0 | H64: x | I64: =0.000001 -> 1e-06 | J64: = | K64: =C64*E64*G64*I64 -> 0 | L64: x | M64: =Control!$D$102 -> 298 | N64: x | O64: =Control!$D$104 -> 1e-06 | P64: x | Q64: =Control!$D$100 -> 0.2727272727 | R64: = | S64: =K64*M64*O64*Q64 -> 0 | T64: = | U64: =S64*C_CO2 -> 0
A66: 12 | B66: =B64+1 -> 2020 | C66: ='Municipal WW, CH4'!C66 -> 0 | D66: x | E66: =Control!$F$26 -> 0 | F66: x | G66: =Control!$F$27 -> 0 | H66: x | I66: =0.000001 -> 1e-06 | J66: = | K66: =C66*E66*G66*I66 -> 0 | L66: x | M66: =Control!$D$102 -> 298 | N66: x | O66: =Control!$D$104 -> 1e-06 | P66: x | Q66: =Control!$D$100 -> 0.2727272727 | R66: = | S66: =K66*M66*O66*Q66 -> 0 | T66: = | U66: =S66*C_CO2 -> 0

Sheet Municipal WW, N2O, effluent
B1: ="6. "&SelectedState & " Municipal Wastewater Nitrous Oxide Emissions (formerly Human Sewage)" -> 6. Select a state . . . Municipal Wastewater Nitrous Oxide Emissions (formerly Human Sewage)
C3: State Population | E3: Protein | G3: FracNPR | I3: Fraction Non-Consumption N | K3: Unit Conversion | M3: N in Domestic Wastewater | O3: Direct N Emissions from Domestic Wastewater | Q3: Biosolids Available N | S3: Percentage of Biosolids Used as Fertilizer | U3: Emission Factor | W3: N2O/N2 | Y3: Emissions | AA3: N2O GWP | AC3: Unit Conversion | AE3: C/CO2 | AG3: Emissions from Biosolids | AI3: Direct Emissions | AK3: Total Emissions | AM3: Emissions | AS3: Protein
E4: (kg/ person/ year) | G4: (kg N/kg protein) | K4: (metric tons/kg) | M4: (metric tons) | O4: (metric tons) | Q4: (metric tons) | U4: (kg N2O-N/ kg sewage N-produced) | Y4: (metric tons N2O) | AA4: (CO2 Eq.) | AC4: (MMT/MT) | AG4: (MMTCE) | AI4: (MMTCE) | AK4: (MMTCE) | AM4: (MMTCO2E) | AS4: (Kg/person/year)
A6: 2 | B6: 1990 | C6: ='Municipal WW, CH4'!C6 -> 0 | D6: x | F6: x | G6: =Control!$F$33 -> 0 | H6: x | I6: =Control!$F$25 -> 0 | J6: x | K6: =Control!$D$105 -> 0.001 | L6: = | M6: =C6*E6*G6*I6*K6 -> 0 | N6: - | O6: ='Municipal WW, N2O, direct'!K6*(1/Control!$D$99) -> 0 | P6: = | Q6: =M6-O6 -> 0 | R6: x (1 - | T6: ) x | U6: =Control!$F$32 -> 0 | V6: x | W6: =Control!$D$99 -> 1.571428571 | X6: = | Y6: =Q6*(1-S6)*U6*W6 -> 0 | Z6: x | AA6: =Control!$D$102 -> 298 | AB6: x | AC6: =Control!$D$104 -> 1e-06 | AD6: x | AE6: =Control!$D$100 -> 0.2727272727 | AF6: = | AG6: =Y6*AA$6*AC$6*AE$6 -> 0 | AH6: + | AI6: ='Municipal WW, N2O, direct'!S6 -> 0 | AJ6: = | AK6: =AG6+AI6 -> 0 | AL6: = | AM6: =AK6*C_CO2 -> 0 | AS6: 43.0995
A8: 3 | B8: =B6+1 -> 1991 | C8: ='Municipal WW, CH4'!C8 -> 0 | D8: x | F8: x | G8: =Control!$F$33 -> 0 | H8: x | I8: =Control!$F$25 -> 0 | J8: x | K8: =Control!$D$105 -> 0.001 | L8: = | M8: =C8*E8*G8*I8*K8 -> 0 | N8: - | O8: ='Municipal WW, N2O, direct'!K8*(1/Control!$D$99) -> 0 | P8: = | Q8: =M8-O8 -> 0 | R8: x (1 - | T8: ) x | U8: =Control!$F$32 -> 0 | V8: x | W8: =Control!$D$99 -> 1.571428571 | X8: = | Y8: =Q8*(1-S8)*U8*W8 -> 0 | Z8: x | AA8: =Control!$D$102 -> 298 | AB8: x | AC8: =Control!$D$104 -> 1e-06 | AD8: x | AE8: =Control!$D$100 -> 0.2727272727 | AF8: = | AG8: =Y8*AA$6*AC$6*AE$6 -> 0 | AH8: + | AI8: ='Municipal WW, N2O, direct'!S8 -> 0 | AJ8: = | AK8: =AG8+AI8 -> 0 | AL8: = | AM8: =AK8*C_CO2 -> 0 | AS8: 43.46475
A10: 4 | B10: =B8+1 -> 1992 | C10: ='Municipal WW, CH4'!C10 -> 0 | D10: x | F10: x | G10: =Control!$F$33 -> 0 | H10: x | I10: =Control!$F$25 -> 0 | J10: x | K10: =Control!$D$105 -> 0.001 | L10: = | M10: =C10*E10*G10*I10*K10 -> 0 | N10: - | O10: ='Municipal WW, N2O, direct'!K10*(1/Control!$D$99) -> 0 | P10: = | Q10: =M10-O10 -> 0 | R10: x (1 - | T10: ) x | U10: =Control!$F$32 -> 0 | V10: x | W10: =Control!$D$99 -> 1.571428571 | X10: = | Y10: =Q10*(1-S10)*U10*W10 -> 0 | Z10: x | AA10: =Control!$D$102 -> 298 | AB10: x | AC10: =Control!$D$104 -> 1e-06 | AD10: x | AE10: =Control!$D$100 -> 0.2727272727 | AF10: = | AG10: =Y10*AA$6*AC$6*AE$6 -> 0 | AH10: + | AI10: ='Municipal WW, N2O, direct'!S10 -> 0 | AJ10: = | AK10: =AG10+AI10 -> 0 | AL10: = | AM10: =AK10*C_CO2 -> 0 | AS10: 43.83
A12: 5 | B12: =B10+1 -> 1993 | C12: ='Municipal WW, CH4'!C12 -> 0 | D12: x | F12: x | G12: =Control!$F$33 -> 0 | H12: x | I12: =Control!$F$25 -> 0 | J12: x | K12: =Control!$D$105 -> 0.001 | L12: = | M12: =C12*E12*G12*I12*K12 -> 0 | N12: - | O12: ='Municipal WW, N2O, direct'!K12*(1/Control!$D$99) -> 0 | P12: = | Q12: =M12-O12 -> 0 | R12: x (1 - | T12: ) x | U12: =Control!$F$32 -> 0 | V12: x | W12: =Control!$D$99 -> 1.571428571 | X12: = | Y12: =Q12*(1-S12)*U12*W12 -> 0 | Z12: x | AA12: =Control!$D$102 -> 298 | AB12: x | AC12: =Control!$D$104 -> 1e-06 | AD12: x | AE12: =Control!$D$100 -> 0.2727272727 | AF12: = | AG12: =Y12*AA$6*AC$6*AE$6 -> 0 | AH12: + | AI12: ='Municipal WW, N2O, direct'!S12 -> 0 | AJ12: = | AK12: =AG12+AI12 -> 0 | AL12: = | AM12: =AK12*C_CO2 -> 0 | AS12: 43.83
A14: 6 | B14: =B12+1 -> 1994 | C14: ='Municipal WW, CH4'!C14 -> 0 | D14: x | F14: x | G14: =Control!$F$33 -> 0 | H14: x | I14: =Control!$F$25 -> 0 | J14: x | K14: =Control!$D$105 -> 0.001 | L14: = | M14: =C14*E14*G14*I14*K14 -> 0 | N14: - | O14: ='Municipal WW, N2O, direct'!K14*(1/Control!$D$99) -> 0 | P14: = | Q14: =M14-O14 -> 0 | R14: x (1 - | T14: ) x | U14: =Control!$F$32 -> 0 | V14: x | W14: =Control!$D$99 -> 1.571428571 | X14: = | Y14: =Q14*(1-S14)*U14*W14 -> 0 | Z14: x | AA14: =Control!$D$102 -> 298 | AB14: x | AC14: =Control!$D$104 -> 1e-06 | AD14: x | AE14: =Control!$D$100 -> 0.2727272727 | AF14: = | AG14: =Y14*AA$6*AC$6*AE$6 -> 0 | AH14: + | AI14: ='Municipal WW, N2O, direct'!S14 -> 0 | AJ14: = | AK14: =AG14+AI14 -> 0 | AL14: = | AM14: =AK14*C_CO2 -> 0 | AS14: 44.5605
A16: 7 | B16: =B14+1 -> 1995 | C16: ='Municipal WW, CH4'!C16 -> 0 | D16: x | F16: x | G16: =Control!$F$33 -> 0 | H16: x | I16: =Control!$F$25 -> 0 | J16: x | K16: =Control!$D$105 -> 0.001 | L16: = | M16: =C16*E16*G16*I16*K16 -> 0 | N16: - | O16: ='Municipal WW, N2O, direct'!K16*(1/Control!$D$99) -> 0 | P16: = | Q16: =M16-O16 -> 0 | R16: x (1 - | T16: ) x | U16: =Control!$F$32 -> 0 | V16: x | W16: =Control!$D$99 -> 1.571428571 | X16: = | Y16: =Q16*(1-S16)*U16*W16 -> 0 | Z16: x | AA16: =Control!$D$102 -> 298 | AB16: x | AC16: =Control!$D$104 -> 1e-06 | AD16: x | AE16: =Control!$D$100 -> 0.2727272727 | AF16: = | AG16: =Y16*AA$6*AC$6*AE$6 -> 0 | AH16: + | AI16: ='Municipal WW, N2O, direct'!S16 -> 0 | AJ16: = | AK16: =AG16+AI16 -> 0 | AL16: = | AM16: =AK16*C_CO2 -> 0 | AS16: 44.19525
A18: 8 | B18: =B16+1 -> 1996 | C18: ='Municipal WW, CH4'!C18 -> 0 | D18: x | F18: x | G18: =Control!$F$33 -> 0 | H18: x | I18: =Control!$F$25 -> 0 | J18: x | K18: =Control!$D$105 -> 0.001 | L18: = | M18: =C18*E18*G18*I18*K18 -> 0 | N18: - | O18: ='Municipal WW, N2O, direct'!K18*(1/Control!$D$99) -> 0 | P18: = | Q18: =M18-O18 -> 0 | R18: x (1 - | T18: ) x | U18: =Control!$F$32 -> 0 | V18: x | W18: =Control!$D$99 -> 1.571428571 | X18: = | Y18: =Q18*(1-S18)*U18*W18 -> 0 | Z18: x | AA18: =Control!$D$102 -> 298 | AB18: x | AC18: =Control!$D$104 -> 1e-06 | AD18: x | AE18: =Control!$D$100 -> 0.2727272727 | AF18: = | AG18: =Y18*AA$6*AC$6*AE$6 -> 0 | AH18: + | AI18: ='Municipal WW, N2O, direct'!S18 -> 0 | AJ18: = | AK18: =AG18+AI18 -> 0 | AL18: = | AM18: =AK18*C_CO2 -> 0 | AS18: 44.5605
A20: 9 | B20: =B18+1 -> 1997 | C20: ='Municipal WW, CH4'!C20 -> 0 | D20: x | F20: x | G20: =Control!$F$33 -> 0 | H20: x | I20: =Control!$F$25 -> 0 | J20: x | K20: =Control!$D$105 -> 0.001 | L20: = | M20: =C20*E20*G20*I20*K20 -> 0 | N20: - | O20: ='Municipal WW, N2O, direct'!K20*(1/Control!$D$99) -> 0 | P20: = | Q20: =M20-O20 -> 0 | R20: x (1 - | T20: ) x | U20: =Control!$F$32 -> 0 | V20: x | W20: =Control!$D$99 -> 1.571428571 | X20: = | Y20: =Q20*U20*W20 -> 0 | Z20: x | AA20: =Control!$D$102 -> 298 | AB20: x | AC20: =Control!$D$104 -> 1e-06 | AD20: x | AE20: =Control!$D$100 -> 0.2727272727 | AF20: = | AG20: =Y20*AA$6*AC$6*AE$6 -> 0 | AH20: + | AI20: ='Municipal WW, N2O, direct'!S20 -> 0 | AJ20: = | AK20: =AG20+AI20 -> 0 | AL20: = | AM20: =AK20*C_CO2 -> 0 | AS20: 44.19525
A22: 10 | B22: =B20+1 -> 1998 | C22: ='Municipal WW, CH4'!C22 -> 0 | D22: x | F22: x | G22: =Control!$F$33 -> 0 | H22: x | I22: =Control!$F$25 -> 0 | J22: x | K22: =Control!$D$105 -> 0.001 | L22: = | M22: =C22*E22*G22*I22*K22 -> 0 | N22: - | O22: ='Municipal WW, N2O, direct'!K22*(1/Control!$D$99) -> 0 | P22: = | Q22: =M22-O22 -> 0 | R22: x (1 - | T22: ) x | U22: =Control!$F$32 -> 0 | V22: x | W22: =Control!$D$99 -> 1.571428571 | X22: = | Y22: =Q22*(1-S22)*U22*W22 -> 0 | Z22: x | AA22: =Control!$D$102 -> 298 | AB22: x | AC22: =Control!$D$104 -> 1e-06 | AD22: x | AE22: =Control!$D$100 -> 0.2727272727 | AF22: = | AG22: =Y22*AA$6*AC$6*AE$6 -> 0 | AH22: + | AI22: ='Municipal WW, N2O, direct'!S22 -> 0 | AJ22: = | AK22: =AG22+AI22 -> 0 | AL22: = | AM22: =AK22*C_CO2 -> 0 | AS22: 44.5605
A24: 11 | B24: =B22+1 -> 1999 | C24: ='Municipal WW, CH4'!C24 -> 0 | D24: x | F24: x | G24: =Control!$F$33 -> 0 | H24: x | I24: =Control!$F$25 -> 0 | J24: x | K24: =Control!$D$105 -> 0.001 | L24: = | M24: =C24*E24*G24*I24*K24 -> 0 | N24: - | O24: ='Municipal WW, N2O, direct'!K24*(1/Control!$D$99) -> 0 | P24: = | Q24: =M24-O24 -> 0 | R24: x (1 - | T24: ) x | U24: =Control!$F$32 -> 0 | V24: x | W24: =Control!$D$99 -> 1.571428571 | X24: = | Y24: =Q24*(1-S24)*U24*W24 -> 0 | Z24: x | AA24: =Control!$D$102 -> 298 | AB24: x | AC24: =Control!$D$104 -> 1e-06 | AD24: x | AE24: =Control!$D$100 -> 0.2727272727 | AF24: = | AG24: =Y24*AA$6*AC$6*AE$6 -> 0 | AH24: + | AI24: ='Municipal WW, N2O, direct'!S24 -> 0 | AJ24: = | AK24: =AG24+AI24 -> 0 | AL24: = | AM24: =AK24*C_CO2 -> 0 | AS24: 45.291
A26: 12 | B26: =B24+1 -> 2000 | C26: ='Municipal WW, CH4'!C26 -> 0 | D26: x | F26: x | G26: =Control!$F$33 -> 0 | H26: x | I26: =Control!$F$25 -> 0 | J26: x | K26: =Control!$D$105 -> 0.001 | L26: = | M26: =C26*E26*G26*I26*K26 -> 0 | N26: - | O26: ='Municipal WW, N2O, direct'!K26*(1/Control!$D$99) -> 0 | P26: = | Q26: =M26-O26 -> 0 | R26: x (1 - | T26: ) x | U26: =Control!$F$32 -> 0 | V26: x | W26: =Control!$D$99 -> 1.571428571 | X26: = | Y26: =Q26*(1-S26)*U26*W26 -> 0 | Z26: x | AA26: =Control!$D$102 -> 298 | AB26: x | AC26: =Control!$D$104 -> 1e-06 | AD26: x | AE26: =Control!$D$100 -> 0.2727272727 | AF26: = | AG26: =Y26*AA$6*AC$6*AE$6 -> 0 | AH26: + | AI26: ='Municipal WW, N2O, direct'!S26 -> 0 | AJ26: = | AK26: =AG26+AI26 -> 0 | AL26: = | AM26: =AK26*C_CO2 -> 0 | AS26: 45.291
A28: 12 | B28: =B26+1 -> 2001 | C28: ='Municipal WW, CH4'!C28 -> 0 | D28: x | F28: x | G28: =Control!$F$33 -> 0 | H28: x | I28: =Control!$F$25 -> 0 | J28: x | K28: =Control!$D$105 -> 0.001 | L28: = | M28: =C28*E28*G28*I28*K28 -> 0 | N28: - | O28: ='Municipal WW, N2O, direct'!K28*(1/Control!$D$99) -> 0 | P28: = | Q28: =M28-O28 -> 0 | R28: x (1 - | T28: ) x | U28: =Control!$F$32 -> 0 | V28: x | W28: =Control!$D$99 -> 1.571428571 | X28: = | Y28: =Q28*(1-S28)*U28*W28 -> 0 | Z28: x | AA28: =Control!$D$102 -> 298 | AB28: x | AC28: =Control!$D$104 -> 1e-06 | AD28: x | AE28: =Control!$D$100 -> 0.2727272727 | AF28: = | AG28: =Y28*AA$6*AC$6*AE$6 -> 0 | AH28: + | AI28: ='Municipal WW, N2O, direct'!S28 -> 0 | AJ28: = | AK28: =AG28+AI28 -> 0 | AL28: = | AM28: =AK28*C_CO2 -> 0 | AS28: 44.5605
A30: 12 | B30: =B28+1 -> 2002 | C30: ='Municipal WW, CH4'!C30 -> 0 | D30: x | F30: x | G30: =Control!$F$33 -> 0 | H30: x | I30: =Control!$F$25 -> 0 | J30: x | K30: =Control!$D$105 -> 0.001 | L30: = | M30: =C30*E30*G30*I30*K30 -> 0 | N30: - | O30: ='Municipal WW, N2O, direct'!K30*(1/Control!$D$99) -> 0 | P30: = | Q30: =M30-O30 -> 0 | R30: x (1 - | T30: ) x | U30: =Control!$F$32 -> 0 | V30: x | W30: =Control!$D$99 -> 1.571428571 | X30: = | Y30: =Q30*(1-S30)*U30*W30 -> 0 | Z30: x | AA30: =Control!$D$102 -> 298 | AB30: x | AC30: =Control!$D$104 -> 1e-06 | AD30: x | AE30: =Control!$D$100 -> 0.2727272727 | AF30: = | AG30: =Y30*AA$6*AC$6*AE$6 -> 0 | AH30: + | AI30: ='Municipal WW, N2O, direct'!S30 -> 0 | AJ30: = | AK30: =AG30+AI30 -> 0 | AL30: = | AM30: =AK30*C_CO2 -> 0 | AS30: 44.92575
A32: 12 | B32: =B30+1 -> 2003 | C32: ='Municipal WW, CH4'!C32 -> 0 | D32: x | F32: x | G32: =Control!$F$33 -> 0 | H32: x | I32: =Control!$F$25 -> 0 | J32: x | K32: =Control!$D$105 -> 0.001 | L32: = | M32: =C32*E32*G32*I32*K32 -> 0 | N32: - | O32: ='Municipal WW, N2O, direct'!K32*(1/Control!$D$99) -> 0 | P32: = | Q32: =M32-O32 -> 0 | R32: x (1 - | T32: ) x | U32: =Control!$F$32 -> 0 | V32: x | W32: =Control!$D$99 -> 1.571428571 | X32: = | Y32: =Q32*(1-S32)*U32*W32 -> 0 | Z32: x | AA32: =Control!$D$102 -> 298 | AB32: x | AC32: =Control!$D$104 -> 1e-06 | AD32: x | AE32: =Control!$D$100 -> 0.2727272727 | AF32: = | AG32: =Y32*AA$6*AC$6*AE$6 -> 0 | AH32: + | AI32: ='Municipal WW, N2O, direct'!S32 -> 0 | AJ32: = | AK32: =AG32+AI32 -> 0 | AL32: = | AM32: =AK32*C_CO2 -> 0 | AS32: 45.291
A34: 12 | B34: =B32+1 -> 2004 | C34: ='Municipal WW, CH4'!C34 -> 0 | D34: x | F34: x | G34: =Control!$F$33 -> 0 | H34: x | I34: =Control!$F$25 -> 0 | J34: x | K34: =Control!$D$105 -> 0.001 | L34: = | M34: =C34*E34*G34*I34*K34 -> 0 | N34: - | O34: ='Municipal WW, N2O, direct'!K34*(1/Control!$D$99) -> 0 | P34: = | Q34: =M34-O34 -> 0 | R34: x (1 - | T34: ) x | U34: =Control!$F$32 -> 0 | V34: x | W34: =Control!$D$99 -> 1.571428571 | X34: = | Y34: =Q34*(1-S34)*U34*W34 -> 0 | Z34: x | AA34: =Control!$D$102 -> 298 | AB34: x | AC34: =Control!$D$104 -> 1e-06 | AD34: x | AE34: =Control!$D$100 -> 0.2727272727 | AF34: = | AG34: =Y34*AA$6*AC$6*AE$6 -> 0 | AH34: + | AI34: ='Municipal WW, N2O, direct'!S34 -> 0 | AJ34: = | AK34: =AG34+AI34 -> 0 | AL34: = | AM34: =AK34*C_CO2 -> 0 | AS34: 45.65625
A36: 12 | B36: =B34+1 -> 2005 | C36: ='Municipal WW, CH4'!C36 -> 0 | D36: x | F36: x | G36: =Control!$F$33 -> 0 | H36: x | I36: =Control!$F$25 -> 0 | J36: x | K36: =Control!$D$105 -> 0.001 | L36: = | M36: =C36*E36*G36*I36*K36 -> 0 | N36: - | O36: ='Municipal WW, N2O, direct'!K36*(1/Control!$D$99) -> 0 | P36: = | Q36: =M36-O36 -> 0 | R36: x (1 - | T36: ) x | U36: =Control!$F$32 -> 0 | V36: x | W36: =Control!$D$99 -> 1.571428571 | X36: = | Y36: =Q36*(1-S36)*U36*W36 -> 0 | Z36: x | AA36: =Control!$D$102 -> 298 | AB36: x | AC36: =Control!$D$104 -> 1e-06 | AD36: x | AE36: =Control!$D$100 -> 0.2727272727 | AF36: = | AG36: =Y36*AA$6*AC$6*AE$6 -> 0 | AH36: + | AI36: ='Municipal WW, N2O, direct'!S36 -> 0 | AJ36: = | AK36: =AG36+AI36 -> 0 | AL36: = | AM36: =AK36*C_CO2 -> 0 | AS36: 44.92575
A38: 12 | B38: =B36+1 -> 2006 | C38: ='Municipal WW, CH4'!C38 -> 0 | D38: x | F38: x | G38: =Control!$F$33 -> 0 | H38: x | I38: =Control!$F$25 -> 0 | J38: x | K38: =Control!$D$105 -> 0.001 | L38: = | M38: =C38*E38*G38*I38*K38 -> 0 | N38: - | O38: ='Municipal WW, N2O, direct'!K38*(1/Control!$D$99) -> 0 | P38: = | Q38: =M38-O38 -> 0 | R38: x (1 - | T38: ) x | U38: =Control!$F$32 -> 0 | V38: x | W38: =Control!$D$99 -> 1.571428571 | X38: = | Y38: =Q38*(1-S38)*U38*W38 -> 0 | Z38: x | AA38: =Control!$D$102 -> 298 | AB38: x | AC38: =Control!$D$104 -> 1e-06 | AD38: x | AE38: =Control!$D$100 -> 0.2727272727 | AF38: = | AG38: =Y38*AA$6*AC$6*AE$6 -> 0 | AH38: + | AI38: ='Municipal WW, N2O, direct'!S38 -> 0 | AJ38: = | AK38: =AG38+AI38 -> 0 | AL38: = | AM38: =AK38*C_CO2 -> 0 | AS38: 45.291
A40: 12 | B40: =B38+1 -> 2007 | C40: ='Municipal WW, CH4'!C40 -> 0 | D40: x | F40: x | G40: =Control!$F$33 -> 0 | H40: x | I40: =Control!$F$25 -> 0 | J40: x | K40: =Control!$D$105 -> 0.001 | L40: = | M40: =C40*E40*G40*I40*K40 -> 0 | N40: - | O40: ='Municipal WW, N2O, direct'!K40*(1/Control!$D$99) -> 0 | P40: = | Q40: =M40-O40 -> 0 | R40: x (1 - | T40: ) x | U40: =Control!$F$32 -> 0 | V40: x | W40: =Control!$D$99 -> 1.571428571 | X40: = | Y40: =Q40*(1-S40)*U40*W40 -> 0 | Z40: x | AA40: =Control!$D$102 -> 298 | AB40: x | AC40: =Control!$D$104 -> 1e-06 | AD40: x | AE40: =Control!$D$100 -> 0.2727272727 | AF40: = | AG40: =Y40*AA$6*AC$6*AE$6 -> 0 | AH40: + | AI40: ='Municipal WW, N2O, direct'!S40 -> 0 | AJ40: = | AK40: =AG40+AI40 -> 0 | AL40: = | AM40: =AK40*C_CO2 -> 0 | AS40: 44.92575
A42: 12 | B42: =B40+1 -> 2008 | C42: ='Municipal WW, CH4'!C42 -> 0 | D42: x | F42: x | G42: =Control!$F$33 -> 0 | H42: x | I42: =Control!$F$25 -> 0 | J42: x | K42: =Control!$D$105 -> 0.001 | L42: = | M42: =C42*E42*G42*I42*K42 -> 0 | N42: - | O42: ='Municipal WW, N2O, direct'!K42*(1/Control!$D$99) -> 0 | P42: = | Q42: =M42-O42 -> 0 | R42: x (1 - | T42: ) x | U42: =Control!$F$32 -> 0 | V42: x | W42: =Control!$D$99 -> 1.571428571 | X42: = | Y42: =Q42*(1-S42)*U42*W42 -> 0 | Z42: x | AA42: =Control!$D$102 -> 298 | AB42: x | AC42: =Control!$D$104 -> 1e-06 | AD42: x | AE42: =Control!$D$100 -> 0.2727272727 | AF42: = | AG42: =Y42*AA$6*AC$6*AE$6 -> 0 | AH42: + | AI42: ='Municipal WW, N2O, direct'!S42 -> 0 | AJ42: = | AK42: =AG42+AI42 -> 0 | AL42: = | AM42: =AK42*C_CO2 -> 0 | AS42: 44.19525
A44: 12 | B44: =B42+1 -> 2009 | C44: ='Municipal WW, CH4'!C44 -> 0 | D44: x | F44: x | G44: =Control!$F$33 -> 0 | H44: x | I44: =Control!$F$25 -> 0 | J44: x | K44: =Control!$D$105 -> 0.001 | L44: = | M44: =C44*E44*G44*I44*K44 -> 0 | N44: - | O44: ='Municipal WW, N2O, direct'!K44*(1/Control!$D$99) -> 0 | P44: = | Q44: =M44-O44 -> 0 | R44: x (1 - | T44: ) x | U44: =Control!$F$32 -> 0 | V44: x | W44: =Control!$D$99 -> 1.571428571 | X44: = | Y44: =Q44*(1-S44)*U44*W44 -> 0 | Z44: x | AA44: =Control!$D$102 -> 298 | AB44: x | AC44: =Control!$D$104 -> 1e-06 | AD44: x | AE44: =Control!$D$100 -> 0.2727272727 | AF44: = | AG44: =Y44*AA$6*AC$6*AE$6 -> 0 | AH44: + | AI44: ='Municipal WW, N2O, direct'!S44 -> 0 | AJ44: = | AK44: =AG44+AI44 -> 0 | AL44: = | AM44: =AK44*C_CO2 -> 0 | AS44: 43.83
A46: 12 | B46: =B44+1 -> 2010 | C46: ='Municipal WW, CH4'!C46 -> 0 | D46: x | F46: x | G46: =Control!$F$33 -> 0 | H46: x | I46: =Control!$F$25 -> 0 | J46: x | K46: =Control!$D$105 -> 0.001 | L46: = | M46: =C46*E46*G46*I46*K46 -> 0 | N46: - | O46: ='Municipal WW, N2O, direct'!K46*(1/Control!$D$99) -> 0 | P46: = | Q46: =M46-O46 -> 0 | R46: x (1 - | T46: ) x | U46: =Control!$F$32 -> 0 | V46: x | W46: =Control!$D$99 -> 1.571428571 | X46: = | Y46: =Q46*(1-S46)*U46*W46 -> 0 | Z46: x | AA46: =Control!$D$102 -> 298 | AB46: x | AC46: =Control!$D$104 -> 1e-06 | AD46: x | AE46: =Control!$D$100 -> 0.2727272727 | AF46: = | AG46: =Y46*AA$6*AC$6*AE$6 -> 0 | AH46: + | AI46: ='Municipal WW, N2O, direct'!S46 -> 0 | AJ46: = | AK46: =AG46+AI46 -> 0 | AL46: = | AM46: =AK46*C_CO2 -> 0 | AS46: 43.83
A48: 12 | B48: =B46+1 -> 2011 | C48: ='Municipal WW, CH4'!C48 -> 0 | D48: x | F48: x | G48: =Control!$F$33 -> 0 | H48: x | I48: =Control!$F$25 -> 0 | J48: x | K48: =Control!$D$105 -> 0.001 | L48: = | M48: =C48*E48*G48*I48*K48 -> 0 | N48: - | O48: ='Municipal WW, N2O, direct'!K48*(1/Control!$D$99) -> 0 | P48: = | Q48: =M48-O48 -> 0 | R48: x (1 - | T48: ) x | U48: =Control!$F$32 -> 0 | V48: x | W48: =Control!$D$99 -> 1.571428571 | X48: = | Y48: =Q48*(1-S48)*U48*W48 -> 0 | Z48: x | AA48: =Control!$D$102 -> 298 | AB48: x | AC48: =Control!$D$104 -> 1e-06 | AD48: x | AE48: =Control!$D$100 -> 0.2727272727 | AF48: = | AG48: =Y48*AA$6*AC$6*AE$6 -> 0 | AH48: + | AI48: ='Municipal WW, N2O, direct'!S48 -> 0 | AJ48: = | AK48: =AG48+AI48 -> 0 | AL48: = | AM48: =AK48*C_CO2 -> 0 | AS48: 42.91937108
A50: 12 | B50: =B48+1 -> 2012 | C50: ='Municipal WW, CH4'!C50 -> 0 | D50: x | F50: x | G50: =Control!$F$33 -> 0 | H50: x | I50: =Control!$F$25 -> 0 | J50: x | K50: =Control!$D$105 -> 0.001 | L50: = | M50: =C50*E50*G50*I50*K50 -> 0 | N50: - | O50: ='Municipal WW, N2O, direct'!K50*(1/Control!$D$99) -> 0 | P50: = | Q50: =M50-O50 -> 0 | R50: x (1 - | T50: ) x | U50: =Control!$F$32 -> 0 | V50: x | W50: =Control!$D$99 -> 1.571428571 | X50: = | Y50: =Q50*(1-S50)*U50*W50 -> 0 | Z50: x | AA50: =Control!$D$102 -> 298 | AB50: x | AC50: =Control!$D$104 -> 1e-06 | AD50: x | AE50: =Control!$D$100 -> 0.2727272727 | AF50: = | AG50: =Y50*AA$6*AC$6*AE$6 -> 0 | AH50: + | AI50: ='Municipal WW, N2O, direct'!S50 -> 0 | AJ50: = | AK50: =AG50+AI50 -> 0 | AL50: = | AM50: =AK50*C_CO2 -> 0 | AS50: 43.3382123
A52: 12 | B52: =B50+1 -> 2013 | C52: ='Municipal WW, CH4'!C52 -> 0 | D52: x | F52: x | G52: =Control!$F$33 -> 0 | H52: x | I52: =Control!$F$25 -> 0 | J52: x | K52: =Control!$D$105 -> 0.001 | L52: = | M52: =C52*E52*G52*I52*K52 -> 0 | N52: - | O52: ='Municipal WW, N2O, direct'!K52*(1/Control!$D$99) -> 0 | P52: = | Q52: =M52-O52 -> 0 | R52: x (1 - | T52: ) x | U52: =Control!$F$32 -> 0 | V52: x | W52: =Control!$D$99 -> 1.571428571 | X52: = | Y52: =Q52*(1-S52)*U52*W52 -> 0 | Z52: x | AA52: =Control!$D$102 -> 298 | AB52: x | AC52: =Control!$D$104 -> 1e-06 | AD52: x | AE52: =Control!$D$100 -> 0.2727272727 | AF52: = | AG52: =Y52*AA$6*AC$6*AE$6 -> 0 | AH52: + | AI52: ='Municipal WW, N2O, direct'!S52 -> 0 | AJ52: = | AK52: =AG52+AI52 -> 0 | AL52: = | AM52: =AK52*C_CO2 -> 0 | AS52: 43.30660164
A54: 12 | B54: =B52+1 -> 2014 | C54: ='Municipal WW, CH4'!C54 -> 0 | D54: x | F54: x | G54: =Control!$F$33 -> 0 | H54: x | I54: =Control!$F$25 -> 0 | J54: x | K54: =Control!$D$105 -> 0.001 | L54: = | M54: =C54*E54*G54*I54*K54 -> 0 | N54: - | O54: ='Municipal WW, N2O, direct'!K54*(1/Control!$D$99) -> 0 | P54: = | Q54: =M54-O54 -> 0 | R54: x (1 - | T54: ) x | U54: =Control!$F$32 -> 0 | V54: x | W54: =Control!$D$99 -> 1.571428571 | X54: = | Y54: =Q54*(1-S54)*U54*W54 -> 0 | Z54: x | AA54: =Control!$D$102 -> 298 | AB54: x | AC54: =Control!$D$104 -> 1e-06 | AD54: x | AE54: =Control!$D$100 -> 0.2727272727 | AF54: = | AG54: =Y54*AA$6*AC$6*AE$6 -> 0 | AH54: + | AI54: ='Municipal WW, N2O, direct'!S54 -> 0 | AJ54: = | AK54: =AG54+AI54 -> 0 | AL54: = | AM54: =AK54*C_CO2 -> 0 | AS54: 44.28716992
A56: 12 | B56: =B54+1 -> 2015 | C56: ='Municipal WW, CH4'!C56 -> 0 | D56: x | F56: x | G56: =Control!$F$33 -> 0 | H56: x | I56: =Control!$F$25 -> 0 | J56: x | K56: =Control!$D$105 -> 0.001 | L56: = | M56: =C56*E56*G56*I56*K56 -> 0 | N56: - | O56: ='Municipal WW, N2O, direct'!K56*(1/Control!$D$99) -> 0 | P56: = | Q56: =M56-O56 -> 0 | R56: x (1 - | T56: ) x | U56: =Control!$F$32 -> 0 | V56: x | W56: =Control!$D$99 -> 1.571428571 | X56: = | Y56: =Q56*(1-S56)*U56*W56 -> 0 | Z56: x | AA56: =Control!$D$102 -> 298 | AB56: x | AC56: =Control!$D$104 -> 1e-06 | AD56: x | AE56: =Control!$D$100 -> 0.2727272727 | AF56: = | AG56: =Y56*AA$6*AC$6*AE$6 -> 0 | AH56: + | AI56: ='Municipal WW, N2O, direct'!S56 -> 0 | AJ56: = | AK56: =AG56+AI56 -> 0 | AL56: = | AM56: =AK56*C_CO2 -> 0 | AS56: 44.2838979
A58: 12 | B58: =B56+1 -> 2016 | C58: ='Municipal WW, CH4'!C58 -> 0 | D58: x | F58: x | G58: =Control!$F$33 -> 0 | H58: x | I58: =Control!$F$25 -> 0 | J58: x | K58: =Control!$D$105 -> 0.001 | L58: = | M58: =C58*E58*G58*I58*K58 -> 0 | N58: - | O58: ='Municipal WW, N2O, direct'!K58*(1/Control!$D$99) -> 0 | P58: = | Q58: =M58-O58 -> 0 | R58: x (1 - | T58: ) x | U58: =Control!$F$32 -> 0 | V58: x | W58: =Control!$D$99 -> 1.571428571 | X58: = | Y58: =Q58*(1-S58)*U58*W58 -> 0 | Z58: x | AA58: =Control!$D$102 -> 298 | AB58: x | AC58: =Control!$D$104 -> 1e-06 | AD58: x | AE58: =Control!$D$100 -> 0.2727272727 | AF58: = | AG58: =Y58*AA$6*AC$6*AE$6 -> 0 | AH58: + | AI58: ='Municipal WW, N2O, direct'!S58 -> 0 | AJ58: = | AK58: =AG58+AI58 -> 0 | AL58: = | AM58: =AK58*C_CO2 -> 0 | AS58: 44.28062587
A60: 12 | B60: =B58+1 -> 2017 | C60: ='Municipal WW, CH4'!C60 -> 0 | D60: x | F60: x | G60: =Control!$F$33 -> 0 | H60: x | I60: =Control!$F$25 -> 0 | J60: x | K60: =Control!$D$105 -> 0.001 | L60: = | M60: =C60*E60*G60*I60*K60 -> 0 | N60: - | O60: ='Municipal WW, N2O, direct'!K60*(1/Control!$D$99) -> 0 | P60: = | Q60: =M60-O60 -> 0 | R60: x (1 - | T60: ) x | U60: =Control!$F$32 -> 0 | V60: x | W60: =Control!$D$99 -> 1.571428571 | X60: = | Y60: =Q60*(1-S60)*U60*W60 -> 0 | Z60: x | AA60: =Control!$D$102 -> 298 | AB60: x | AC60: =Control!$D$104 -> 1e-06 | AD60: x | AE60: =Control!$D$100 -> 0.2727272727 | AF60: = | AG60: =Y60*AA$6*AC$6*AE$6 -> 0 | AH60: + | AI60: ='Municipal WW, N2O, direct'!S60 -> 0 | AJ60: = | AK60: =AG60+AI60 -> 0 | AL60: = | AM60: =AK60*C_CO2 -> 0 | AS60: 44.27735385
A62: 12 | B62: =B60+1 -> 2018 | C62: ='Municipal WW, CH4'!C62 -> 0 | D62: x | F62: x | G62: =Control!$F$33 -> 0 | H62: x | I62: =Control!$F$25 -> 0 | J62: x | K62: =Control!$D$105 -> 0.001 | L62: = | M62: =C62*E62*G62*I62*K62 -> 0 | N62: - | O62: ='Municipal WW, N2O, direct'!K62*(1/Control!$D$99) -> 0 | P62: = | Q62: =M62-O62 -> 0 | R62: x (1 - | T62: ) x | U62: =Control!$F$32 -> 0 | V62: x | W62: =Control!$D$99 -> 1.571428571 | X62: = | Y62: =Q62*(1-S62)*U62*W62 -> 0 | Z62: x | AA62: =Control!$D$102 -> 298 | AB62: x | AC62: =Control!$D$104 -> 1e-06 | AD62: x | AE62: =Control!$D$100 -> 0.2727272727 | AF62: = | AG62: =Y62*AA$6*AC$6*AE$6 -> 0 | AH62: + | AI62: ='Municipal WW, N2O, direct'!S62 -> 0 | AJ62: = | AK62: =AG62+AI62 -> 0 | AL62: = | AM62: =AK62*C_CO2 -> 0 | AS62: 44.27408183
A64: 12 | B64: =B62+1 -> 2019 | C64: ='Municipal WW, CH4'!C64 -> 0 | D64: x | F64: x | G64: =Control!$F$33 -> 0 | H64: x | I64: =Control!$F$25 -> 0 | J64: x | K64: =Control!$D$105 -> 0.001 | L64: = | M64: =C64*E64*G64*I64*K64 -> 0 | N64: - | O64: ='Municipal WW, N2O, direct'!K64*(1/Control!$D$99) -> 0 | P64: = | Q64: =M64-O64 -> 0 | R64: x (1 - | T64: ) x | U64: =Control!$F$32 -> 0 | V64: x | W64: =Control!$D$99 -> 1.571428571 | X64: = | Y64: =Q64*(1-S64)*U64*W64 -> 0 | Z64: x | AA64: =Control!$D$102 -> 298 | AB64: x | AC64: =Control!$D$104 -> 1e-06 | AD64: x | AE64: =Control!$D$100 -> 0.2727272727 | AF64: = | AG64: =Y64*AA$6*AC$6*AE$6 -> 0 | AH64: + | AI64: ='Municipal WW, N2O, direct'!S64 -> 0 | AJ64: = | AK64: =AG64+AI64 -> 0 | AL64: = | AM64: =AK64*C_CO2 -> 0 | AS64: =AS62 -> 44.27408183
A66: 12 | B66: =B64+1 -> 2020 | C66: ='Municipal WW, CH4'!C66 -> 0 | D66: x | F66: x | G66: =Control!$F$33 -> 0 | H66: x | I66: =Control!$F$25 -> 0 | J66: x | K66: =Control!$D$105 -> 0.001 | L66: = | M66: =C66*E66*G66*I66*K66 -> 0 | N66: - | O66: ='Municipal WW, N2O, direct'!K66*(1/Control!$D$99) -> 0 | P66: = | Q66: =M66-O66 -> 0 | R66: x (1 - | T66: ) x | U66: =Control!$F$32 -> 0 | V66: x | W66: =Control!$D$99 -> 1.571428571 | X66: = | Y66: =Q66*(1-S66)*U66*W66 -> 0 | Z66: x | AA66: =Control!$D$102 -> 298 | AB66: x | AC66: =Control!$D$104 -> 1e-06 | AD66: x | AE66: =Control!$D$100 -> 0.2727272727 | AF66: = | AG66: =Y66*AA$6*AC$6*AE$6 -> 0 | AH66: + | AI66: ='Municipal WW, N2O, direct'!S66 -> 0 | AJ66: = | AK66: =AG66+AI66 -> 0 | AL66: = | AM66: =AK66*C_CO2 -> 0

Sheet Ind WW Fruit
B1: ="7. "&SelectedState & " Industrial Wastewater Methane - Fruits and Vegetables" -> 7. Select a state . . . Industrial Wastewater Methane - Fruits and Vegetables
C3: Production Processed | E3: WW Outflow | G3: Unit Conversion | I3: COD | K3: Emission Factor | M3: COD Degraded | O3: Emissions | Q3: Unit Conversion | S3: Emissions | U3: CH4 GWP | W3: C/CO2 | Y3: Emissions | AA3: Emissions
C4: (metric tons) | E4: (m3/metric ton) | G4: (l/m3) | I4: (g COD/l) | K4: (g CH4/g COD) | M4: (percent) | O4: (g CH4) | Q4: (g/Tg) | S4: (Tg or MMT CH4) | U4: (CO2 Eq.) | Y4: (MMTCE) | AA4: (MMTCO2E)
B6: 1990 | D6: x | E6: =Control!$F$37 -> 0 | F6: x | G6: =Control!$D$106 -> 1000 | H6: x | I6: =Control!$F$38 -> 0 | J6: x | K6: =Control!$F$40 -> 0 | L6: x | M6: =Control!$F$39 -> 0 | N6: = | O6: =C6*$E$6*$G$6*$I$6*$M$6*$K$6 -> 0 | P6: x | Q6: =Control!$D$107 -> 1e-12 | R6: = | S6: =O6*Q6 -> 0 | T6: x | U6: =Control!$D$101 -> 25 | V6: x | W6: =Control!$D$100 -> 0.2727272727 | X6: = | Y6: =S6*U$6*W$6 -> 0 | Z6: = | AA6: =Y6*C_CO2 -> 0
B8: =B6+1 -> 1991 | D8: x | E8: =Control!$F$37 -> 0 | F8: x | G8: =Control!$D$106 -> 1000 | H8: x | I8: =Control!$F$38 -> 0 | J8: x | K8: =Control!$F$40 -> 0 | L8: x | M8: =Control!$F$39 -> 0 | N8: = | O8: =C8*$E$6*$G$6*$I$6*$M$6*$K$6 -> 0 | P8: x | Q8: =Control!$D$107 -> 1e-12 | R8: = | S8: =O8*Q8 -> 0 | T8: x | U8: =Control!$D$101 -> 25 | V8: x | W8: =Control!$D$100 -> 0.2727272727 | X8: = | Y8: =S8*U$6*W$6 -> 0 | Z8: = | AA8: =Y8*C_CO2 -> 0
B10: =B8+1 -> 1992 | D10: x | E10: =Control!$F$37 -> 0 | F10: x | G10: =Control!$D$106 -> 1000 | H10: x | I10: =Control!$F$38 -> 0 | J10: x | K10: =Control!$F$40 -> 0 | L10: x | M10: =Control!$F$39 -> 0 | N10: = | O10: =C10*$E$6*$G$6*$I$6*$M$6*$K$6 -> 0 | P10: x | Q10: =Control!$D$107 -> 1e-12 | R10: = | S10: =O10*Q10 -> 0 | T10: x | U10: =Control!$D$101 -> 25 | V10: x | W10: =Control!$D$100 -> 0.2727272727 | X10: = | Y10: =S10*U$6*W$6 -> 0 | Z10: = | AA10: =Y10*C_CO2 -> 0
B12: =B10+1 -> 1993 | D12: x | E12: =Control!$F$37 -> 0 | F12: x | G12: =Control!$D$106 -> 1000 | H12: x | I12: =Control!$F$38 -> 0 | J12: x | K12: =Control!$F$40 -> 0 | L12: x | M12: =Control!$F$39 -> 0 | N12: = | O12: =C12*$E$6*$G$6*$I$6*$M$6*$K$6 -> 0 | P12: x | Q12: =Control!$D$107 -> 1e-12 | R12: = | S12: =O12*Q12 -> 0 | T12: x | U12: =Control!$D$101 -> 25 | V12: x | W12: =Control!$D$100 -> 0.2727272727 | X12: = | Y12: =S12*U$6*W$6 -> 0 | Z12: = | AA12: =Y12*C_CO2 -> 0
B14: =B12+1 -> 1994 | D14: x | E14: =Control!$F$37 -> 0 | F14: x | G14: =Control!$D$106 -> 1000 | H14: x | I14: =Control!$F$38 -> 0 | J14: x | K14: =Control!$F$40 -> 0 | L14: x | M14: =Control!$F$39 -> 0 | N14: = | O14: =C14*$E$6*$G$6*$I$6*$M$6*$K$6 -> 0 | P14: x | Q14: =Control!$D$107 -> 1e-12 | R14: = | S14: =O14*Q14 -> 0 | T14: x | U14: =Control!$D$101 -> 25 | V14: x | W14: =Control!$D$100 -> 0.2727272727 | X14: = | Y14: =S14*U$6*W$6 -> 0 | Z14: = | AA14: =Y14*C_CO2 -> 0
B16: =B14+1 -> 1995 | D16: x | E16: =Control!$F$37 -> 0 | F16: x | G16: =Control!$D$106 -> 1000 | H16: x | I16: =Control!$F$38 -> 0 | J16: x | K16: =Control!$F$40 -> 0 | L16: x | M16: =Control!$F$39 -> 0 | N16: = | O16: =C16*$E$6*$G$6*$I$6*$M$6*$K$6 -> 0 | P16: x | Q16: =Control!$D$107 -> 1e-12 | R16: = | S16: =O16*Q16 -> 0 | T16: x | U16: =Control!$D$101 -> 25 | V16: x | W16: =Control!$D$100 -> 0.2727272727 | X16: = | Y16: =S16*U$6*W$6 -> 0 | Z16: = | AA16: =Y16*C_CO2 -> 0
B18: =B16+1 -> 1996 | D18: x | E18: =Control!$F$37 -> 0 | F18: x | G18: =Control!$D$106 -> 1000 | H18: x | I18: =Control!$F$38 -> 0 | J18: x | K18: =Control!$F$40 -> 0 | L18: x | M18: =Control!$F$39 -> 0 | N18: = | O18: =C18*$E$6*$G$6*$I$6*$M$6*$K$6 -> 0 | P18: x | Q18: =Control!$D$107 -> 1e-12 | R18: = | S18: =O18*Q18 -> 0 | T18: x | U18: =Control!$D$101 -> 25 | V18: x | W18: =Control!$D$100 -> 0.2727272727 | X18: = | Y18: =S18*U$6*W$6 -> 0 | Z18: = | AA18: =Y18*C_CO2 -> 0
B20: =B18+1 -> 1997 | D20: x | E20: =Control!$F$37 -> 0 | F20: x | G20: =Control!$D$106 -> 1000 | H20: x | I20: =Control!$F$38 -> 0 | J20: x | K20: =Control!$F$40 -> 0 | L20: x | M20: =Control!$F$39 -> 0 | N20: = | O20: =C20*$E$6*$G$6*$I$6*$M$6*$K$6 -> 0 | P20: x | Q20: =Control!$D$107 -> 1e-12 | R20: = | S20: =O20*Q20 -> 0 | T20: x | U20: =Control!$D$101 -> 25 | V20: x | W20: =Control!$D$100 -> 0.2727272727 | X20: = | Y20: =S20*U$6*W$6 -> 0 | Z20: = | AA20: =Y20*C_CO2 -> 0
B22: =B20+1 -> 1998 | D22: x | E22: =Control!$F$37 -> 0 | F22: x | G22: =Control!$D$106 -> 1000 | H22: x | I22: =Control!$F$38 -> 0 | J22: x | K22: =Control!$F$40 -> 0 | L22: x | M22: =Control!$F$39 -> 0 | N22: = | O22: =C22*$E$6*$G$6*$I$6*$M$6*$K$6 -> 0 | P22: x | Q22: =Control!$D$107 -> 1e-12 | R22: = | S22: =O22*Q22 -> 0 | T22: x | U22: =Control!$D$101 -> 25 | V22: x | W22: =Control!$D$100 -> 0.2727272727 | X22: = | Y22: =S22*U$6*W$6 -> 0 | Z22: = | AA22: =Y22*C_CO2 -> 0
B24: =B22+1 -> 1999 | D24: x | E24: =Control!$F$37 -> 0 | F24: x | G24: =Control!$D$106 -> 1000 | H24: x | I24: =Control!$F$38 -> 0 | J24: x | K24: =Control!$F$40 -> 0 | L24: x | M24: =Control!$F$39 -> 0 | N24: = | O24: =C24*$E$6*$G$6*$I$6*$M$6*$K$6 -> 0 | P24: x | Q24: =Control!$D$107 -> 1e-12 | R24: = | S24: =O24*Q24 -> 0 | T24: x | U24: =Control!$D$101 -> 25 | V24: x | W24: =Control!$D$100 -> 0.2727272727 | X24: = | Y24: =S24*U$6*W$6 -> 0 | Z24: = | AA24: =Y24*C_CO2 -> 0
B26: =B24+1 -> 2000 | D26: x | E26: =Control!$F$37 -> 0 | F26: x | G26: =Control!$D$106 -> 1000 | H26: x | I26: =Control!$F$38 -> 0 | J26: x | K26: =Control!$F$40 -> 0 | L26: x | M26: =Control!$F$39 -> 0 | N26: = | O26: =C26*$E$6*$G$6*$I$6*$M$6*$K$6 -> 0 | P26: x | Q26: =Control!$D$107 -> 1e-12 | R26: = | S26: =O26*Q26 -> 0 | T26: x | U26: =Control!$D$101 -> 25 | V26: x | W26: =Control!$D$100 -> 0.2727272727 | X26: = | Y26: =S26*U$6*W$6 -> 0 | Z26: = | AA26: =Y26*C_CO2 -> 0
B28: =B26+1 -> 2001 | D28: x | E28: =Control!$F$37 -> 0 | F28: x | G28: =Control!$D$106 -> 1000 | H28: x | I28: =Control!$F$38 -> 0 | J28: x | K28: =Control!$F$40 -> 0 | L28: x | M28: =Control!$F$39 -> 0 | N28: = | O28: =C28*$E$6*$G$6*$I$6*$M$6*$K$6 -> 0 | P28: x | Q28: =Control!$D$107 -> 1e-12 | R28: = | S28: =O28*Q28 -> 0 | T28: x | U28: =Control!$D$101 -> 25 | V28: x | W28: =Control!$D$100 -> 0.2727272727 | X28: = | Y28: =S28*U$6*W$6 -> 0 | Z28: = | AA28: =Y28*C_CO2 -> 0
B30: =B28+1 -> 2002 | D30: x | E30: =Control!$F$37 -> 0 | F30: x | G30: =Control!$D$106 -> 1000 | H30: x | I30: =Control!$F$38 -> 0 | J30: x | K30: =Control!$F$40 -> 0 | L30: x | M30: =Control!$F$39 -> 0 | N30: = | O30: =C30*$E$6*$G$6*$I$6*$M$6*$K$6 -> 0 | P30: x | Q30: =Control!$D$107 -> 1e-12 | R30: = | S30: =O30*Q30 -> 0 | T30: x | U30: =Control!$D$101 -> 25 | V30: x | W30: =Control!$D$100 -> 0.2727272727 | X30: = | Y30: =S30*U$6*W$6 -> 0 | Z30: = | AA30: =Y30*C_CO2 -> 0
B32: =B30+1 -> 2003 | D32: x | E32: =Control!$F$37 -> 0 | F32: x | G32: =Control!$D$106 -> 1000 | H32: x | I32: =Control!$F$38 -> 0 | J32: x | K32: =Control!$F$40 -> 0 | L32: x | M32: =Control!$F$39 -> 0 | N32: = | O32: =C32*$E$6*$G$6*$I$6*$M$6*$K$6 -> 0 | P32: x | Q32: =Control!$D$107 -> 1e-12 | R32: = | S32: =O32*Q32 -> 0 | T32: x | U32: =Control!$D$101 -> 25 | V32: x | W32: =Control!$D$100 -> 0.2727272727 | X32: = | Y32: =S32*U$6*W$6 -> 0 | Z32: = | AA32: =Y32*C_CO2 -> 0
B34: =B32+1 -> 2004 | D34: x | E34: =Control!$F$37 -> 0 | F34: x | G34: =Control!$D$106 -> 1000 | H34: x | I34: =Control!$F$38 -> 0 | J34: x | K34: =Control!$F$40 -> 0 | L34: x | M34: =Control!$F$39 -> 0 | N34: = | O34: =C34*$E$6*$G$6*$I$6*$M$6*$K$6 -> 0 | P34: x | Q34: =Control!$D$107 -> 1e-12 | R34: = | S34: =O34*Q34 -> 0 | T34: x | U34: =Control!$D$101 -> 25 | V34: x | W34: =Control!$D$100 -> 0.2727272727 | X34: = | Y34: =S34*U$6*W$6 -> 0 | Z34: = | AA34: =Y34*C_CO2 -> 0
B36: =B34+1 -> 2005 | D36: x | E36: =Control!$F$37 -> 0 | F36: x | G36: =Control!$D$106 -> 1000 | H36: x | I36: =Control!$F$38 -> 0 | J36: x | K36: =Control!$F$40 -> 0 | L36: x | M36: =Control!$F$39 -> 0 | N36: = | O36: =C36*$E$6*$G$6*$I$6*$M$6*$K$6 -> 0 | P36: x | Q36: =Control!$D$107 -> 1e-12 | R36: = | S36: =O36*Q36 -> 0 | T36: x | U36: =Control!$D$101 -> 25 | V36: x | W36: =Control!$D$100 -> 0.2727272727 | X36: = | Y36: =S36*U$6*W$6 -> 0 | Z36: = | AA36: =Y36*C_CO2 -> 0
B38: =B36+1 -> 2006 | D38: x | E38: =Control!$F$37 -> 0 | F38: x | G38: =Control!$D$106 -> 1000 | H38: x | I38: =Control!$F$38 -> 0 | J38: x | K38: =Control!$F$40 -> 0 | L38: x | M38: =Control!$F$39 -> 0 | N38: = | O38: =C38*$E$6*$G$6*$I$6*$M$6*$K$6 -> 0 | P38: x | Q38: =Control!$D$107 -> 1e-12 | R38: = | S38: =O38*Q38 -> 0 | T38: x | U38: =Control!$D$101 -> 25 | V38: x | W38: =Control!$D$100 -> 0.2727272727 | X38: = | Y38: =S38*U$6*W$6 -> 0 | Z38: = | AA38: =Y38*C_CO2 -> 0
B40: =B38+1 -> 2007 | D40: x | E40: =Control!$F$37 -> 0 | F40: x | G40: =Control!$D$106 -> 1000 | H40: x | I40: =Control!$F$38 -> 0 | J40: x | K40: =Control!$F$40 -> 0 | L40: x | M40: =Control!$F$39 -> 0 | N40: = | O40: =C40*$E$6*$G$6*$I$6*$M$6*$K$6 -> 0 | P40: x | Q40: =Control!$D$107 -> 1e-12 | R40: = | S40: =O40*Q40 -> 0 | T40: x | U40: =Control!$D$101 -> 25 | V40: x | W40: =Control!$D$100 -> 0.2727272727 | X40: = | Y40: =S40*U$6*W$6 -> 0 | Z40: = | AA40: =Y40*C_CO2 -> 0
B42: =B40+1 -> 2008 | D42: x | E42: =Control!$F$37 -> 0 | F42: x | G42: =Control!$D$106 -> 1000 | H42: x | I42: =Control!$F$38 -> 0 | J42: x | K42: =Control!$F$40 -> 0 | L42: x | M42: =Control!$F$39 -> 0 | N42: = | O42: =C42*$E$6*$G$6*$I$6*$M$6*$K$6 -> 0 | P42: x | Q42: =Control!$D$107 -> 1e-12 | R42: = | S42: =O42*Q42 -> 0 | T42: x | U42: =Control!$D$101 -> 25 | V42: x | W42: =Control!$D$100 -> 0.2727272727 | X42: = | Y42: =S42*U$6*W$6 -> 0 | Z42: = | AA42: =Y42*C_CO2 -> 0
B44: =B42+1 -> 2009 | D44: x | E44: =Control!$F$37 -> 0 | F44: x | G44: =Control!$D$106 -> 1000 | H44: x | I44: =Control!$F$38 -> 0 | J44: x | K44: =Control!$F$40 -> 0 | L44: x | M44: =Control!$F$39 -> 0 | N44: = | O44: =C44*$E$6*$G$6*$I$6*$M$6*$K$6 -> 0 | P44: x | Q44: =Control!$D$107 -> 1e-12 | R44: = | S44: =O44*Q44 -> 0 | T44: x | U44: =Control!$D$101 -> 25 | V44: x | W44: =Control!$D$100 -> 0.2727272727 | X44: = | Y44: =S44*U$6*W$6 -> 0 | Z44: = | AA44: =Y44*C_CO2 -> 0
B46: =B44+1 -> 2010 | D46: x | E46: =Control!$F$37 -> 0 | F46: x | G46: =Control!$D$106 -> 1000 | H46: x | I46: =Control!$F$38 -> 0 | J46: x | K46: =Control!$F$40 -> 0 | L46: x | M46: =Control!$F$39 -> 0 | N46: = | O46: =C46*$E$6*$G$6*$I$6*$M$6*$K$6 -> 0 | P46: x | Q46: =Control!$D$107 -> 1e-12 | R46: = | S46: =O46*Q46 -> 0 | T46: x | U46: =Control!$D$101 -> 25 | V46: x | W46: =Control!$D$100 -> 0.2727272727 | X46: = | Y46: =S46*U$6*W$6 -> 0 | Z46: = | AA46: =Y46*C_CO2 -> 0
B48: =B46+1 -> 2011 | D48: x | E48: =Control!$F$37 -> 0 | F48: x | G48: =Control!$D$106 -> 1000 | H48: x | I48: =Control!$F$38 -> 0 | J48: x | K48: =Control!$F$40 -> 0 | L48: x | M48: =Control!$F$39 -> 0 | N48: = | O48: =C48*$E$6*$G$6*$I$6*$M$6*$K$6 -> 0 | P48: x | Q48: =Control!$D$107 -> 1e-12 | R48: = | S48: =O48*Q48 -> 0 | T48: x | U48: =Control!$D$101 -> 25 | V48: x | W48: =Control!$D$100 -> 0.2727272727 | X48: = | Y48: =S48*U$6*W$6 -> 0 | Z48: = | AA48: =Y48*C_CO2 -> 0
B50: =B48+1 -> 2012 | D50: x | E50: =Control!$F$37 -> 0 | F50: x | G50: =Control!$D$106 -> 1000 | H50: x | I50: =Control!$F$38 -> 0 | J50: x | K50: =Control!$F$40 -> 0 | L50: x | M50: =Control!$F$39 -> 0 | N50: = | O50: =C50*$E$6*$G$6*$I$6*$M$6*$K$6 -> 0 | P50: x | Q50: =Control!$D$107 -> 1e-12 | R50: = | S50: =O50*Q50 -> 0 | T50: x | U50: =Control!$D$101 -> 25 | V50: x | W50: =Control!$D$100 -> 0.2727272727 | X50: = | Y50: =S50*U$6*W$6 -> 0 | Z50: = | AA50: =Y50*C_CO2 -> 0
B52: =B50+1 -> 2013 | D52: x | E52: =Control!$F$37 -> 0 | F52: x | G52: =Control!$D$106 -> 1000 | H52: x | I52: =Control!$F$38 -> 0 | J52: x | K52: =Control!$F$40 -> 0 | L52: x | M52: =Control!$F$39 -> 0 | N52: = | O52: =C52*$E$6*$G$6*$I$6*$M$6*$K$6 -> 0 | P52: x | Q52: =Control!$D$107 -> 1e-12 | R52: = | S52: =O52*Q52 -> 0 | T52: x | U52: =Control!$D$101 -> 25 | V52: x | W52: =Control!$D$100 -> 0.2727272727 | X52: = | Y52: =S52*U$6*W$6 -> 0 | Z52: = | AA52: =Y52*C_CO2 -> 0
B54: =B52+1 -> 2014 | D54: x | E54: =Control!$F$37 -> 0 | F54: x | G54: =Control!$D$106 -> 1000 | H54: x | I54: =Control!$F$38 -> 0 | J54: x | K54: =Control!$F$40 -> 0 | L54: x | M54: =Control!$F$39 -> 0 | N54: = | O54: =C54*$E$6*$G$6*$I$6*$M$6*$K$6 -> 0 | P54: x | Q54: =Control!$D$107 -> 1e-12 | R54: = | S54: =O54*Q54 -> 0 | T54: x | U54: =Control!$D$101 -> 25 | V54: x | W54: =Control!$D$100 -> 0.2727272727 | X54: = | Y54: =S54*U$6*W$6 -> 0 | Z54: = | AA54: =Y54*C_CO2 -> 0
B56: =B54+1 -> 2015 | D56: x | E56: =Control!$F$37 -> 0 | F56: x | G56: =Control!$D$106 -> 1000 | H56: x | I56: =Control!$F$38 -> 0 | J56: x | K56: =Control!$F$40 -> 0 | L56: x | M56: =Control!$F$39 -> 0 | N56: = | O56: =C56*$E$6*$G$6*$I$6*$M$6*$K$6 -> 0 | P56: x | Q56: =Control!$D$107 -> 1e-12 | R56: = | S56: =O56*Q56 -> 0 | T56: x | U56: =Control!$D$101 -> 25 | V56: x | W56: =Control!$D$100 -> 0.2727272727 | X56: = | Y56: =S56*U$6*W$6 -> 0 | Z56: = | AA56: =Y56*C_CO2 -> 0
B58: =B56+1 -> 2016 | D58: x | E58: =Control!$F$37 -> 0 | F58: x | G58: =Control!$D$106 -> 1000 | H58: x | I58: =Control!$F$38 -> 0 | J58: x | K58: =Control!$F$40 -> 0 | L58: x | M58: =Control!$F$39 -> 0 | N58: = | O58: =C58*$E$6*$G$6*$I$6*$M$6*$K$6 -> 0 | P58: x | Q58: =Control!$D$107 -> 1e-12 | R58: = | S58: =O58*Q58 -> 0 | T58: x | U58: =Control!$D$101 -> 25 | V58: x | W58: =Control!$D$100 -> 0.2727272727 | X58: = | Y58: =S58*U$6*W$6 -> 0 | Z58: = | AA58: =Y58*C_CO2 -> 0
B60: =B58+1 -> 2017 | D60: x | E60: =Control!$F$37 -> 0 | F60: x | G60: =Control!$D$106 -> 1000 | H60: x | I60: =Control!$F$38 -> 0 | J60: x | K60: =Control!$F$40 -> 0 | L60: x | M60: =Control!$F$39 -> 0 | N60: = | O60: =C60*$E$6*$G$6*$I$6*$M$6*$K$6 -> 0 | P60: x | Q60: =Control!$D$107 -> 1e-12 | R60: = | S60: =O60*Q60 -> 0 | T60: x | U60: =Control!$D$101 -> 25 | V60: x | W60: =Control!$D$100 -> 0.2727272727 | X60: = | Y60: =S60*U$6*W$6 -> 0 | Z60: = | AA60: =Y60*C_CO2 -> 0
B62: =B60+1 -> 2018 | D62: x | E62: =Control!$F$37 -> 0 | F62: x | G62: =Control!$D$106 -> 1000 | H62: x | I62: =Control!$F$38 -> 0 | J62: x | K62: =Control!$F$40 -> 0 | L62: x | M62: =Control!$F$39 -> 0 | N62: = | O62: =C62*$E$6*$G$6*$I$6*$M$6*$K$6 -> 0 | P62: x | Q62: =Control!$D$107 -> 1e-12 | R62: = | S62: =O62*Q62 -> 0 | T62: x | U62: =Control!$D$101 -> 25 | V62: x | W62: =Control!$D$100 -> 0.2727272727 | X62: = | Y62: =S62*U$6*W$6 -> 0 | Z62: = | AA62: =Y62*C_CO2 -> 0
B64: =B62+1 -> 2019 | D64: x | E64: =Control!$F$37 -> 0 | F64: x | G64: =Control!$D$106 -> 1000 | H64: x | I64: =Control!$F$38 -> 0 | J64: x | K64: =Control!$F$40 -> 0 | L64: x | M64: =Control!$F$39 -> 0 | N64: = | O64: =C64*$E$6*$G$6*$I$6*$M$6*$K$6 -> 0 | P64: x | Q64: =Control!$D$107 -> 1e-12 | R64: = | S64: =O64*Q64 -> 0 | T64: x | U64: =Control!$D$101 -> 25 | V64: x | W64: =Control!$D$100 -> 0.2727272727 | X64: = | Y64: =S64*U$6*W$6 -> 0 | Z64: = | AA64: =Y64*C_CO2 -> 0
B66: =B64+1 -> 2020 | D66: x | E66: =Control!$F$37 -> 0 | F66: x | G66: =Control!$D$106 -> 1000 | H66: x | I66: =Control!$F$38 -> 0 | J66: x | K66: =Control!$F$40 -> 0 | L66: x | M66: =Control!$F$39 -> 0 | N66: = | O66: =C66*$E$6*$G$6*$I$6*$M$6*$K$6 -> 0 | P66: x | Q66: =Control!$D$107 -> 1e-12 | R66: = | S66: =O66*Q66 -> 0 | T66: x | U66: =Control!$D$101 -> 25 | V66: x | W66: =Control!$D$100 -> 0.2727272727 | X66: = | Y66: =S66*U$6*W$6 -> 0 | Z66: = | AA66: =Y66*C_CO2 -> 0

Sheet Ind WW Meat
B1: ="8. "&SelectedState & " Industrial Wastewater Methane - Red Meat" -> 8. Select a state . . . Industrial Wastewater Methane - Red Meat
A2: =SelectedStateAbbr -> XX
C3: Production Processed | E3: WW Outflow | G3: Unit Conversion | I3: COD | K3: Emission Factor | M3: COD Degraded | O3: Emissions | Q3: Unit Conversion | S3: Emissions | U3: CH4 GWP | W3: C/CO2 | Y3: Emissions | AA3: Emissions
C4: (metric tons) | E4: (m3/metric ton) | G4: (l/m3) | I4: (g COD/l) | K4: (g CH4/g COD) | M4: (percent) | O4: (g CH4) | Q4: (g/Tg) | S4: (Tg or MMT CH4) | U4: (CO2 Eq.) | Y4: (MMTCE) | AA4: (MMTCO2E)
A6: 2 | B6: 1990 | D6: x | E6: =Control!$F$44 -> 0 | F6: x | G6: =Control!$D$106 -> 1000 | H6: x | I6: =Control!$F$45 -> 0 | J6: x | K6: =Control!$F$47 -> 0 | L6: x | M6: =Control!$F$46 -> 0 | N6: = | O6: =C6*$E$6*$I$6*$M$6*$K$6*$G$6 -> 0 | P6: x | Q6: =Control!$D$107 -> 1e-12 | R6: = | S6: =O6*Q6 -> 0 | T6: x | U6: =Control!$D$101 -> 25 | V6: x | W6: =Control!$D$100 -> 0.2727272727 | X6: = | Y6: =S6*U$6*W$6 -> 0 | Z6: = | AA6: =Y6*C_CO2 -> 0
A8: 3 | B8: =B6+1 -> 1991 | D8: x | E8: =Control!$F$44 -> 0 | F8: x | G8: =Control!$D$106 -> 1000 | H8: x | I8: =Control!$F$45 -> 0 | J8: x | K8: =Control!$F$47 -> 0 | L8: x | M8: =Control!$F$46 -> 0 | N8: = | O8: =C8*$E$6*$I$6*$M$6*$K$6*$G$6 -> 0 | P8: x | Q8: =Control!$D$107 -> 1e-12 | R8: = | S8: =O8*Q8 -> 0 | T8: x | U8: =Control!$D$101 -> 25 | V8: x | W8: =Control!$D$100 -> 0.2727272727 | X8: = | Y8: =S8*U$6*W$6 -> 0 | Z8: = | AA8: =Y8*C_CO2 -> 0
A10: 4 | B10: =B8+1 -> 1992 | D10: x | E10: =Control!$F$44 -> 0 | F10: x | G10: =Control!$D$106 -> 1000 | H10: x | I10: =Control!$F$45 -> 0 | J10: x | K10: =Control!$F$47 -> 0 | L10: x | M10: =Control!$F$46 -> 0 | N10: = | O10: =C10*$E$6*$I$6*$M$6*$K$6*$G$6 -> 0 | P10: x | Q10: =Control!$D$107 -> 1e-12 | R10: = | S10: =O10*Q10 -> 0 | T10: x | U10: =Control!$D$101 -> 25 | V10: x | W10: =Control!$D$100 -> 0.2727272727 | X10: = | Y10: =S10*U$6*W$6 -> 0 | Z10: = | AA10: =Y10*C_CO2 -> 0
A12: 5 | B12: =B10+1 -> 1993 | D12: x | E12: =Control!$F$44 -> 0 | F12: x | G12: =Control!$D$106 -> 1000 | H12: x | I12: =Control!$F$45 -> 0 | J12: x | K12: =Control!$F$47 -> 0 | L12: x | M12: =Control!$F$46 -> 0 | N12: = | O12: =C12*$E$6*$I$6*$M$6*$K$6*$G$6 -> 0 | P12: x | Q12: =Control!$D$107 -> 1e-12 | R12: = | S12: =O12*Q12 -> 0 | T12: x | U12: =Control!$D$101 -> 25 | V12: x | W12: =Control!$D$100 -> 0.2727272727 | X12: = | Y12: =S12*U$6*W$6 -> 0 | Z12: = | AA12: =Y12*C_CO2 -> 0
A14: 6 | B14: =B12+1 -> 1994 | D14: x | E14: =Control!$F$44 -> 0 | F14: x | G14: =Control!$D$106 -> 1000 | H14: x | I14: =Control!$F$45 -> 0 | J14: x | K14: =Control!$F$47 -> 0 | L14: x | M14: =Control!$F$46 -> 0 | N14: = | O14: =C14*$E$6*$I$6*$M$6*$K$6*$G$6 -> 0 | P14: x | Q14: =Control!$D$107 -> 1e-12 | R14: = | S14: =O14*Q14 -> 0 | T14: x | U14: =Control!$D$101 -> 25 | V14: x | W14: =Control!$D$100 -> 0.2727272727 | X14: = | Y14: =S14*U$6*W$6 -> 0 | Z14: = | AA14: =Y14*C_CO2 -> 0
A16: 7 | B16: =B14+1 -> 1995 | D16: x | E16: =Control!$F$44 -> 0 | F16: x | G16: =Control!$D$106 -> 1000 | H16: x | I16: =Control!$F$45 -> 0 | J16: x | K16: =Control!$F$47 -> 0 | L16: x | M16: =Control!$F$46 -> 0 | N16: = | O16: =C16*$E$6*$I$6*$M$6*$K$6*$G$6 -> 0 | P16: x | Q16: =Control!$D$107 -> 1e-12 | R16: = | S16: =O16*Q16 -> 0 | T16: x | U16: =Control!$D$101 -> 25 | V16: x | W16: =Control!$D$100 -> 0.2727272727 | X16: = | Y16: =S16*U$6*W$6 -> 0 | Z16: = | AA16: =Y16*C_CO2 -> 0
A18: 8 | B18: =B16+1 -> 1996 | D18: x | E18: =Control!$F$44 -> 0 | F18: x | G18: =Control!$D$106 -> 1000 | H18: x | I18: =Control!$F$45 -> 0 | J18: x | K18: =Control!$F$47 -> 0 | L18: x | M18: =Control!$F$46 -> 0 | N18: = | O18: =C18*$E$6*$I$6*$M$6*$K$6*$G$6 -> 0 | P18: x | Q18: =Control!$D$107 -> 1e-12 | R18: = | S18: =O18*Q18 -> 0 | T18: x | U18: =Control!$D$101 -> 25 | V18: x | W18: =Control!$D$100 -> 0.2727272727 | X18: = | Y18: =S18*U$6*W$6 -> 0 | Z18: = | AA18: =Y18*C_CO2 -> 0
A20: 9 | B20: =B18+1 -> 1997 | D20: x | E20: =Control!$F$44 -> 0 | F20: x | G20: =Control!$D$106 -> 1000 | H20: x | I20: =Control!$F$45 -> 0 | J20: x | K20: =Control!$F$47 -> 0 | L20: x | M20: =Control!$F$46 -> 0 | N20: = | O20: =C20*$E$6*$I$6*$M$6*$K$6*$G$6 -> 0 | P20: x | Q20: =Control!$D$107 -> 1e-12 | R20: = | S20: =O20*Q20 -> 0 | T20: x | U20: =Control!$D$101 -> 25 | V20: x | W20: =Control!$D$100 -> 0.2727272727 | X20: = | Y20: =S20*U$6*W$6 -> 0 | Z20: = | AA20: =Y20*C_CO2 -> 0
A22: 10 | B22: =B20+1 -> 1998 | D22: x | E22: =Control!$F$44 -> 0 | F22: x | G22: =Control!$D$106 -> 1000 | H22: x | I22: =Control!$F$45 -> 0 | J22: x | K22: =Control!$F$47 -> 0 | L22: x | M22: =Control!$F$46 -> 0 | N22: = | O22: =C22*$E$6*$I$6*$M$6*$K$6*$G$6 -> 0 | P22: x | Q22: =Control!$D$107 -> 1e-12 | R22: = | S22: =O22*Q22 -> 0 | T22: x | U22: =Control!$D$101 -> 25 | V22: x | W22: =Control!$D$100 -> 0.2727272727 | X22: = | Y22: =S22*U$6*W$6 -> 0 | Z22: = | AA22: =Y22*C_CO2 -> 0
A24: 11 | B24: =B22+1 -> 1999 | D24: x | E24: =Control!$F$44 -> 0 | F24: x | G24: =Control!$D$106 -> 1000 | H24: x | I24: =Control!$F$45 -> 0 | J24: x | K24: =Control!$F$47 -> 0 | L24: x | M24: =Control!$F$46 -> 0 | N24: = | O24: =C24*$E$6*$I$6*$M$6*$K$6*$G$6 -> 0 | P24: x | Q24: =Control!$D$107 -> 1e-12 | R24: = | S24: =O24*Q24 -> 0 | T24: x | U24: =Control!$D$101 -> 25 | V24: x | W24: =Control!$D$100 -> 0.2727272727 | X24: = | Y24: =S24*U$6*W$6 -> 0 | Z24: = | AA24: =Y24*C_CO2 -> 0
A26: 12 | B26: =B24+1 -> 2000 | D26: x | E26: =Control!$F$44 -> 0 | F26: x | G26: =Control!$D$106 -> 1000 | H26: x | I26: =Control!$F$45 -> 0 | J26: x | K26: =Control!$F$47 -> 0 | L26: x | M26: =Control!$F$46 -> 0 | N26: = | O26: =C26*$E$6*$I$6*$M$6*$K$6*$G$6 -> 0 | P26: x | Q26: =Control!$D$107 -> 1e-12 | R26: = | S26: =O26*Q26 -> 0 | T26: x | U26: =Control!$D$101 -> 25 | V26: x | W26: =Control!$D$100 -> 0.2727272727 | X26: = | Y26: =S26*U$6*W$6 -> 0 | Z26: = | AA26: =Y26*C_CO2 -> 0
A28: 13 | B28: =B26+1 -> 2001 | D28: x | E28: =Control!$F$44 -> 0 | F28: x | G28: =Control!$D$106 -> 1000 | H28: x | I28: =Control!$F$45 -> 0 | J28: x | K28: =Control!$F$47 -> 0 | L28: x | M28: =Control!$F$46 -> 0 | N28: = | O28: =C28*$E$6*$I$6*$M$6*$K$6*$G$6 -> 0 | P28: x | Q28: =Control!$D$107 -> 1e-12 | R28: = | S28: =O28*Q28 -> 0 | T28: x | U28: =Control!$D$101 -> 25 | V28: x | W28: =Control!$D$100 -> 0.2727272727 | X28: = | Y28: =S28*U$6*W$6 -> 0 | Z28: = | AA28: =Y28*C_CO2 -> 0
A30: 14 | B30: =B28+1 -> 2002 | D30: x | E30: =Control!$F$44 -> 0 | F30: x | G30: =Control!$D$106 -> 1000 | H30: x | I30: =Control!$F$45 -> 0 | J30: x | K30: =Control!$F$47 -> 0 | L30: x | M30: =Control!$F$46 -> 0 | N30: = | O30: =C30*$E$6*$I$6*$M$6*$K$6*$G$6 -> 0 | P30: x | Q30: =Control!$D$107 -> 1e-12 | R30: = | S30: =O30*Q30 -> 0 | T30: x | U30: =Control!$D$101 -> 25 | V30: x | W30: =Control!$D$100 -> 0.2727272727 | X30: = | Y30: =S30*U$6*W$6 -> 0 | Z30: = | AA30: =Y30*C_CO2 -> 0
A32: 15 | B32: =B30+1 -> 2003 | D32: x | E32: =Control!$F$44 -> 0 | F32: x | G32: =Control!$D$106 -> 1000 | H32: x | I32: =Control!$F$45 -> 0 | J32: x | K32: =Control!$F$47 -> 0 | L32: x | M32: =Control!$F$46 -> 0 | N32: = | O32: =C32*$E$6*$I$6*$M$6*$K$6*$G$6 -> 0 | P32: x | Q32: =Control!$D$107 -> 1e-12 | R32: = | S32: =O32*Q32 -> 0 | T32: x | U32: =Control!$D$101 -> 25 | V32: x | W32: =Control!$D$100 -> 0.2727272727 | X32: = | Y32: =S32*U$6*W$6 -> 0 | Z32: = | AA32: =Y32*C_CO2 -> 0
A34: 16 | B34: =B32+1 -> 2004 | D34: x | E34: =Control!$F$44 -> 0 | F34: x | G34: =Control!$D$106 -> 1000 | H34: x | I34: =Control!$F$45 -> 0 | J34: x | K34: =Control!$F$47 -> 0 | L34: x | M34: =Control!$F$46 -> 0 | N34: = | O34: =C34*$E$6*$I$6*$M$6*$K$6*$G$6 -> 0 | P34: x | Q34: =Control!$D$107 -> 1e-12 | R34: = | S34: =O34*Q34 -> 0 | T34: x | U34: =Control!$D$101 -> 25 | V34: x | W34: =Control!$D$100 -> 0.2727272727 | X34: = | Y34: =S34*U$6*W$6 -> 0 | Z34: = | AA34: =Y34*C_CO2 -> 0
A36: 17 | B36: =B34+1 -> 2005 | D36: x | E36: =Control!$F$44 -> 0 | F36: x | G36: =Control!$D$106 -> 1000 | H36: x | I36: =Control!$F$45 -> 0 | J36: x | K36: =Control!$F$47 -> 0 | L36: x | M36: =Control!$F$46 -> 0 | N36: = | O36: =C36*$E$6*$I$6*$M$6*$K$6*$G$6 -> 0 | P36: x | Q36: =Control!$D$107 -> 1e-12 | R36: = | S36: =O36*Q36 -> 0 | T36: x | U36: =Control!$D$101 -> 25 | V36: x | W36: =Control!$D$100 -> 0.2727272727 | X36: = | Y36: =S36*U$6*W$6 -> 0 | Z36: = | AA36: =Y36*C_CO2 -> 0
A38: 18 | B38: =B36+1 -> 2006 | D38: x | E38: =Control!$F$44 -> 0 | F38: x | G38: =Control!$D$106 -> 1000 | H38: x | I38: =Control!$F$45 -> 0 | J38: x | K38: =Control!$F$47 -> 0 | L38: x | M38: =Control!$F$46 -> 0 | N38: = | O38: =C38*$E$6*$I$6*$M$6*$K$6*$G$6 -> 0 | P38: x | Q38: =Control!$D$107 -> 1e-12 | R38: = | S38: =O38*Q38 -> 0 | T38: x | U38: =Control!$D$101 -> 25 | V38: x | W38: =Control!$D$100 -> 0.2727272727 | X38: = | Y38: =S38*U$6*W$6 -> 0 | Z38: = | AA38: =Y38*C_CO2 -> 0
A40: 19 | B40: =B38+1 -> 2007 | D40: x | E40: =Control!$F$44 -> 0 | F40: x | G40: =Control!$D$106 -> 1000 | H40: x | I40: =Control!$F$45 -> 0 | J40: x | K40: =Control!$F$47 -> 0 | L40: x | M40: =Control!$F$46 -> 0 | N40: = | O40: =C40*$E$6*$I$6*$M$6*$K$6*$G$6 -> 0 | P40: x | Q40: =Control!$D$107 -> 1e-12 | R40: = | S40: =O40*Q40 -> 0 | T40: x | U40: =Control!$D$101 -> 25 | V40: x | W40: =Control!$D$100 -> 0.2727272727 | X40: = | Y40: =S40*U$6*W$6 -> 0 | Z40: = | AA40: =Y40*C_CO2 -> 0
A42: 20 | B42: =B40+1 -> 2008 | D42: x | E42: =Control!$F$44 -> 0 | F42: x | G42: =Control!$D$106 -> 1000 | H42: x | I42: =Control!$F$45 -> 0 | J42: x | K42: =Control!$F$47 -> 0 | L42: x | M42: =Control!$F$46 -> 0 | N42: = | O42: =C42*$E$6*$I$6*$M$6*$K$6*$G$6 -> 0 | P42: x | Q42: =Control!$D$107 -> 1e-12 | R42: = | S42: =O42*Q42 -> 0 | T42: x | U42: =Control!$D$101 -> 25 | V42: x | W42: =Control!$D$100 -> 0.2727272727 | X42: = | Y42: =S42*U$6*W$6 -> 0 | Z42: = | AA42: =Y42*C_CO2 -> 0
A44: 21 | B44: =B42+1 -> 2009 | D44: x | E44: =Control!$F$44 -> 0 | F44: x | G44: =Control!$D$106 -> 1000 | H44: x | I44: =Control!$F$45 -> 0 | J44: x | K44: =Control!$F$47 -> 0 | L44: x | M44: =Control!$F$46 -> 0 | N44: = | O44: =C44*$E$6*$I$6*$M$6*$K$6*$G$6 -> 0 | P44: x | Q44: =Control!$D$107 -> 1e-12 | R44: = | S44: =O44*Q44 -> 0 | T44: x | U44: =Control!$D$101 -> 25 | V44: x | W44: =Control!$D$100 -> 0.2727272727 | X44: = | Y44: =S44*U$6*W$6 -> 0 | Z44: = | AA44: =Y44*C_CO2 -> 0
A46: 22 | B46: =B44+1 -> 2010 | D46: x | E46: =Control!$F$44 -> 0 | F46: x | G46: =Control!$D$106 -> 1000 | H46: x | I46: =Control!$F$45 -> 0 | J46: x | K46: =Control!$F$47 -> 0 | L46: x | M46: =Control!$F$46 -> 0 | N46: = | O46: =C46*$E$6*$I$6*$M$6*$K$6*$G$6 -> 0 | P46: x | Q46: =Control!$D$107 -> 1e-12 | R46: = | S46: =O46*Q46 -> 0 | T46: x | U46: =Control!$D$101 -> 25 | V46: x | W46: =Control!$D$100 -> 0.2727272727 | X46: = | Y46: =S46*U$6*W$6 -> 0 | Z46: = | AA46: =Y46*C_CO2 -> 0
A48: 23 | B48: =B46+1 -> 2011 | D48: x | E48: =Control!$F$44 -> 0 | F48: x | G48: =Control!$D$106 -> 1000 | H48: x | I48: =Control!$F$45 -> 0 | J48: x | K48: =Control!$F$47 -> 0 | L48: x | M48: =Control!$F$46 -> 0 | N48: = | O48: =C48*$E$6*$I$6*$M$6*$K$6*$G$6 -> 0 | P48: x | Q48: =Control!$D$107 -> 1e-12 | R48: = | S48: =O48*Q48 -> 0 | T48: x | U48: =Control!$D$101 -> 25 | V48: x | W48: =Control!$D$100 -> 0.2727272727 | X48: = | Y48: =S48*U$6*W$6 -> 0 | Z48: = | AA48: =Y48*C_CO2 -> 0
A50: 24 | B50: =B48+1 -> 2012 | D50: x | E50: =Control!$F$44 -> 0 | F50: x | G50: =Control!$D$106 -> 1000 | H50: x | I50: =Control!$F$45 -> 0 | J50: x | K50: =Control!$F$47 -> 0 | L50: x | M50: =Control!$F$46 -> 0 | N50: = | O50: =C50*$E$6*$I$6*$M$6*$K$6*$G$6 -> 0 | P50: x | Q50: =Control!$D$107 -> 1e-12 | R50: = | S50: =O50*Q50 -> 0 | T50: x | U50: =Control!$D$101 -> 25 | V50: x | W50: =Control!$D$100 -> 0.2727272727 | X50: = | Y50: =S50*U$6*W$6 -> 0 | Z50: = | AA50: =Y50*C_CO2 -> 0
A52: 25 | B52: =B50+1 -> 2013 | D52: x | E52: =Control!$F$44 -> 0 | F52: x | G52: =Control!$D$106 -> 1000 | H52: x | I52: =Control!$F$45 -> 0 | J52: x | K52: =Control!$F$47 -> 0 | L52: x | M52: =Control!$F$46 -> 0 | N52: = | O52: =C52*$E$6*$I$6*$M$6*$K$6*$G$6 -> 0 | P52: x | Q52: =Control!$D$107 -> 1e-12 | R52: = | S52: =O52*Q52 -> 0 | T52: x | U52: =Control!$D$101 -> 25 | V52: x | W52: =Control!$D$100 -> 0.2727272727 | X52: = | Y52: =S52*U$6*W$6 -> 0 | Z52: = | AA52: =Y52*C_CO2 -> 0
A54: 26 | B54: =B52+1 -> 2014 | D54: x | E54: =Control!$F$44 -> 0 | F54: x | G54: =Control!$D$106 -> 1000 | H54: x | I54: =Control!$F$45 -> 0 | J54: x | K54: =Control!$F$47 -> 0 | L54: x | M54: =Control!$F$46 -> 0 | N54: = | O54: =C54*$E$6*$I$6*$M$6*$K$6*$G$6 -> 0 | P54: x | Q54: =Control!$D$107 -> 1e-12 | R54: = | S54: =O54*Q54 -> 0 | T54: x | U54: =Control!$D$101 -> 25 | V54: x | W54: =Control!$D$100 -> 0.2727272727 | X54: = | Y54: =S54*U$6*W$6 -> 0 | Z54: = | AA54: =Y54*C_CO2 -> 0
A56: 27 | B56: =B54+1 -> 2015 | D56: x | E56: =Control!$F$44 -> 0 | F56: x | G56: =Control!$D$106 -> 1000 | H56: x | I56: =Control!$F$45 -> 0 | J56: x | K56: =Control!$F$47 -> 0 | L56: x | M56: =Control!$F$46 -> 0 | N56: = | O56: =C56*$E$6*$I$6*$M$6*$K$6*$G$6 -> 0 | P56: x | Q56: =Control!$D$107 -> 1e-12 | R56: = | S56: =O56*Q56 -> 0 | T56: x | U56: =Control!$D$101 -> 25 | V56: x | W56: =Control!$D$100 -> 0.2727272727 | X56: = | Y56: =S56*U$6*W$6 -> 0 | Z56: = | AA56: =Y56*C_CO2 -> 0
A58: 28 | B58: =B56+1 -> 2016 | D58: x | E58: =Control!$F$44 -> 0 | F58: x | G58: =Control!$D$106 -> 1000 | H58: x | I58: =Control!$F$45 -> 0 | J58: x | K58: =Control!$F$47 -> 0 | L58: x | M58: =Control!$F$46 -> 0 | N58: = | O58: =C58*$E$6*$I$6*$M$6*$K$6*$G$6 -> 0 | P58: x | Q58: =Control!$D$107 -> 1e-12 | R58: = | S58: =O58*Q58 -> 0 | T58: x | U58: =Control!$D$101 -> 25 | V58: x | W58: =Control!$D$100 -> 0.2727272727 | X58: = | Y58: =S58*U$6*W$6 -> 0 | Z58: = | AA58: =Y58*C_CO2 -> 0
A60: 29 | B60: =B58+1 -> 2017 | D60: x | E60: =Control!$F$44 -> 0 | F60: x | G60: =Control!$D$106 -> 1000 | H60: x | I60: =Control!$F$45 -> 0 | J60: x | K60: =Control!$F$47 -> 0 | L60: x | M60: =Control!$F$46 -> 0 | N60: = | O60: =C60*$E$6*$I$6*$M$6*$K$6*$G$6 -> 0 | P60: x | Q60: =Control!$D$107 -> 1e-12 | R60: = | S60: =O60*Q60 -> 0 | T60: x | U60: =Control!$D$101 -> 25 | V60: x | W60: =Control!$D$100 -> 0.2727272727 | X60: = | Y60: =S60*U$6*W$6 -> 0 | Z60: = | AA60: =Y60*C_CO2 -> 0
A62: 30 | B62: =B60+1 -> 2018 | D62: x | E62: =Control!$F$44 -> 0 | F62: x | G62: =Control!$D$106 -> 1000 | H62: x | I62: =Control!$F$45 -> 0 | J62: x | K62: =Control!$F$47 -> 0 | L62: x | M62: =Control!$F$46 -> 0 | N62: = | O62: =C62*$E$6*$I$6*$M$6*$K$6*$G$6 -> 0 | P62: x | Q62: =Control!$D$107 -> 1e-12 | R62: = | S62: =O62*Q62 -> 0 | T62: x | U62: =Control!$D$101 -> 25 | V62: x | W62: =Control!$D$100 -> 0.2727272727 | X62: = | Y62: =S62*U$6*W$6 -> 0 | Z62: = | AA62: =Y62*C_CO2 -> 0
A64: 31 | B64: =B62+1 -> 2019 | D64: x | E64: =Control!$F$44 -> 0 | F64: x | G64: =Control!$D$106 -> 1000 | H64: x | I64: =Control!$F$45 -> 0 | J64: x | K64: =Control!$F$47 -> 0 | L64: x | M64: =Control!$F$46 -> 0 | N64: = | O64: =C64*$E$6*$I$6*$M$6*$K$6*$G$6 -> 0 | P64: x | Q64: =Control!$D$107 -> 1e-12 | R64: = | S64: =O64*Q64 -> 0 | T64: x | U64: =Control!$D$101 -> 25 | V64: x | W64: =Control!$D$100 -> 0.2727272727 | X64: = | Y64: =S64*U$6*W$6 -> 0 | Z64: = | AA64: =Y64*C_CO2 -> 0
A66: 32 | B66: =B64+1 -> 2020 | D66: x | E66: =Control!$F$44 -> 0 | F66: x | G66: =Control!$D$106 -> 1000 | H66: x | I66: =Control!$F$45 -> 0 | J66: x | K66: =Control!$F$47 -> 0 | L66: x | M66: =Control!$F$46 -> 0 | N66: = | O66: =C66*$E$6*$I$6*$M$6*$K$6*$G$6 -> 0 | P66: x | Q66: =Control!$D$107 -> 1e-12 | R66: = | S66: =O66*Q66 -> 0 | T66: x | U66: =Control!$D$101 -> 25 | V66: x | W66: =Control!$D$100 -> 0.2727272727 | X66: = | Y66: =S66*U$6*W$6 -> 0 | Z66: = | AA66: =Y66*C_CO2 -> 0

Sheet Ind WW Poultry
B1: ="9. "&SelectedState & " Industrial Wastewater Methane - Poultry" -> 9. Select a state . . . Industrial Wastewater Methane - Poultry
C3: Production Processed | E3: WW Outflow | G3: Unit Conversion | I3: COD | K3: Emission Factor | M3: COD Degraded | O3: Emissions | Q3: Unit Conversion | S3: Emissions | U3: CH4 GWP | W3: C/CO2 | Y3: Emissions | AA3: Emissions
C4: (metric tons) | E4: (m3/metric ton) | G4: (l/m3) | I4: (g COD/l) | K4: (g CH4/g COD) | M4: (percent) | O4: (g CH4) | Q4: (g/Tg) | S4: (Tg or MMT CH4) | U4: (CO2 Eq.) | Y4: (MMTCE) | AA4: (MMTCO2E)
A6: =C6*1000 -> 0 | B6: 1990 | D6: x | E6: =Control!$F$50 -> 0 | F6: x | G6: =Control!$D$106 -> 1000 | H6: x | I6: =Control!$F$51 -> 0 | J6: x | K6: =Control!$F$53 -> 0 | L6: x | M6: =Control!$F$52 -> 0 | N6: = | O6: =C6*$E$6*$I$6*$M$6*$K$6*$G$6 -> 0 | P6: x | Q6: =Control!$D$107 -> 1e-12 | R6: = | S6: =O6*Q6 -> 0 | T6: x | U6: =Control!$D$101 -> 25 | V6: x | W6: =Control!$D$100 -> 0.2727272727 | X6: = | Y6: =S6*U$6*W$6 -> 0 | Z6: = | AA6: =Y6*C_CO2 -> 0
A8: =C8*1000 -> 0 | B8: =B6+1 -> 1991 | D8: x | E8: =Control!$F$50 -> 0 | F8: x | G8: =Control!$D$106 -> 1000 | H8: x | I8: =Control!$F$51 -> 0 | J8: x | K8: =Control!$F$53 -> 0 | L8: x | M8: =Control!$F$52 -> 0 | N8: = | O8: =C8*$E$6*$I$6*$M$6*$K$6*$G$6 -> 0 | P8: x | Q8: =Control!$D$107 -> 1e-12 | R8: = | S8: =O8*Q8 -> 0 | T8: x | U8: =Control!$D$101 -> 25 | V8: x | W8: =Control!$D$100 -> 0.2727272727 | X8: = | Y8: =S8*U$6*W$6 -> 0 | Z8: = | AA8: =Y8*C_CO2 -> 0
A10: =C10*1000 -> 0 | B10: =B8+1 -> 1992 | D10: x | E10: =Control!$F$50 -> 0 | F10: x | G10: =Control!$D$106 -> 1000 | H10: x | I10: =Control!$F$51 -> 0 | J10: x | K10: =Control!$F$53 -> 0 | L10: x | M10: =Control!$F$52 -> 0 | N10: = | O10: =C10*$E$6*$I$6*$M$6*$K$6*$G$6 -> 0 | P10: x | Q10: =Control!$D$107 -> 1e-12 | R10: = | S10: =O10*Q10 -> 0 | T10: x | U10: =Control!$D$101 -> 25 | V10: x | W10: =Control!$D$100 -> 0.2727272727 | X10: = | Y10: =S10*U$6*W$6 -> 0 | Z10: = | AA10: =Y10*C_CO2 -> 0
A12: =C12*1000 -> 0 | B12: =B10+1 -> 1993 | D12: x | E12: =Control!$F$50 -> 0 | F12: x | G12: =Control!$D$106 -> 1000 | H12: x | I12: =Control!$F$51 -> 0 | J12: x | K12: =Control!$F$53 -> 0 | L12: x | M12: =Control!$F$52 -> 0 | N12: = | O12: =C12*$E$6*$I$6*$M$6*$K$6*$G$6 -> 0 | P12: x | Q12: =Control!$D$107 -> 1e-12 | R12: = | S12: =O12*Q12 -> 0 | T12: x | U12: =Control!$D$101 -> 25 | V12: x | W12: =Control!$D$100 -> 0.2727272727 | X12: = | Y12: =S12*U$6*W$6 -> 0 | Z12: = | AA12: =Y12*C_CO2 -> 0
A14: =C14*1000 -> 0 | B14: =B12+1 -> 1994 | D14: x | E14: =Control!$F$50 -> 0 | F14: x | G14: =Control!$D$106 -> 1000 | H14: x | I14: =Control!$F$51 -> 0 | J14: x | K14: =Control!$F$53 -> 0 | L14: x | M14: =Control!$F$52 -> 0 | N14: = | O14: =C14*$E$6*$I$6*$M$6*$K$6*$G$6 -> 0 | P14: x | Q14: =Control!$D$107 -> 1e-12 | R14: = | S14: =O14*Q14 -> 0 | T14: x | U14: =Control!$D$101 -> 25 | V14: x | W14: =Control!$D$100 -> 0.2727272727 | X14: = | Y14: =S14*U$6*W$6 -> 0 | Z14: = | AA14: =Y14*C_CO2 -> 0
A16: =C16*1000 -> 0 | B16: =B14+1 -> 1995 | D16: x | E16: =Control!$F$50 -> 0 | F16: x | G16: =Control!$D$106 -> 1000 | H16: x | I16: =Control!$F$51 -> 0 | J16: x | K16: =Control!$F$53 -> 0 | L16: x | M16: =Control!$F$52 -> 0 | N16: = | O16: =C16*$E$6*$I$6*$M$6*$K$6*$G$6 -> 0 | P16: x | Q16: =Control!$D$107 -> 1e-12 | R16: = | S16: =O16*Q16 -> 0 | T16: x | U16: =Control!$D$101 -> 25 | V16: x | W16: =Control!$D$100 -> 0.2727272727 | X16: = | Y16: =S16*U$6*W$6 -> 0 | Z16: = | AA16: =Y16*C_CO2 -> 0
A18: =C18*1000 -> 0 | B18: =B16+1 -> 1996 | D18: x | E18: =Control!$F$50 -> 0 | F18: x | G18: =Control!$D$106 -> 1000 | H18: x | I18: =Control!$F$51 -> 0 | J18: x | K18: =Control!$F$53 -> 0 | L18: x | M18: =Control!$F$52 -> 0 | N18: = | O18: =C18*$E$6*$I$6*$M$6*$K$6*$G$6 -> 0 | P18: x | Q18: =Control!$D$107 -> 1e-12 | R18: = | S18: =O18*Q18 -> 0 | T18: x | U18: =Control!$D$101 -> 25 | V18: x | W18: =Control!$D$100 -> 0.2727272727 | X18: = | Y18: =S18*U$6*W$6 -> 0 | Z18: = | AA18: =Y18*C_CO2 -> 0
A20: =C20*1000 -> 0 | B20: =B18+1 -> 1997 | D20: x | E20: =Control!$F$50 -> 0 | F20: x | G20: =Control!$D$106 -> 1000 | H20: x | I20: =Control!$F$51 -> 0 | J20: x | K20: =Control!$F$53 -> 0 | L20: x | M20: =Control!$F$52 -> 0 | N20: = | O20: =C20*$E$6*$I$6*$M$6*$K$6*$G$6 -> 0 | P20: x | Q20: =Control!$D$107 -> 1e-12 | R20: = | S20: =O20*Q20 -> 0 | T20: x | U20: =Control!$D$101 -> 25 | V20: x | W20: =Control!$D$100 -> 0.2727272727 | X20: = | Y20: =S20*U$6*W$6 -> 0 | Z20: = | AA20: =Y20*C_CO2 -> 0
A22: =C22*1000 -> 0 | B22: =B20+1 -> 1998 | D22: x | E22: =Control!$F$50 -> 0 | F22: x | G22: =Control!$D$106 -> 1000 | H22: x | I22: =Control!$F$51 -> 0 | J22: x | K22: =Control!$F$53 -> 0 | L22: x | M22: =Control!$F$52 -> 0 | N22: = | O22: =C22*$E$6*$I$6*$M$6*$K$6*$G$6 -> 0 | P22: x | Q22: =Control!$D$107 -> 1e-12 | R22: = | S22: =O22*Q22 -> 0 | T22: x | U22: =Control!$D$101 -> 25 | V22: x | W22: =Control!$D$100 -> 0.2727272727 | X22: = | Y22: =S22*U$6*W$6 -> 0 | Z22: = | AA22: =Y22*C_CO2 -> 0
A24: =C24*1000 -> 0 | B24: =B22+1 -> 1999 | D24: x | E24: =Control!$F$50 -> 0 | F24: x | G24: =Control!$D$106 -> 1000 | H24: x | I24: =Control!$F$51 -> 0 | J24: x | K24: =Control!$F$53 -> 0 | L24: x | M24: =Control!$F$52 -> 0 | N24: = | O24: =C24*$E$6*$I$6*$M$6*$K$6*$G$6 -> 0 | P24: x | Q24: =Control!$D$107 -> 1e-12 | R24: = | S24: =O24*Q24 -> 0 | T24: x | U24: =Control!$D$101 -> 25 | V24: x | W24: =Control!$D$100 -> 0.2727272727 | X24: = | Y24: =S24*U$6*W$6 -> 0 | Z24: = | AA24: =Y24*C_CO2 -> 0
A26: =C26*1000 -> 0 | B26: =B24+1 -> 2000 | D26: x | E26: =Control!$F$50 -> 0 | F26: x | G26: =Control!$D$106 -> 1000 | H26: x | I26: =Control!$F$51 -> 0 | J26: x | K26: =Control!$F$53 -> 0 | L26: x | M26: =Control!$F$52 -> 0 | N26: = | O26: =C26*$E$6*$I$6*$M$6*$K$6*$G$6 -> 0 | P26: x | Q26: =Control!$D$107 -> 1e-12 | R26: = | S26: =O26*Q26 -> 0 | T26: x | U26: =Control!$D$101 -> 25 | V26: x | W26: =Control!$D$100 -> 0.2727272727 | X26: = | Y26: =S26*U$6*W$6 -> 0 | Z26: = | AA26: =Y26*C_CO2 -> 0
A28: =C28*1000 -> 0 | B28: =B26+1 -> 2001 | D28: x | E28: =Control!$F$50 -> 0 | F28: x | G28: =Control!$D$106 -> 1000 | H28: x | I28: =Control!$F$51 -> 0 | J28: x | K28: =Control!$F$53 -> 0 | L28: x | M28: =Control!$F$52 -> 0 | N28: = | O28: =C28*$E$6*$I$6*$M$6*$K$6*$G$6 -> 0 | P28: x | Q28: =Control!$D$107 -> 1e-12 | R28: = | S28: =O28*Q28 -> 0 | T28: x | U28: =Control!$D$101 -> 25 | V28: x | W28: =Control!$D$100 -> 0.2727272727 | X28: = | Y28: =S28*U$6*W$6 -> 0 | Z28: = | AA28: =Y28*C_CO2 -> 0
A30: =C30*1000 -> 0 | B30: =B28+1 -> 2002 | D30: x | E30: =Control!$F$50 -> 0 | F30: x | G30: =Control!$D$106 -> 1000 | H30: x | I30: =Control!$F$51 -> 0 | J30: x | K30: =Control!$F$53 -> 0 | L30: x | M30: =Control!$F$52 -> 0 | N30: = | O30: =C30*$E$6*$I$6*$M$6*$K$6*$G$6 -> 0 | P30: x | Q30: =Control!$D$107 -> 1e-12 | R30: = | S30: =O30*Q30 -> 0 | T30: x | U30: =Control!$D$101 -> 25 | V30: x | W30: =Control!$D$100 -> 0.2727272727 | X30: = | Y30: =S30*U$6*W$6 -> 0 | Z30: = | AA30: =Y30*C_CO2 -> 0
A32: =C32*1000 -> 0 | B32: =B30+1 -> 2003 | D32: x | E32: =Control!$F$50 -> 0 | F32: x | G32: =Control!$D$106 -> 1000 | H32: x | I32: =Control!$F$51 -> 0 | J32: x | K32: =Control!$F$53 -> 0 | L32: x | M32: =Control!$F$52 -> 0 | N32: = | O32: =C32*$E$6*$I$6*$M$6*$K$6*$G$6 -> 0 | P32: x | Q32: =Control!$D$107 -> 1e-12 | R32: = | S32: =O32*Q32 -> 0 | T32: x | U32: =Control!$D$101 -> 25 | V32: x | W32: =Control!$D$100 -> 0.2727272727 | X32: = | Y32: =S32*U$6*W$6 -> 0 | Z32: = | AA32: =Y32*C_CO2 -> 0
A34: =C34*1000 -> 0 | B34: =B32+1 -> 2004 | D34: x | E34: =Control!$F$50 -> 0 | F34: x | G34: =Control!$D$106 -> 1000 | H34: x | I34: =Control!$F$51 -> 0 | J34: x | K34: =Control!$F$53 -> 0 | L34: x | M34: =Control!$F$52 -> 0 | N34: = | O34: =C34*$E$6*$I$6*$M$6*$K$6*$G$6 -> 0 | P34: x | Q34: =Control!$D$107 -> 1e-12 | R34: = | S34: =O34*Q34 -> 0 | T34: x | U34: =Control!$D$101 -> 25 | V34: x | W34: =Control!$D$100 -> 0.2727272727 | X34: = | Y34: =S34*U$6*W$6 -> 0 | Z34: = | AA34: =Y34*C_CO2 -> 0
A36: =C36*1000 -> 0 | B36: =B34+1 -> 2005 | D36: x | E36: =Control!$F$50 -> 0 | F36: x | G36: =Control!$D$106 -> 1000 | H36: x | I36: =Control!$F$51 -> 0 | J36: x | K36: =Control!$F$53 -> 0 | L36: x | M36: =Control!$F$52 -> 0 | N36: = | O36: =C36*$E$6*$I$6*$M$6*$K$6*$G$6 -> 0 | P36: x | Q36: =Control!$D$107 -> 1e-12 | R36: = | S36: =O36*Q36 -> 0 | T36: x | U36: =Control!$D$101 -> 25 | V36: x | W36: =Control!$D$100 -> 0.2727272727 | X36: = | Y36: =S36*U$6*W$6 -> 0 | Z36: = | AA36: =Y36*C_CO2 -> 0
A38: =C38*1000 -> 0 | B38: =B36+1 -> 2006 | D38: x | E38: =Control!$F$50 -> 0 | F38: x | G38: =Control!$D$106 -> 1000 | H38: x | I38: =Control!$F$51 -> 0 | J38: x | K38: =Control!$F$53 -> 0 | L38: x | M38: =Control!$F$52 -> 0 | N38: = | O38: =C38*$E$6*$I$6*$M$6*$K$6*$G$6 -> 0 | P38: x | Q38: =Control!$D$107 -> 1e-12 | R38: = | S38: =O38*Q38 -> 0 | T38: x | U38: =Control!$D$101 -> 25 | V38: x | W38: =Control!$D$100 -> 0.2727272727 | X38: = | Y38: =S38*U$6*W$6 -> 0 | Z38: = | AA38: =Y38*C_CO2 -> 0
A40: =C40*1000 -> 0 | B40: =B38+1 -> 2007 | D40: x | E40: =Control!$F$50 -> 0 | F40: x | G40: =Control!$D$106 -> 1000 | H40: x | I40: =Control!$F$51 -> 0 | J40: x | K40: =Control!$F$53 -> 0 | L40: x | M40: =Control!$F$52 -> 0 | N40: = | O40: =C40*$E$6*$I$6*$M$6*$K$6*$G$6 -> 0 | P40: x | Q40: =Control!$D$107 -> 1e-12 | R40: = | S40: =O40*Q40 -> 0 | T40: x | U40: =Control!$D$101 -> 25 | V40: x | W40: =Control!$D$100 -> 0.2727272727 | X40: = | Y40: =S40*U$6*W$6 -> 0 | Z40: = | AA40: =Y40*C_CO2 -> 0
A42: =C42*1000 -> 0 | B42: =B40+1 -> 2008 | D42: x | E42: =Control!$F$50 -> 0 | F42: x | G42: =Control!$D$106 -> 1000 | H42: x | I42: =Control!$F$51 -> 0 | J42: x | K42: =Control!$F$53 -> 0 | L42: x | M42: =Control!$F$52 -> 0 | N42: = | O42: =C42*$E$6*$I$6*$M$6*$K$6*$G$6 -> 0 | P42: x | Q42: =Control!$D$107 -> 1e-12 | R42: = | S42: =O42*Q42 -> 0 | T42: x | U42: =Control!$D$101 -> 25 | V42: x | W42: =Control!$D$100 -> 0.2727272727 | X42: = | Y42: =S42*U$6*W$6 -> 0 | Z42: = | AA42: =Y42*C_CO2 -> 0
A44: =C44*1000 -> 0 | B44: =B42+1 -> 2009 | D44: x | E44: =Control!$F$50 -> 0 | F44: x | G44: =Control!$D$106 -> 1000 | H44: x | I44: =Control!$F$51 -> 0 | J44: x | K44: =Control!$F$53 -> 0 | L44: x | M44: =Control!$F$52 -> 0 | N44: = | O44: =C44*$E$6*$I$6*$M$6*$K$6*$G$6 -> 0 | P44: x | Q44: =Control!$D$107 -> 1e-12 | R44: = | S44: =O44*Q44 -> 0 | T44: x | U44: =Control!$D$101 -> 25 | V44: x | W44: =Control!$D$100 -> 0.2727272727 | X44: = | Y44: =S44*U$6*W$6 -> 0 | Z44: = | AA44: =Y44*C_CO2 -> 0
A46: =C46*1000 -> 0 | B46: =B44+1 -> 2010 | D46: x | E46: =Control!$F$50 -> 0 | F46: x | G46: =Control!$D$106 -> 1000 | H46: x | I46: =Control!$F$51 -> 0 | J46: x | K46: =Control!$F$53 -> 0 | L46: x | M46: =Control!$F$52 -> 0 | N46: = | O46: =C46*$E$6*$I$6*$M$6*$K$6*$G$6 -> 0 | P46: x | Q46: =Control!$D$107 -> 1e-12 | R46: = | S46: =O46*Q46 -> 0 | T46: x | U46: =Control!$D$101 -> 25 | V46: x | W46: =Control!$D$100 -> 0.2727272727 | X46: = | Y46: =S46*U$6*W$6 -> 0 | Z46: = | AA46: =Y46*C_CO2 -> 0
A48: =C48*1000 -> 0 | B48: =B46+1 -> 2011 | D48: x | E48: =Control!$F$50 -> 0 | F48: x | G48: =Control!$D$106 -> 1000 | H48: x | I48: =Control!$F$51 -> 0 | J48: x | K48: =Control!$F$53 -> 0 | L48: x | M48: =Control!$F$52 -> 0 | N48: = | O48: =C48*$E$6*$I$6*$M$6*$K$6*$G$6 -> 0 | P48: x | Q48: =Control!$D$107 -> 1e-12 | R48: = | S48: =O48*Q48 -> 0 | T48: x | U48: =Control!$D$101 -> 25 | V48: x | W48: =Control!$D$100 -> 0.2727272727 | X48: = | Y48: =S48*U$6*W$6 -> 0 | Z48: = | AA48: =Y48*C_CO2 -> 0
A50: =C50*1000 -> 0 | B50: =B48+1 -> 2012 | D50: x | E50: =Control!$F$50 -> 0 | F50: x | G50: =Control!$D$106 -> 1000 | H50: x | I50: =Control!$F$51 -> 0 | J50: x | K50: =Control!$F$53 -> 0 | L50: x | M50: =Control!$F$52 -> 0 | N50: = | O50: =C50*$E$6*$I$6*$M$6*$K$6*$G$6 -> 0 | P50: x | Q50: =Control!$D$107 -> 1e-12 | R50: = | S50: =O50*Q50 -> 0 | T50: x | U50: =Control!$D$101 -> 25 | V50: x | W50: =Control!$D$100 -> 0.2727272727 | X50: = | Y50: =S50*U$6*W$6 -> 0 | Z50: = | AA50: =Y50*C_CO2 -> 0
A52: =C52*1000 -> 0 | B52: =B50+1 -> 2013 | D52: x | E52: =Control!$F$50 -> 0 | F52: x | G52: =Control!$D$106 -> 1000 | H52: x | I52: =Control!$F$51 -> 0 | J52: x | K52: =Control!$F$53 -> 0 | L52: x | M52: =Control!$F$52 -> 0 | N52: = | O52: =C52*$E$6*$I$6*$M$6*$K$6*$G$6 -> 0 | P52: x | Q52: =Control!$D$107 -> 1e-12 | R52: = | S52: =O52*Q52 -> 0 | T52: x | U52: =Control!$D$101 -> 25 | V52: x | W52: =Control!$D$100 -> 0.2727272727 | X52: = | Y52: =S52*U$6*W$6 -> 0 | Z52: = | AA52: =Y52*C_CO2 -> 0
A54: =C54*1000 -> 0 | B54: =B52+1 -> 2014 | D54: x | E54: =Control!$F$50 -> 0 | F54: x | G54: =Control!$D$106 -> 1000 | H54: x | I54: =Control!$F$51 -> 0 | J54: x | K54: =Control!$F$53 -> 0 | L54: x | M54: =Control!$F$52 -> 0 | N54: = | O54: =C54*$E$6*$I$6*$M$6*$K$6*$G$6 -> 0 | P54: x | Q54: =Control!$D$107 -> 1e-12 | R54: = | S54: =O54*Q54 -> 0 | T54: x | U54: =Control!$D$101 -> 25 | V54: x | W54: =Control!$D$100 -> 0.2727272727 | X54: = | Y54: =S54*U$6*W$6 -> 0 | Z54: = | AA54: =Y54*C_CO2 -> 0
A56: =C56*1000 -> 0 | B56: =B54+1 -> 2015 | D56: x | E56: =Control!$F$50 -> 0 | F56: x | G56: =Control!$D$106 -> 1000 | H56: x | I56: =Control!$F$51 -> 0 | J56: x | K56: =Control!$F$53 -> 0 | L56: x | M56: =Control!$F$52 -> 0 | N56: = | O56: =C56*$E$6*$I$6*$M$6*$K$6*$G$6 -> 0 | P56: x | Q56: =Control!$D$107 -> 1e-12 | R56: = | S56: =O56*Q56 -> 0 | T56: x | U56: =Control!$D$101 -> 25 | V56: x | W56: =Control!$D$100 -> 0.2727272727 | X56: = | Y56: =S56*U$6*W$6 -> 0 | Z56: = | AA56: =Y56*C_CO2 -> 0
A58: =C58*1000 -> 0 | B58: =B56+1 -> 2016 | D58: x | E58: =Control!$F$50 -> 0 | F58: x | G58: =Control!$D$106 -> 1000 | H58: x | I58: =Control!$F$51 -> 0 | J58: x | K58: =Control!$F$53 -> 0 | L58: x | M58: =Control!$F$52 -> 0 | N58: = | O58: =C58*$E$6*$I$6*$M$6*$K$6*$G$6 -> 0 | P58: x | Q58: =Control!$D$107 -> 1e-12 | R58: = | S58: =O58*Q58 -> 0 | T58: x | U58: =Control!$D$101 -> 25 | V58: x | W58: =Control!$D$100 -> 0.2727272727 | X58: = | Y58: =S58*U$6*W$6 -> 0 | Z58: = | AA58: =Y58*C_CO2 -> 0
A60: =C60*1000 -> 0 | B60: =B58+1 -> 2017 | D60: x | E60: =Control!$F$50 -> 0 | F60: x | G60: =Control!$D$106 -> 1000 | H60: x | I60: =Control!$F$51 -> 0 | J60: x | K60: =Control!$F$53 -> 0 | L60: x | M60: =Control!$F$52 -> 0 | N60: = | O60: =C60*$E$6*$I$6*$M$6*$K$6*$G$6 -> 0 | P60: x | Q60: =Control!$D$107 -> 1e-12 | R60: = | S60: =O60*Q60 -> 0 | T60: x | U60: =Control!$D$101 -> 25 | V60: x | W60: =Control!$D$100 -> 0.2727272727 | X60: = | Y60: =S60*U$6*W$6 -> 0 | Z60: = | AA60: =Y60*C_CO2 -> 0
A62: =C62*1000 -> 0 | B62: =B60+1 -> 2018 | D62: x | E62: =Control!$F$50 -> 0 | F62: x | G62: =Control!$D$106 -> 1000 | H62: x | I62: =Control!$F$51 -> 0 | J62: x | K62: =Control!$F$53 -> 0 | L62: x | M62: =Control!$F$52 -> 0 | N62: = | O62: =C62*$E$6*$I$6*$M$6*$K$6*$G$6 -> 0 | P62: x | Q62: =Control!$D$107 -> 1e-12 | R62: = | S62: =O62*Q62 -> 0 | T62: x | U62: =Control!$D$101 -> 25 | V62: x | W62: =Control!$D$100 -> 0.2727272727 | X62: = | Y62: =S62*U$6*W$6 -> 0 | Z62: = | AA62: =Y62*C_CO2 -> 0
A64: =C64*1000 -> 0 | B64: =B62+1 -> 2019 | D64: x | E64: =Control!$F$50 -> 0 | F64: x | G64: =Control!$D$106 -> 1000 | H64: x | I64: =Control!$F$51 -> 0 | J64: x | K64: =Control!$F$53 -> 0 | L64: x | M64: =Control!$F$52 -> 0 | N64: = | O64: =C64*$E$6*$I$6*$M$6*$K$6*$G$6 -> 0 | P64: x | Q64: =Control!$D$107 -> 1e-12 | R64: = | S64: =O64*Q64 -> 0 | T64: x | U64: =Control!$D$101 -> 25 | V64: x | W64: =Control!$D$100 -> 0.2727272727 | X64: = | Y64: =S64*U$6*W$6 -> 0 | Z64: = | AA64: =Y64*C_CO2 -> 0
A66: =C66*1000 -> 0 | B66: =B64+1 -> 2020 | D66: x | E66: =Control!$F$50 -> 0 | F66: x | G66: =Control!$D$106 -> 1000 | H66: x | I66: =Control!$F$51 -> 0 | J66: x | K66: =Control!$F$53 -> 0 | L66: x | M66: =Control!$F$52 -> 0 | N66: = | O66: =C66*$E$6*$I$6*$M$6*$K$6*$G$6 -> 0 | P66: x | Q66: =Control!$D$107 -> 1e-12 | R66: = | S66: =O66*Q66 -> 0 | T66: x | U66: =Control!$D$101 -> 25 | V66: x | W66: =Control!$D$100 -> 0.2727272727 | X66: = | Y66: =S66*U$6*W$6 -> 0 | Z66: = | AA66: =Y66*C_CO2 -> 0

Sheet Ind WW P&P
B1: ="10. "&SelectedState & " Industrial Wastewater Methane - Pulp & Paper" -> 10. Select a state . . . Industrial Wastewater Methane - Pulp & Paper
D3: Production Processed (metric tons) | H3: WW Outflow | J3: Unit Conversion | L3: BOD Degraded | N3: Emission Factor | P3: TA | R3: Emissions | T3: Unit Conversion | V3: Emissions | X3: CH4 GWP | Z3: C/CO2 | AB3: Emissions | AD3: Emissions
D4: Woodpulp | F4: Paper & Paperboard | H4: (m3/metric ton) | J4: (l/m3) | L4: (g BOD / l) | N4: (g CH4/g BOD) | P4: (percent) | R4: (g CH4) | T4: (g/Tg) | V4: (Tg or MMT CH4) | X4: (CO2 Eq.) | AB4: (MMTCE) | AD4: (MMTCO2E)
B6: 1990 | C6: ( | E6: + | G6: ) x | H6: =Control!$F$57 -> 0 | I6: x | J6: =Control!$D$106 -> 1000 | K6: x | L6: =Control!$F$58 -> 0 | M6: x | N6: =Control!$F$60 -> 0 | O6: x | P6: =Control!$F$59 -> 0 | Q6: = | R6: =(D6+F6)*$H$6*$J$6*$L$6*$P$6*$N$6 -> 0 | S6: x | T6: =Control!$D$107 -> 1e-12 | U6: = | V6: =R6*T6 -> 0 | W6: x | X6: =Control!$D$101 -> 25 | Y6: x | Z6: =Control!$D$100 -> 0.2727272727 | AA6: = | AB6: =V6*X$6*Z$6 -> 0 | AC6: = | AD6: =AB6*C_CO2 -> 0
B8: =B6+1 -> 1991 | C8: ( | E8: + | G8: ) x | H8: =Control!$F$57 -> 0 | I8: x | J8: =Control!$D$106 -> 1000 | K8: x | L8: =Control!$F$58 -> 0 | M8: x | N8: =Control!$F$60 -> 0 | O8: x | P8: =Control!$F$59 -> 0 | Q8: = | R8: =(D8+F8)*$H$6*$J$6*$L$6*$P$6*$N$6 -> 0 | S8: x | T8: =Control!$D$107 -> 1e-12 | U8: = | V8: =R8*T8 -> 0 | W8: x | X8: =Control!$D$101 -> 25 | Y8: x | Z8: =Control!$D$100 -> 0.2727272727 | AA8: = | AB8: =V8*X$6*Z$6 -> 0 | AC8: = | AD8: =AB8*C_CO2 -> 0
B10: =B8+1 -> 1992 | C10: ( | E10: + | G10: ) x | H10: =Control!$F$57 -> 0 | I10: x | J10: =Control!$D$106 -> 1000 | K10: x | L10: =Control!$F$58 -> 0 | M10: x | N10: =Control!$F$60 -> 0 | O10: x | P10: =Control!$F$59 -> 0 | Q10: = | R10: =(D10+F10)*$H$6*$J$6*$L$6*$P$6*$N$6 -> 0 | S10: x | T10: =Control!$D$107 -> 1e-12 | U10: = | V10: =R10*T10 -> 0 | W10: x | X10: =Control!$D$101 -> 25 | Y10: x | Z10: =Control!$D$100 -> 0.2727272727 | AA10: = | AB10: =V10*X$6*Z$6 -> 0 | AC10: = | AD10: =AB10*C_CO2 -> 0
B12: =B10+1 -> 1993 | C12: ( | E12: + | G12: ) x | H12: =Control!$F$57 -> 0 | I12: x | J12: =Control!$D$106 -> 1000 | K12: x | L12: =Control!$F$58 -> 0 | M12: x | N12: =Control!$F$60 -> 0 | O12: x | P12: =Control!$F$59 -> 0 | Q12: = | R12: =(D12+F12)*$H$6*$J$6*$L$6*$P$6*$N$6 -> 0 | S12: x | T12: =Control!$D$107 -> 1e-12 | U12: = | V12: =R12*T12 -> 0 | W12: x | X12: =Control!$D$101 -> 25 | Y12: x | Z12: =Control!$D$100 -> 0.2727272727 | AA12: = | AB12: =V12*X$6*Z$6 -> 0 | AC12: = | AD12: =AB12*C_CO2 -> 0
B14: =B12+1 -> 1994 | C14: ( | E14: + | G14: ) x | H14: =Control!$F$57 -> 0 | I14: x | J14: =Control!$D$106 -> 1000 | K14: x | L14: =Control!$F$58 -> 0 | M14: x | N14: =Control!$F$60 -> 0 | O14: x | P14: =Control!$F$59 -> 0 | Q14: = | R14: =(D14+F14)*$H$6*$J$6*$L$6*$P$6*$N$6 -> 0 | S14: x | T14: =Control!$D$107 -> 1e-12 | U14: = | V14: =R14*T14 -> 0 | W14: x | X14: =Control!$D$101 -> 25 | Y14: x | Z14: =Control!$D$100 -> 0.2727272727 | AA14: = | AB14: =V14*X$6*Z$6 -> 0 | AC14: = | AD14: =AB14*C_CO2 -> 0
B16: =B14+1 -> 1995 | C16: ( | E16: + | G16: ) x | H16: =Control!$F$57 -> 0 | I16: x | J16: =Control!$D$106 -> 1000 | K16: x | L16: =Control!$F$58 -> 0 | M16: x | N16: =Control!$F$60 -> 0 | O16: x | P16: =Control!$F$59 -> 0 | Q16: = | R16: =(D16+F16)*$H$6*$J$6*$L$6*$P$6*$N$6 -> 0 | S16: x | T16: =Control!$D$107 -> 1e-12 | U16: = | V16: =R16*T16 -> 0 | W16: x | X16: =Control!$D$101 -> 25 | Y16: x | Z16: =Control!$D$100 -> 0.2727272727 | AA16: = | AB16: =V16*X$6*Z$6 -> 0 | AC16: = | AD16: =AB16*C_CO2 -> 0
B18: =B16+1 -> 1996 | C18: ( | E18: + | G18: ) x | H18: =Control!$F$57 -> 0 | I18: x | J18: =Control!$D$106 -> 1000 | K18: x | L18: =Control!$F$58 -> 0 | M18: x | N18: =Control!$F$60 -> 0 | O18: x | P18: =Control!$F$59 -> 0 | Q18: = | R18: =(D18+F18)*$H$6*$J$6*$L$6*$P$6*$N$6 -> 0 | S18: x | T18: =Control!$D$107 -> 1e-12 | U18: = | V18: =R18*T18 -> 0 | W18: x | X18: =Control!$D$101 -> 25 | Y18: x | Z18: =Control!$D$100 -> 0.2727272727 | AA18: = | AB18: =V18*X$6*Z$6 -> 0 | AC18: = | AD18: =AB18*C_CO2 -> 0
B20: =B18+1 -> 1997 | C20: ( | E20: + | G20: ) x | H20: =Control!$F$57 -> 0 | I20: x | J20: =Control!$D$106 -> 1000 | K20: x | L20: =Control!$F$58 -> 0 | M20: x | N20: =Control!$F$60 -> 0 | O20: x | P20: =Control!$F$59 -> 0 | Q20: = | R20: =(D20+F20)*$H$6*$J$6*$L$6*$P$6*$N$6 -> 0 | S20: x | T20: =Control!$D$107 -> 1e-12 | U20: = | V20: =R20*T20 -> 0 | W20: x | X20: =Control!$D$101 -> 25 | Y20: x | Z20: =Control!$D$100 -> 0.2727272727 | AA20: = | AB20: =V20*X$6*Z$6 -> 0 | AC20: = | AD20: =AB20*C_CO2 -> 0
B22: =B20+1 -> 1998 | C22: ( | E22: + | G22: ) x | H22: =Control!$F$57 -> 0 | I22: x | J22: =Control!$D$106 -> 1000 | K22: x | L22: =Control!$F$58 -> 0 | M22: x | N22: =Control!$F$60 -> 0 | O22: x | P22: =Control!$F$59 -> 0 | Q22: = | R22: =(D22+F22)*$H$6*$J$6*$L$6*$P$6*$N$6 -> 0 | S22: x | T22: =Control!$D$107 -> 1e-12 | U22: = | V22: =R22*T22 -> 0 | W22: x | X22: =Control!$D$101 -> 25 | Y22: x | Z22: =Control!$D$100 -> 0.2727272727 | AA22: = | AB22: =V22*X$6*Z$6 -> 0 | AC22: = | AD22: =AB22*C_CO2 -> 0
B24: =B22+1 -> 1999 | C24: ( | E24: + | G24: ) x | H24: =Control!$F$57 -> 0 | I24: x | J24: =Control!$D$106 -> 1000 | K24: x | L24: =Control!$F$58 -> 0 | M24: x | N24: =Control!$F$60 -> 0 | O24: x | P24: =Control!$F$59 -> 0 | Q24: = | R24: =(D24+F24)*$H$6*$J$6*$L$6*$P$6*$N$6 -> 0 | S24: x | T24: =Control!$D$107 -> 1e-12 | U24: = | V24: =R24*T24 -> 0 | W24: x | X24: =Control!$D$101 -> 25 | Y24: x | Z24: =Control!$D$100 -> 0.2727272727 | AA24: = | AB24: =V24*X$6*Z$6 -> 0 | AC24: = | AD24: =AB24*C_CO2 -> 0
B26: =B24+1 -> 2000 | C26: ( | E26: + | G26: ) x | H26: =Control!$F$57 -> 0 | I26: x | J26: =Control!$D$106 -> 1000 | K26: x | L26: =Control!$F$58 -> 0 | M26: x | N26: =Control!$F$60 -> 0 | O26: x | P26: =Control!$F$59 -> 0 | Q26: = | R26: =(D26+F26)*$H$6*$J$6*$L$6*$P$6*$N$6 -> 0 | S26: x | T26: =Control!$D$107 -> 1e-12 | U26: = | V26: =R26*T26 -> 0 | W26: x | X26: =Control!$D$101 -> 25 | Y26: x | Z26: =Control!$D$100 -> 0.2727272727 | AA26: = | AB26: =V26*X$6*Z$6 -> 0 | AC26: = | AD26: =AB26*C_CO2 -> 0
B28: =B26+1 -> 2001 | C28: ( | E28: + | G28: ) x | H28: =Control!$F$57 -> 0 | I28: x | J28: =Control!$D$106 -> 1000 | K28: x | L28: =Control!$F$58 -> 0 | M28: x | N28: =Control!$F$60 -> 0 | O28: x | P28: =Control!$F$59 -> 0 | Q28: = | R28: =(D28+F28)*$H$6*$J$6*$L$6*$P$6*$N$6 -> 0 | S28: x | T28: =Control!$D$107 -> 1e-12 | U28: = | V28: =R28*T28 -> 0 | W28: x | X28: =Control!$D$101 -> 25 | Y28: x | Z28: =Control!$D$100 -> 0.2727272727 | AA28: = | AB28: =V28*X$6*Z$6 -> 0 | AC28: = | AD28: =AB28*C_CO2 -> 0
B30: =B28+1 -> 2002 | C30: ( | E30: + | G30: ) x | H30: =Control!$F$57 -> 0 | I30: x | J30: =Control!$D$106 -> 1000 | K30: x | L30: =Control!$F$58 -> 0 | M30: x | N30: =Control!$F$60 -> 0 | O30: x | P30: =Control!$F$59 -> 0 | Q30: = | R30: =(D30+F30)*$H$6*$J$6*$L$6*$P$6*$N$6 -> 0 | S30: x | T30: =Control!$D$107 -> 1e-12 | U30: = | V30: =R30*T30 -> 0 | W30: x | X30: =Control!$D$101 -> 25 | Y30: x | Z30: =Control!$D$100 -> 0.2727272727 | AA30: = | AB30: =V30*X$6*Z$6 -> 0 | AC30: = | AD30: =AB30*C_CO2 -> 0
B32: =B30+1 -> 2003 | C32: ( | E32: + | G32: ) x | H32: =Control!$F$57 -> 0 | I32: x | J32: =Control!$D$106 -> 1000 | K32: x | L32: =Control!$F$58 -> 0 | M32: x | N32: =Control!$F$60 -> 0 | O32: x | P32: =Control!$F$59 -> 0 | Q32: = | R32: =(D32+F32)*$H$6*$J$6*$L$6*$P$6*$N$6 -> 0 | S32: x | T32: =Control!$D$107 -> 1e-12 | U32: = | V32: =R32*T32 -> 0 | W32: x | X32: =Control!$D$101 -> 25 | Y32: x | Z32: =Control!$D$100 -> 0.2727272727 | AA32: = | AB32: =V32*X$6*Z$6 -> 0 | AC32: = | AD32: =AB32*C_CO2 -> 0
B34: =B32+1 -> 2004 | C34: ( | E34: + | G34: ) x | H34: =Control!$F$57 -> 0 | I34: x | J34: =Control!$D$106 -> 1000 | K34: x | L34: =Control!$F$58 -> 0 | M34: x | N34: =Control!$F$60 -> 0 | O34: x | P34: =Control!$F$59 -> 0 | Q34: = | R34: =(D34+F34)*$H$6*$J$6*$L$6*$P$6*$N$6 -> 0 | S34: x | T34: =Control!$D$107 -> 1e-12 | U34: = | V34: =R34*T34 -> 0 | W34: x | X34: =Control!$D$101 -> 25 | Y34: x | Z34: =Control!$D$100 -> 0.2727272727 | AA34: = | AB34: =V34*X$6*Z$6 -> 0 | AC34: = | AD34: =AB34*C_CO2 -> 0
B36: =B34+1 -> 2005 | C36: ( | E36: + | G36: ) x | H36: =Control!$F$57 -> 0 | I36: x | J36: =Control!$D$106 -> 1000 | K36: x | L36: =Control!$F$58 -> 0 | M36: x | N36: =Control!$F$60 -> 0 | O36: x | P36: =Control!$F$59 -> 0 | Q36: = | R36: =(D36+F36)*$H$6*$J$6*$L$6*$P$6*$N$6 -> 0 | S36: x | T36: =Control!$D$107 -> 1e-12 | U36: = | V36: =R36*T36 -> 0 | W36: x | X36: =Control!$D$101 -> 25 | Y36: x | Z36: =Control!$D$100 -> 0.2727272727 | AA36: = | AB36: =V36*X$6*Z$6 -> 0 | AC36: = | AD36: =AB36*C_CO2 -> 0
B38: =B36+1 -> 2006 | C38: ( | E38: + | G38: ) x | H38: =Control!$F$57 -> 0 | I38: x | J38: =Control!$D$106 -> 1000 | K38: x | L38: =Control!$F$58 -> 0 | M38: x | N38: =Control!$F$60 -> 0 | O38: x | P38: =Control!$F$59 -> 0 | Q38: = | R38: =(D38+F38)*$H$6*$J$6*$L$6*$P$6*$N$6 -> 0 | S38: x | T38: =Control!$D$107 -> 1e-12 | U38: = | V38: =R38*T38 -> 0 | W38: x | X38: =Control!$D$101 -> 25 | Y38: x | Z38: =Control!$D$100 -> 0.2727272727 | AA38: = | AB38: =V38*X$6*Z$6 -> 0 | AC38: = | AD38: =AB38*C_CO2 -> 0
B40: =B38+1 -> 2007 | C40: ( | E40: + | G40: ) x | H40: =Control!$F$57 -> 0 | I40: x | J40: =Control!$D$106 -> 1000 | K40: x | L40: =Control!$F$58 -> 0 | M40: x | N40: =Control!$F$60 -> 0 | O40: x | P40: =Control!$F$59 -> 0 | Q40: = | R40: =(D40+F40)*$H$6*$J$6*$L$6*$P$6*$N$6 -> 0 | S40: x | T40: =Control!$D$107 -> 1e-12 | U40: = | V40: =R40*T40 -> 0 | W40: x | X40: =Control!$D$101 -> 25 | Y40: x | Z40: =Control!$D$100 -> 0.2727272727 | AA40: = | AB40: =V40*X$6*Z$6 -> 0 | AC40: = | AD40: =AB40*C_CO2 -> 0
B42: =B40+1 -> 2008 | C42: ( | E42: + | G42: ) x | H42: =Control!$F$57 -> 0 | I42: x | J42: =Control!$D$106 -> 1000 | K42: x | L42: =Control!$F$58 -> 0 | M42: x | N42: =Control!$F$60 -> 0 | O42: x | P42: =Control!$F$59 -> 0 | Q42: = | R42: =(D42+F42)*$H$6*$J$6*$L$6*$P$6*$N$6 -> 0 | S42: x | T42: =Control!$D$107 -> 1e-12 | U42: = | V42: =R42*T42 -> 0 | W42: x | X42: =Control!$D$101 -> 25 | Y42: x | Z42: =Control!$D$100 -> 0.2727272727 | AA42: = | AB42: =V42*X$6*Z$6 -> 0 | AC42: = | AD42: =AB42*C_CO2 -> 0
B44: =B42+1 -> 2009 | C44: ( | E44: + | G44: ) x | H44: =Control!$F$57 -> 0 | I44: x | J44: =Control!$D$106 -> 1000 | K44: x | L44: =Control!$F$58 -> 0 | M44: x | N44: =Control!$F$60 -> 0 | O44: x | P44: =Control!$F$59 -> 0 | Q44: = | R44: =(D44+F44)*$H$6*$J$6*$L$6*$P$6*$N$6 -> 0 | S44: x | T44: =Control!$D$107 -> 1e-12 | U44: = | V44: =R44*T44 -> 0 | W44: x | X44: =Control!$D$101 -> 25 | Y44: x | Z44: =Control!$D$100 -> 0.2727272727 | AA44: = | AB44: =V44*X$6*Z$6 -> 0 | AC44: = | AD44: =AB44*C_CO2 -> 0
B46: =B44+1 -> 2010 | C46: ( | E46: + | G46: ) x | H46: =Control!$F$57 -> 0 | I46: x | J46: =Control!$D$106 -> 1000 | K46: x | L46: =Control!$F$58 -> 0 | M46: x | N46: =Control!$F$60 -> 0 | O46: x | P46: =Control!$F$59 -> 0 | Q46: = | R46: =(D46+F46)*$H$6*$J$6*$L$6*$P$6*$N$6 -> 0 | S46: x | T46: =Control!$D$107 -> 1e-12 | U46: = | V46: =R46*T46 -> 0 | W46: x | X46: =Control!$D$101 -> 25 | Y46: x | Z46: =Control!$D$100 -> 0.2727272727 | AA46: = | AB46: =V46*X$6*Z$6 -> 0 | AC46: = | AD46: =AB46*C_CO2 -> 0
B48: =B46+1 -> 2011 | C48: ( | E48: + | G48: ) x | H48: =Control!$F$57 -> 0 | I48: x | J48: =Control!$D$106 -> 1000 | K48: x | L48: =Control!$F$58 -> 0 | M48: x | N48: =Control!$F$60 -> 0 | O48: x | P48: =Control!$F$59 -> 0 | Q48: = | R48: =(D48+F48)*$H$6*$J$6*$L$6*$P$6*$N$6 -> 0 | S48: x | T48: =Control!$D$107 -> 1e-12 | U48: = | V48: =R48*T48 -> 0 | W48: x | X48: =Control!$D$101 -> 25 | Y48: x | Z48: =Control!$D$100 -> 0.2727272727 | AA48: = | AB48: =V48*X$6*Z$6 -> 0 | AC48: = | AD48: =AB48*C_CO2 -> 0
B50: =B48+1 -> 2012 | C50: ( | E50: + | G50: ) x | H50: =Control!$F$57 -> 0 | I50: x | J50: =Control!$D$106 -> 1000 | K50: x | L50: =Control!$F$58 -> 0 | M50: x | N50: =Control!$F$60 -> 0 | O50: x | P50: =Control!$F$59 -> 0 | Q50: = | R50: =(D50+F50)*$H$6*$J$6*$L$6*$P$6*$N$6 -> 0 | S50: x | T50: =Control!$D$107 -> 1e-12 | U50: = | V50: =R50*T50 -> 0 | W50: x | X50: =Control!$D$101 -> 25 | Y50: x | Z50: =Control!$D$100 -> 0.2727272727 | AA50: = | AB50: =V50*X$6*Z$6 -> 0 | AC50: = | AD50: =AB50*C_CO2 -> 0
B52: =B50+1 -> 2013 | C52: ( | E52: + | G52: ) x | H52: =Control!$F$57 -> 0 | I52: x | J52: =Control!$D$106 -> 1000 | K52: x | L52: =Control!$F$58 -> 0 | M52: x | N52: =Control!$F$60 -> 0 | O52: x | P52: =Control!$F$59 -> 0 | Q52: = | R52: =(D52+F52)*$H$6*$J$6*$L$6*$P$6*$N$6 -> 0 | S52: x | T52: =Control!$D$107 -> 1e-12 | U52: = | V52: =R52*T52 -> 0 | W52: x | X52: =Control!$D$101 -> 25 | Y52: x | Z52: =Control!$D$100 -> 0.2727272727 | AA52: = | AB52: =V52*X$6*Z$6 -> 0 | AC52: = | AD52: =AB52*C_CO2 -> 0
B54: =B52+1 -> 2014 | C54: ( | E54: + | G54: ) x | H54: =Control!$F$57 -> 0 | I54: x | J54: =Control!$D$106 -> 1000 | K54: x | L54: =Control!$F$58 -> 0 | M54: x | N54: =Control!$F$60 -> 0 | O54: x | P54: =Control!$F$59 -> 0 | Q54: = | R54: =(D54+F54)*$H$6*$J$6*$L$6*$P$6*$N$6 -> 0 | S54: x | T54: =Control!$D$107 -> 1e-12 | U54: = | V54: =R54*T54 -> 0 | W54: x | X54: =Control!$D$101 -> 25 | Y54: x | Z54: =Control!$D$100 -> 0.2727272727 | AA54: = | AB54: =V54*X$6*Z$6 -> 0 | AC54: = | AD54: =AB54*C_CO2 -> 0
B56: =B54+1 -> 2015 | C56: ( | E56: + | G56: ) x | H56: =Control!$F$57 -> 0 | I56: x | J56: =Control!$D$106 -> 1000 | K56: x | L56: =Control!$F$58 -> 0 | M56: x | N56: =Control!$F$60 -> 0 | O56: x | P56: =Control!$F$59 -> 0 | Q56: = | R56: =(D56+F56)*$H$6*$J$6*$L$6*$P$6*$N$6 -> 0 | S56: x | T56: =Control!$D$107 -> 1e-12 | U56: = | V56: =R56*T56 -> 0 | W56: x | X56: =Control!$D$101 -> 25 | Y56: x | Z56: =Control!$D$100 -> 0.2727272727 | AA56: = | AB56: =V56*X$6*Z$6 -> 0 | AC56: = | AD56: =AB56*C_CO2 -> 0
B58: =B56+1 -> 2016 | C58: ( | E58: + | G58: ) x | H58: =Control!$F$57 -> 0 | I58: x | J58: =Control!$D$106 -> 1000 | K58: x | L58: =Control!$F$58 -> 0 | M58: x | N58: =Control!$F$60 -> 0 | O58: x | P58: =Control!$F$59 -> 0 | Q58: = | R58: =(D58+F58)*$H$6*$J$6*$L$6*$P$6*$N$6 -> 0 | S58: x | T58: =Control!$D$107 -> 1e-12 | U58: = | V58: =R58*T58 -> 0 | W58: x | X58: =Control!$D$101 -> 25 | Y58: x | Z58: =Control!$D$100 -> 0.2727272727 | AA58: = | AB58: =V58*X$6*Z$6 -> 0 | AC58: = | AD58: =AB58*C_CO2 -> 0
B60: =B58+1 -> 2017 | C60: ( | E60: + | G60: ) x | H60: =Control!$F$57 -> 0 | I60: x | J60: =Control!$D$106 -> 1000 | K60: x | L60: =Control!$F$58 -> 0 | M60: x | N60: =Control!$F$60 -> 0 | O60: x | P60: =Control!$F$59 -> 0 | Q60: = | R60: =(D60+F60)*$H$6*$J$6*$L$6*$P$6*$N$6 -> 0 | S60: x | T60: =Control!$D$107 -> 1e-12 | U60: = | V60: =R60*T60 -> 0 | W60: x | X60: =Control!$D$101 -> 25 | Y60: x | Z60: =Control!$D$100 -> 0.2727272727 | AA60: = | AB60: =V60*X$6*Z$6 -> 0 | AC60: = | AD60: =AB60*C_CO2 -> 0
B62: =B60+1 -> 2018 | C62: ( | E62: + | G62: ) x | H62: =Control!$F$57 -> 0 | I62: x | J62: =Control!$D$106 -> 1000 | K62: x | L62: =Control!$F$58 -> 0 | M62: x | N62: =Control!$F$60 -> 0 | O62: x | P62: =Control!$F$59 -> 0 | Q62: = | R62: =(D62+F62)*$H$6*$J$6*$L$6*$P$6*$N$6 -> 0 | S62: x | T62: =Control!$D$107 -> 1e-12 | U62: = | V62: =R62*T62 -> 0 | W62: x | X62: =Control!$D$101 -> 25 | Y62: x | Z62: =Control!$D$100 -> 0.2727272727 | AA62: = | AB62: =V62*X$6*Z$6 -> 0 | AC62: = | AD62: =AB62*C_CO2 -> 0
B64: =B62+1 -> 2019 | C64: ( | E64: + | G64: ) x | H64: =Control!$F$57 -> 0 | I64: x | J64: =Control!$D$106 -> 1000 | K64: x | L64: =Control!$F$58 -> 0 | M64: x | N64: =Control!$F$60 -> 0 | O64: x | P64: =Control!$F$59 -> 0 | Q64: = | R64: =(D64+F64)*$H$6*$J$6*$L$6*$P$6*$N$6 -> 0 | S64: x | T64: =Control!$D$107 -> 1e-12 | U64: = | V64: =R64*T64 -> 0 | W64: x | X64: =Control!$D$101 -> 25 | Y64: x | Z64: =Control!$D$100 -> 0.2727272727 | AA64: = | AB64: =V64*X$6*Z$6 -> 0 | AC64: = | AD64: =AB64*C_CO2 -> 0
B66: =B64+1 -> 2020 | C66: ( | E66: + | G66: ) x | H66: =Control!$F$57 -> 0 | I66: x | J66: =Control!$D$106 -> 1000 | K66: x | L66: =Control!$F$58 -> 0 | M66: x | N66: =Control!$F$60 -> 0 | O66: x | P66: =Control!$F$59 -> 0 | Q66: = | R66: =(D66+F66)*$H$6*$J$6*$L$6*$P$6*$N$6 -> 0 | S66: x | T66: =Control!$D$107 -> 1e-12 | U66: = | V66: =R66*T66 -> 0 | W66: x | X66: =Control!$D$101 -> 25 | Y66: x | Z66: =Control!$D$100 -> 0.2727272727 | AA66: = | AB66: =V66*X$6*Z$6 -> 0 | AC66: = | AD66: =AB66*C_CO2 -> 0

Sheet Summary
B1: ="11. "&SelectedState & " Emissions Summary" -> 11. Select a state . . . Emissions Summary
A2: 2018
B3: =Tracker!B14 -> Emissions were not calculated for the following sources: Municipal methane, Municipal nitrous oxides, Industrial fruits & vegetables, Industrial red meat, Industrial poultry, and Industrial pulp & paper.
B5: Emissions (MMTCO2E) | C5: 1990 | D5: 1991 | E5: 1992 | F5: 1993 | G5: 1994 | H5: 1995 | I5: 1996 | J5: 1997 | K5: 1998 | L5: 1999 | M5: 2000 | N5: 2001 | O5: 2002 | P5: 2003 | Q5: 2004 | R5: 2005 | S5: 2006 | T5: 2007 | U5: 2008 | V5: 2009 | W5: 2010 | X5: 2011 | Y5: 2012 | Z5: 2013 | AA5: 2014 | AB5: 2015 | AC5: 2016 | AD5: 2017 | AE5: 2018 | AF5: 2019 | AG5: 2020
B6: Municipal CH4 | C6: =C16*C_CO2 -> 0 | D6: 0 | E6: 0 | F6: 0 | G6: 0 | H6: 0 | I6: 0 | J6: 0 | K6: 0 | L6: 0 | M6: 0 | N6: 0 | O6: 0 | P6: 0 | Q6: 0 | R6: 0 | S6: 0 | T6: 0 | U6: 0 | V6: 0 | W6: 0 | X6: 0 | Y6: 0 | Z6: 0 | AA6: 0 | AB6: 0 | AC6: 0 | AD6: 0 | AE6: 0 | AF6: =AF16*C_CO2 -> 0 | AG6: 0
B7: Municipal N2O | C7: =C17*C_CO2 -> 0 | D7: 0 | E7: 0 | F7: 0 | G7: 0 | H7: 0 | I7: 0 | J7: 0 | K7: 0 | L7: 0 | M7: 0 | N7: 0 | O7: 0 | P7: 0 | Q7: 0 | R7: 0 | S7: 0 | T7: 0 | U7: 0 | V7: 0 | W7: 0 | X7: 0 | Y7: 0 | Z7: 0 | AA7: 0 | AB7: 0 | AC7: 0 | AD7: 0 | AE7: 0 | AF7: 0 | AG7: 0
B8: Industrial CH4 | C8: =C18*C_CO2 -> 0 | D8: 0 | E8: 0 | F8: 0 | G8: 0 | H8: 0 | I8: 0 | J8: 0 | K8: 0 | L8: 0 | M8: 0 | N8: 0 | O8: 0 | P8: 0 | Q8: 0 | R8: 0 | S8: 0 | T8: 0 | U8: 0 | V8: 0 | W8: 0 | X8: 0 | Y8: 0 | Z8: 0 | AA8: 0 | AB8: 0 | AC8: 0 | AD8: 0 | AE8: 0 | AF8: 0 | AG8: 0
B9: Fruits & Vegetables | C9: =C19*C_CO2 -> 0 | D9: 0 | E9: 0 | F9: 0 | G9: 0 | H9: 0 | I9: 0 | J9: =J19*C_CO2 -> 0 | K9: 0 | L9: 0 | M9: 0 | N9: 0 | O9: 0 | P9: 0 | Q9: 0 | R9: 0 | S9: 0 | T9: 0 | U9: 0 | V9: 0 | W9: 0 | X9: 0 | Y9: 0 | Z9: 0 | AA9: 0 | AB9: 0 | AC9: 0 | AD9: 0 | AE9: 0 | AF9: 0 | AG9: 0
B10: Red Meat | C10: =C20*C_CO2 -> 0 | D10: 0 | E10: 0 | F10: 0 | G10: 0 | H10: 0 | I10: 0 | J10: 0 | K10: 0 | L10: 0 | M10: 0 | N10: 0 | O10: 0 | P10: 0 | Q10: 0 | R10: 0 | S10: 0 | T10: 0 | U10: 0 | V10: 0 | W10: 0 | X10: 0 | Y10: 0 | Z10: 0 | AA10: 0 | AB10: 0 | AC10: 0 | AD10: 0 | AE10: 0 | AF10: 0 | AG10: 0
B11: Poultry | C11: =C21*C_CO2 -> 0 | D11: 0 | E11: 0 | F11: 0 | G11: 0 | H11: 0 | I11: 0 | J11: 0 | K11: 0 | L11: 0 | M11: 0 | N11: 0 | O11: 0 | P11: 0 | Q11: 0 | R11: 0 | S11: 0 | T11: 0 | U11: 0 | V11: 0 | W11: 0 | X11: 0 | Y11: 0 | Z11: 0 | AA11: 0 | AB11: 0 | AC11: 0 | AD11: 0 | AE11: 0 | AF11: 0 | AG11: 0
B12: Pulp & Paper | C12: =C22*C_CO2 -> 0 | D12: 0 | E12: 0 | F12: 0 | G12: 0 | H12: 0 | I12: 0 | J12: 0 | K12: 0 | L12: 0 | M12: 0 | N12: 0 | O12: 0 | P12: 0 | Q12: 0 | R12: 0 | S12: 0 | T12: 0 | U12: 0 | V12: 0 | W12: 0 | X12: 0 | Y12: 0 | Z12: 0 | AA12: 0 | AB12: 0 | AC12: 0 | AD12: 0 | AE12: 0 | AF12: 0 | AG12: 0
B13: Total Emissions | C13: =SUM(C6:C8) -> 0 | D13: =SUM(D6:D8) -> 0 | E13: 0 | F13: 0 | G13: 0 | H13: 0 | I13: 0 | J13: 0 | K13: 0 | L13: 0 | M13: =SUM(M6:M8) -> 0 | N13: 0 | O13: 0 | P13: 0 | Q13: 0 | R13: 0 | S13: 0 | T13: 0 | U13: 0 | V13: 0 | W13: 0 | X13: 0 | Y13: 0 | Z13: 0 | AA13: 0 | AB13: 0 | AC13: 0 | AD13: 0 | AE13: 0 | AF13: 0 | AG13: 0
C14: =IF(C5<=$A$2,1,0) -> 1 | D14: =IF(D5<=$A$2,C14+1,0) -> 2 | E14: =IF(E5<=$A$2,D14+1,0) -> 3 | F14: 4 | G14: 5 | H14: 6 | I14: 7 | J14: 8 | K14: 9 | L14: 10 | M14: 11 | N14: 12 | O14: 13 | P14: 14 | Q14: 15 | R14: 16 | S14: 17 | T14: 18 | U14: 19 | V14: 20 | W14: 21 | X14: 22 | Y14: 23 | Z14: 24 | AA14: 25 | AB14: 26 | AC14: 27 | AD14: 28 | AE14: 29 | AF14: 0 | AG14: 0
B15: Emissions (MMTCE) | C15: 1990 | D15: 1991 | E15: 1992 | F15: 1993 | G15: 1994 | H15: 1995 | I15: 1996 | J15: 1997 | K15: 1998 | L15: 1999 | M15: 2000 | N15: 2001 | O15: 2002 | P15: 2003 | Q15: 2004 | R15: 2005 | S15: 2006 | T15: 2007 | U15: 2008 | V15: 2009 | W15: 2010 | X15: 2011 | Y15: 2012 | Z15: 2013 | AA15: 2014 | AB15: 2015 | AC15: 2016 | AD15: 2017 | AE15: 2018 | AF15: 2019 | AG15: 2020
B16: Municipal CH4 | C16: ='Municipal WW, CH4'!W6 -> 0 | D16: ='Municipal WW, CH4'!W8 -> 0 | E16: ='Municipal WW, CH4'!W10 -> 0 | F16: ='Municipal WW, CH4'!W12 -> 0 | G16: ='Municipal WW, CH4'!W14 -> 0 | H16: ='Municipal WW, CH4'!W16 -> 0 | I16: ='Municipal WW, CH4'!W18 -> 0 | J16: ='Municipal WW, CH4'!W20 -> 0 | K16: ='Municipal WW, CH4'!W22 -> 0 | L16: ='Municipal WW, CH4'!W24 -> 0 | M16: ='Municipal WW, CH4'!W26 -> 0 | N16: ='Municipal WW, CH4'!W28 -> 0 | O16: ='Municipal WW, CH4'!W30 -> 0 | P16: ='Municipal WW, CH4'!W32 -> 0 | Q16: ='Municipal WW, CH4'!W34 -> 0 | R16: ='Municipal WW, CH4'!W36 -> 0 | S16: ='Municipal WW, CH4'!W38 -> 0 | T16: ='Municipal WW, CH4'!W40 -> 0 | U16: ='Municipal WW, CH4'!W42 -> 0 | V16: ='Municipal WW, CH4'!W44 -> 0 | W16: ='Municipal WW, CH4'!W46 -> 0 | X16: ='Municipal WW, CH4'!W48 -> 0 | Y16: ='Municipal WW, CH4'!W50 -> 0 | Z16: ='Municipal WW, CH4'!W52 -> 0 | AA16: ='Municipal WW, CH4'!W54 -> 0 | AB16: ='Municipal WW, CH4'!W56 -> 0 | AC16: ='Municipal WW, CH4'!W58 -> 0 | AD16: ='Municipal WW, CH4'!W60 -> 0 | AE16: ='Municipal WW, CH4'!W62 -> 0 | AF16: ='Municipal WW, CH4'!W64 -> 0 | AG16: ='Municipal WW, CH4'!W66 -> 0
B17: Municipal N2O | C17: ='Municipal WW, N2O, effluent'!AK6 -> 0 | D17: ='Municipal WW, N2O, effluent'!AK8 -> 0 | E17: ='Municipal WW, N2O, effluent'!AK10 -> 0 | F17: ='Municipal WW, N2O, effluent'!AK12 -> 0 | G17: ='Municipal WW, N2O, effluent'!AK14 -> 0 | H17: ='Municipal WW, N2O, effluent'!AK16 -> 0 | I17: ='Municipal WW, N2O, effluent'!AK18 -> 0 | J17: ='Municipal WW, N2O, effluent'!AK20 -> 0 | K17: ='Municipal WW, N2O, effluent'!AK22 -> 0 | L17: ='Municipal WW, N2O, effluent'!AK24 -> 0 | M17: ='Municipal WW, N2O, effluent'!AK26 -> 0 | N17: ='Municipal WW, N2O, effluent'!AK28 -> 0 | O17: ='Municipal WW, N2O, effluent'!AK30 -> 0 | P17: ='Municipal WW, N2O, effluent'!AK32 -> 0 | Q17: ='Municipal WW, N2O, effluent'!AK34 -> 0 | R17: ='Municipal WW, N2O, effluent'!AK36 -> 0 | S17: ='Municipal WW, N2O, effluent'!AK38 -> 0 | T17: ='Municipal WW, N2O, effluent'!AK40 -> 0 | U17: ='Municipal WW, N2O, effluent'!AK42 -> 0 | V17: ='Municipal WW, N2O, effluent'!AK44 -> 0 | W17: ='Municipal WW, N2O, effluent'!AK46 -> 0 | X17: ='Municipal WW, N2O, effluent'!AK48 -> 0 | Y17: ='Municipal WW, N2O, effluent'!AK50 -> 0 | Z17: ='Municipal WW, N2O, effluent'!AK52 -> 0 | AA17: ='Municipal WW, N2O, effluent'!AK54 -> 0 | AB17: ='Municipal WW, N2O, effluent'!AK56 -> 0 | AC17: ='Municipal WW, N2O, effluent'!AK58 -> 0 | AD17: ='Municipal WW, N2O, effluent'!AK60 -> 0 | AE17: ='Municipal WW, N2O, effluent'!AK62 -> 0 | AF17: ='Municipal WW, N2O, effluent'!AK64 -> 0 | AG17: ='Municipal WW, N2O, effluent'!AK66 -> 0
B18: Industrial CH4 | C18: =SUM(C19:C22) -> 0 | D18: =SUM(D19:D22) -> 0 | E18: 0 | F18: 0 | G18: 0 | H18: 0 | I18: 0 | J18: 0 | K18: 0 | L18: 0 | M18: =SUM(M19:M22) -> 0 | N18: 0 | O18: 0 | P18: 0 | Q18: 0 | R18: 0 | S18: 0 | T18: 0 | U18: 0 | V18: 0 | W18: 0 | X18: 0 | Y18: 0 | Z18: 0 | AA18: 0 | AB18: 0 | AC18: 0 | AD18: 0 | AE18: 0 | AF18: 0 | AG18: 0
B19: Fruits & Vegetables | C19: ='Ind WW Fruit'!Y6 -> 0 | D19: ='Ind WW Fruit'!Y8 -> 0 | E19: ='Ind WW Fruit'!Y10 -> 0 | F19: ='Ind WW Fruit'!Y12 -> 0 | G19: ='Ind WW Fruit'!Y14 -> 0 | H19: ='Ind WW Fruit'!Y16 -> 0 | I19: ='Ind WW Fruit'!Y18 -> 0 | J19: ='Ind WW Fruit'!Y20 -> 0 | K19: ='Ind WW Fruit'!Y22 -> 0 | L19: ='Ind WW Fruit'!Y24 -> 0 | M19: ='Ind WW Fruit'!Y26 -> 0 | N19: ='Ind WW Fruit'!Y28 -> 0 | O19: ='Ind WW Fruit'!Y30 -> 0 | P19: ='Ind WW Fruit'!Y32 -> 0 | Q19: ='Ind WW Fruit'!Y34 -> 0 | R19: ='Ind WW Fruit'!Y36 -> 0 | S19: ='Ind WW Fruit'!Y38 -> 0 | T19: ='Ind WW Fruit'!Y40 -> 0 | U19: ='Ind WW Fruit'!Y42 -> 0 | V19: ='Ind WW Fruit'!Y44 -> 0 | W19: ='Ind WW Fruit'!Y46 -> 0 | X19: ='Ind WW Fruit'!Y48 -> 0 | Y19: ='Ind WW Fruit'!Y50 -> 0 | Z19: ='Ind WW Fruit'!Y52 -> 0 | AA19: ='Ind WW Fruit'!Y54 -> 0 | AB19: ='Ind WW Fruit'!Y56 -> 0 | AC19: ='Ind WW Fruit'!Y58 -> 0 | AD19: ='Ind WW Fruit'!Y60 -> 0 | AE19: ='Ind WW Fruit'!Y62 -> 0 | AF19: ='Ind WW Fruit'!Y64 -> 0 | AG19: ='Ind WW Fruit'!Y66 -> 0
B20: Red Meat | C20: ='Ind WW Meat'!Y6 -> 0 | D20: ='Ind WW Meat'!Y8 -> 0 | E20: ='Ind WW Meat'!Y10 -> 0 | F20: ='Ind WW Meat'!Y12 -> 0 | G20: ='Ind WW Meat'!Y14 -> 0 | H20: ='Ind WW Meat'!Y16 -> 0 | I20: ='Ind WW Meat'!Y18 -> 0 | J20: ='Ind WW Meat'!Y20 -> 0 | K20: ='Ind WW Meat'!Y22 -> 0 | L20: ='Ind WW Meat'!Y24 -> 0 | M20: ='Ind WW Meat'!Y26 -> 0 | N20: ='Ind WW Meat'!Y28 -> 0 | O20: ='Ind WW Meat'!Y30 -> 0 | P20: ='Ind WW Meat'!Y32 -> 0 | Q20: ='Ind WW Meat'!Y34 -> 0 | R20: ='Ind WW Meat'!Y36 -> 0 | S20: ='Ind WW Meat'!Y38 -> 0 | T20: ='Ind WW Meat'!Y40 -> 0 | U20: ='Ind WW Meat'!Y42 -> 0 | V20: ='Ind WW Meat'!Y44 -> 0 | W20: ='Ind WW Meat'!Y46 -> 0 | X20: ='Ind WW Meat'!Y48 -> 0 | Y20: ='Ind WW Meat'!Y50 -> 0 | Z20: ='Ind WW Meat'!Y52 -> 0 | AA20: ='Ind WW Meat'!Y54 -> 0 | AB20: ='Ind WW Meat'!Y56 -> 0 | AC20: ='Ind WW Meat'!Y58 -> 0 | AD20: ='Ind WW Meat'!Y60 -> 0 | AE20: ='Ind WW Meat'!Y62 -> 0 | AF20: ='Ind WW Meat'!Y64 -> 0 | AG20: ='Ind WW Meat'!Y66 -> 0
B21: Poultry | C21: ='Ind WW Poultry'!Y6 -> 0 | D21: ='Ind WW Poultry'!Y8 -> 0 | E21: ='Ind WW Poultry'!Y10 -> 0 | F21: ='Ind WW Poultry'!Y12 -> 0 | G21: ='Ind WW Poultry'!Y14 -> 0 | H21: ='Ind WW Poultry'!Y16 -> 0 | I21: ='Ind WW Poultry'!Y18 -> 0 | J21: ='Ind WW Poultry'!Y20 -> 0 | K21: ='Ind WW Poultry'!Y22 -> 0 | L21: ='Ind WW Poultry'!Y24 -> 0 | M21: ='Ind WW Poultry'!Y26 -> 0 | N21: ='Ind WW Poultry'!Y28 -> 0 | O21: ='Ind WW Poultry'!Y30 -> 0 | P21: ='Ind WW Poultry'!Y32 -> 0 | Q21: ='Ind WW Poultry'!Y34 -> 0 | R21: ='Ind WW Poultry'!Y36 -> 0 | S21: ='Ind WW Poultry'!Y38 -> 0 | T21: ='Ind WW Poultry'!Y40 -> 0 | U21: ='Ind WW Poultry'!Y42 -> 0 | V21: ='Ind WW Poultry'!Y44 -> 0 | W21: ='Ind WW Poultry'!Y46 -> 0 | X21: ='Ind WW Poultry'!Y48 -> 0 | Y21: ='Ind WW Poultry'!Y50 -> 0 | Z21: ='Ind WW Poultry'!Y52 -> 0 | AA21: ='Ind WW Poultry'!Y54 -> 0 | AB21: ='Ind WW Poultry'!Y56 -> 0 | AC21: ='Ind WW Poultry'!Y58 -> 0 | AD21: ='Ind WW Poultry'!Y60 -> 0 | AE21: ='Ind WW Poultry'!Y62 -> 0 | AF21: ='Ind WW Poultry'!Y64 -> 0 | AG21: ='Ind WW Poultry'!Y66 -> 0
B22: Pulp & Paper | C22: ='Ind WW P&P'!AB6 -> 0 | D22: ='Ind WW P&P'!AB8 -> 0 | E22: ='Ind WW P&P'!AB10 -> 0 | F22: ='Ind WW P&P'!AB12 -> 0 | G22: ='Ind WW P&P'!AB14 -> 0 | H22: ='Ind WW P&P'!AB16 -> 0 | I22: ='Ind WW P&P'!AB18 -> 0 | J22: ='Ind WW P&P'!AB20 -> 0 | K22: ='Ind WW P&P'!AB22 -> 0 | L22: ='Ind WW P&P'!AB24 -> 0 | M22: ='Ind WW P&P'!AB26 -> 0 | N22: ='Ind WW P&P'!AB28 -> 0 | O22: ='Ind WW P&P'!AB30 -> 0 | P22: ='Ind WW P&P'!AB32 -> 0 | Q22: ='Ind WW P&P'!AB34 -> 0 | R22: ='Ind WW P&P'!AB36 -> 0 | S22: ='Ind WW P&P'!AB38 -> 0 | T22: ='Ind WW P&P'!AB40 -> 0 | U22: ='Ind WW P&P'!AB42 -> 0 | V22: ='Ind WW P&P'!AB44 -> 0 | W22: ='Ind WW P&P'!AB46 -> 0 | X22: ='Ind WW P&P'!AB48 -> 0 | Y22: ='Ind WW P&P'!AB50 -> 0 | Z22: ='Ind WW P&P'!AB52 -> 0 | AA22: ='Ind WW P&P'!AB54 -> 0 | AB22: ='Ind WW P&P'!AB56 -> 0 | AC22: ='Ind WW P&P'!AB58 -> 0 | AD22: ='Ind WW P&P'!AB60 -> 0 | AE22: ='Ind WW P&P'!AB62 -> 0 | AF22: ='Ind WW P&P'!AB64 -> 0 | AG22: ='Ind WW P&P'!AB66 -> 0
B23: Total Emissions | C23: =SUM(C16:C18) -> 0 | D23: =SUM(D16:D18) -> 0 | E23: 0 | F23: 0 | G23: 0 | H23: 0 | I23: 0 | J23: 0 | K23: 0 | L23: 0 | M23: =SUM(M16:M18) -> 0 | N23: 0 | O23: 0 | P23: 0 | Q23: 0 | R23: 0 | S23: 0 | T23: 0 | U23: 0 | V23: 0 | W23: 0 | X23: 0 | Y23: 0 | Z23: 0 | AA23: 0 | AB23: 0 | AC23: 0 | AD23: 0 | AE23: 0 | AF23: 0 | AG23: 0

Sheet Tracker (hidden)
A1: Sector | B1: Sum | C1: Not included? | D1: Text of missing sector | E1: "and"? | F1: Punctuation | G1: Text used
A2: Municipal methane | B2: =SUM(Summary!C16:R16) -> 0 | C2: =IF(ISERROR(B2),TRUE,IF(B2=0,TRUE,FALSE)) -> TRUE | D2: =IF(C2=TRUE," "&A2,"") -> Municipal methane | E2: =IF(AND($C$10=A2,$C$9>1)," and","") ->  | F2: =IF(C2=TRUE,IF($C$10=A2,".",","),"") -> , | G2: =E2&D2&F2 -> Municipal methane,
A3: Municipal nitrous oxides | B3: =SUM(Summary!C17:R17) -> 0 | C3: TRUE | D3: Municipal nitrous oxides | F3: , | G3: Municipal nitrous oxides,
A4: Industrial fruits & vegetables | B4: =SUM(Summary!C19:R19) -> 0 | C4: TRUE | D4: Industrial fruits & vegetables | F4: , | G4: Industrial fruits & vegetables,
A5: Industrial red meat | B5: =SUM(Summary!C20:R20) -> 0 | C5: TRUE | D5: Industrial red meat | F5: , | G5: Industrial red meat,
A6: Industrial poultry | B6: =SUM(Summary!C21:R21) -> 0 | C6: TRUE | D6: =IF(C6=TRUE," "&A6,"") -> Industrial poultry | E6: =IF(AND($C$10=A6,$C$9>1)," and","") ->  | F6: =IF(C6=TRUE,IF($C$10=A6,".",","),"") -> , | G6: =E6&D6&F6 -> Industrial poultry,
A7: Industrial pulp & paper | B7: =SUM(Summary!C22:R22) -> 0 | C7: TRUE | D7: Industrial pulp & paper | E7: and | F7: . | G7: and Industrial pulp & paper.
B9: Count | C9: =COUNTIF(C2:C7,TRUE) -> 6
B10: Last | C10: =IF(C8=TRUE,A8,IF(C7=TRUE,A7,IF(C5=TRUE,A5,IF(C4=TRUE,A4,IF(C3=TRUE,A3,IF(C2=TRUE,A2,)))))) -> Industrial pulp & paper
A12: Part A | B12: =IF(C9>1,"Emissions were not calculated for the following sources:","Emissions were not calculated for the following source:") -> Emissions were not calculated for the following sources:
A13: Part B | B13: =G2&G3&G4&G5&G6&G7 -> Municipal methane, Municipal nitrous oxides, Industrial fruits & vegetables, Industrial red meat, Industrial poultry, and Industrial pulp & paper.
A14: Final | B14: =IF(C9=0,0,B12&B13) -> Emissions were not calculated for the following sources: Municipal methane, Municipal nitrous oxides, Industrial fruits & vegetables, Industrial red meat, Industrial poultry, and Industrial pulp & paper.

Sheet Uncertainty
A2: Uncertainty Associated With These Emissions Estimates
B3: Excerpted from EIIP Guidance, Chapter 14.

Sheet Population
A1: SELECTED STATE: | C1: =VLOOKUP(SelectedState,Lookups!$B$4:$C$55,2,FALSE) -> 
B2: =VLOOKUP($C$1,$A$6:$AF$57,B4-1988,FALSE) ->  | C2: =VLOOKUP($C$1,$A$6:$AF$57,C4-1988,FALSE) ->  | D2: =VLOOKUP($C$1,$A$6:$AF$57,D4-1988,FALSE) ->  | W2: =VLOOKUP($C$1,$A$6:$AF$57,W4-1988,FALSE) ->  | Y2: =VLOOKUP($C$1,$A$6:$AF$57,Y4-1988,FALSE) ->  | AD2: =VLOOKUP($C$1,$A$6:$AF$57,AD4-1988,FALSE) ->  | AE2: =VLOOKUP($C$1,$A$6:$AF$57,AE4-1988,FALSE) -> 
B4: 1990 | C4: 1991 | D4: 1992 | E4: 1993 | F4: 1994 | G4: 1995 | H4: 1996 | I4: 1997 | J4: 1998 | K4: 1999 | L4: 2000 | M4: 2001 | N4: 2002 | O4: 2003 | P4: 2004 | Q4: 2005 | R4: 2006 | S4: 2007 | T4: 2008 | U4: 2009 | V4: 2010 | W4: 2011 | X4: 2012 | Y4: 2013 | Z4: 2014 | AA4: 2015 | AB4: 2016 | AC4: 2017 | AD4: 2018 | AE4: 2019 | AF4: 2020
A6: AL | B6: 4048508 | C6: 4091025 | D6: 4139269 | E6: 4193114 | F6: 4232965 | G6: 4262731 | H6: 4290403 | I6: 4320281 | J6: 4351037 | K6: 4369862 | L6: 4451687 | M6: 4462832 | N6: 4469906 | O6: 4486598 | P6: 4506574 | Q6: 4537299 | R6: 4597688 | S6: 4637904 | T6: 4677464 | U6: 4708708 | V6: 4785437 | W6: 4799069 | X6: 4815588 | Y6: 4830081 | Z6: 4841799 | AA6: 4852347 | AB6: 4863525 | AC6: 4874486 | AD6: 4887681 | AE6: 4903185
A7: AK | B7: 553120 | C7: 569273 | D7: 587073 | E7: 596993 | F7: 600624 | G7: 601345 | H7: 604918 | I7: 608846 | J7: 615205 | K7: 619500 | L7: 627428 | M7: 633160 | N7: 642391 | O7: 650426 | P7: 660975 | Q7: 668625 | R7: 677325 | S7: 682297 | T7: 688125 | U7: 698473 | V7: 713910 | W7: 722128 | X7: 730443 | Y7: 737068 | Z7: 736283 | AA7: 737498 | AB7: 741456 | AC7: 739700 | AD7: 735139 | AE7: 731545
A8: AZ | B8: 3679056 | C8: 3762394 | D8: 3867333 | E8: 3993390 | F8: 4147561 | G8: 4306908 | H8: 4432308 | I8: 4552207 | J8: 4667277 | K8: 4778332 | L8: 5166810 | M8: 5303632 | N8: 5449195 | O8: 5585512 | P8: 5750475 | Q8: 5961239 | R8: 6192100 | S8: 6362241 | T8: 6499377 | U8: 6595778 | V8: 6407172 | W8: 6472643 | X8: 6554978 | Y8: 6632764 | Z8: 6730413 | AA8: 6829676 | AB8: 6941072 | AC8: 7044008 | AD8: 7158024 | AE8: 7278717
A9: AR | B9: 2354343 | C9: 2370666 | D9: 2394098 | E9: 2423743 | F9: 2450605 | G9: 2480121 | H9: 2504858 | I9: 2524007 | J9: 2538202 | K9: 2551373 | L9: 2678217 | M9: 2689601 | N9: 2701889 | O9: 2717909 | P9: 2740191 | Q9: 2768918 | R9: 2815097 | S9: 2842194 | T9: 2867764 | U9: 2889450 | V9: 2921964 | W9: 2940667 | X9: 2952164 | Y9: 2959400 | Z9: 2967392 | AA9: 2978048 | AB9: 2989918 | AC9: 3001345 | AD9: 3009733 | AE9: 3017804
A10: CA | B10: 29950111 | C10: 30414114 | D10: 30875920 | E10: 31147208 | F10: 31317179 | G10: 31493525 | H10: 31780829 | I10: 32217708 | J10: 32682794 | K10: 33145121 | L10: 33998767 | M10: 34507030 | N10: 34916495 | O10: 35307398 | P10: 35629666 | Q10: 35885415 | R10: 35979208 | S10: 36226122 | T10: 36580371 | U10: 36961664 | V10: 37319502 | W10: 37638369 | X10: 37948800 | Y10: 38260787 | Z10: 38596972 | AA10: 38918045 | AB10: 39167117 | AC10: 39358497 | AD10: 39461588 | AE10: 39512223
A11: CO | B11: 3303862 | C11: 3367567 | D11: 3459995 | E11: 3560884 | F11: 3653910 | G11: 3738061 | H11: 3812716 | I11: 3891293 | J11: 3968967 | K11: 4056133 | L11: 4327788 | M11: 4431918 | N11: 4503156 | O11: 4548339 | P11: 4600050 | Q11: 4662734 | R11: 4753044 | S11: 4842259 | T11: 4935213 | U11: 5024748 | V11: 5047349 | W11: 5121108 | X11: 5192647 | Y11: 5269035 | Z11: 5350101 | AA11: 5450623 | AB11: 5539215 | AC11: 5611885 | AD11: 5691287 | AE11: 5758736
A12: CT | B12: 3289056 | C12: 3288640 | D12: 3274997 | E12: 3272325 | F12: 3268346 | G12: 3265293 | H12: 3267030 | I12: 3268514 | J12: 3272563 | K12: 3282031 | L12: 3411714 | M12: 3428208 | N12: 3448261 | O12: 3467932 | P12: 3475351 | Q12: 3478714 | R12: 3485162 | S12: 3488633 | T12: 3502932 | U12: 3518288 | V12: 3579114 | W12: 3588283 | X12: 3594547 | Y12: 3594841 | Z12: 3594524 | AA12: 3587122 | AB12: 3578141 | AC12: 3573297 | AD12: 3571520 | AE12: 3565287
A13: DE | B13: 669063 | C13: 680495 | D13: 690158 | E13: 699475 | F13: 708416 | G13: 718265 | H13: 727090 | I13: 735024 | J13: 744066 | K13: 753538 | L13: 786404 | M13: 794498 | N13: 803774 | O13: 814262 | P13: 825682 | Q13: 838519 | R13: 853022 | S13: 864896 | T13: 876211 | U13: 885122 | V13: 899593 | W13: 907381 | X13: 915179 | Y13: 923576 | Z13: 932487 | AA13: 941252 | AB13: 948921 | AC13: 956823 | AD13: 965479 | AE13: 973764
A14: DC | B14: 603814 | C14: 593239 | D14: 584183 | E14: 576358 | F14: 564982 | G14: 551273 | H14: 538273 | I14: 528752 | J14: 521426 | K14: 519000 | L14: 571723 | M14: 577678 | N14: 579112 | O14: 577371 | P14: 579521 | Q14: 582049 | R14: 583978 | S14: 586409 | T14: 590074 | U14: 599657 | V14: 605226 | W14: 619800 | X14: 634924 | Y14: 650581 | Z14: 662328 | AA14: 675400 | AB14: 685815 | AC14: 694906 | AD14: 701547 | AE14: 705749
A15: FL | B15: 13018365 | C15: 13289497 | D15: 13504775 | E15: 13713593 | F15: 13961798 | G15: 14185403 | H15: 14426911 | I15: 14683350 | J15: 14908230 | K15: 15111244 | L15: 16047246 | M15: 16340734 | N15: 16652679 | O15: 16937337 | P15: 17313811 | Q15: 17702476 | R15: 18088505 | S15: 18277888 | T15: 18423878 | U15: 18537969 | V15: 18845537 | W15: 19053237 | X15: 19297822 | Y15: 19545621 | Z15: 19845911 | AA15: 20209042 | AB15: 20613477 | AC15: 20963613 | AD15: 21244317 | AE15: 21477737
A16: GA | B16: 6506531 | C16: 6621279 | D16: 6759474 | E16: 6894092 | F16: 7045900 | G16: 7188538 | H16: 7332225 | I16: 7486094 | J16: 7636522 | K16: 7788240 | L16: 8230053 | M16: 8418592 | N16: 8583674 | O16: 8732924 | P16: 8910741 | Q16: 9093958 | R16: 9330086 | S16: 9533761 | T16: 9697838 | U16: 9829211 | V16: 9711881 | W16: 9802431 | X16: 9901430 | Y16: 9972479 | Z16: 10067278 | AA16: 10178447 | AB16: 10301890 | AC16: 10410330 | AD16: 10511131 | AE16: 10617423
A17: HI | B17: 1112703 | C17: 1131412 | D17: 1149926 | E17: 1161508 | F17: 1173903 | G17: 1180490 | H17: 1184434 | I17: 1189322 | J17: 1190472 | K17: 1185497 | L17: 1211479 | M17: 1217955 | N17: 1227391 | O17: 1238333 | P17: 1251532 | Q17: 1264468 | R17: 1275599 | S17: 1276832 | T17: 1287481 | U17: 1295178 | V17: 1363963 | W17: 1379329 | X17: 1394804 | Y17: 1408243 | Z17: 1414538 | AA17: 1422052 | AB17: 1427559 | AC17: 1424393 | AD17: 1420593 | AE17: 1415872
A18: ID | B18: 1011882 | C18: 1038915 | D18: 1066490 | E18: 1101204 | F18: 1135459 | G18: 1165000 | H18: 1187706 | I18: 1210638 | J18: 1230923 | K18: 1251700 | L18: 1299474 | M18: 1320732 | N18: 1341408 | O18: 1363010 | P18: 1390329 | Q18: 1424127 | R18: 1464413 | S18: 1499245 | T18: 1527506 | U18: 1545801 | V18: 1570746 | W18: 1583910 | X18: 1595324 | Y18: 1611206 | Z18: 1631112 | AA18: 1651059 | AB18: 1682380 | AC18: 1717715 | AD18: 1750536 | AE18: 1787065
A19: IL | B19: 11446979 | C19: 11535973 | D19: 11635197 | E19: 11725984 | F19: 11804986 | G19: 11884935 | H19: 11953003 | I19: 12011509 | J19: 12069774 | K19: 12128370 | L19: 12437888 | M19: 12510596 | N19: 12565228 | O19: 12611047 | P19: 12665718 | Q19: 12704063 | R19: 12718011 | S19: 12779417 | T19: 12842954 | U19: 12910409 | V19: 12840503 | W19: 12867454 | X19: 12882510 | Y19: 12895129 | Z19: 12884493 | AA19: 12858913 | AB19: 12820527 | AC19: 12778828 | AD19: 12723071 | AE19: 12671821
A20: IN | B20: 5555097 | C20: 5602062 | D20: 5648649 | E20: 5701965 | F20: 5745626 | G20: 5791819 | H20: 5834908 | I20: 5872370 | J20: 5907617 | K20: 5942901 | L20: 6091392 | M20: 6123942 | N20: 6146974 | O20: 6178828 | P20: 6210801 | Q20: 6248569 | R20: 6301700 | S20: 6346113 | T20: 6388309 | U20: 6423113 | V20: 6490432 | W20: 6516528 | X20: 6537703 | Y20: 6568713 | Z20: 6593644 | AA20: 6608422 | AB20: 6634304 | AC20: 6658078 | AD20: 6695497 | AE20: 6732219
A21: IA | B21: 2779769 | C21: 2791227 | D21: 2806923 | E21: 2820525 | F21: 2829422 | G21: 2840860 | H21: 2848473 | I21: 2854396 | J21: 2861025 | K21: 2869413 | L21: 2928046 | M21: 2929294 | N21: 2929395 | O21: 2933407 | P21: 2942739 | Q21: 2951775 | R21: 2964391 | S21: 2978719 | T21: 2993987 | U21: 3007856 | V21: 3050745 | W21: 3066336 | X21: 3076190 | Y21: 3092997 | Z21: 3109350 | AA21: 3120960 | AB21: 3131371 | AC21: 3141550 | AD21: 3148618 | AE21: 3155070
A22: KS | B22: 2480683 | C22: 2495209 | D22: 2526042 | E22: 2547605 | F22: 2569118 | G22: 2586942 | H22: 2598266 | I22: 2616339 | J22: 2638667 | K22: 2654052 | L22: 2692681 | M22: 2701346 | N22: 2712561 | O22: 2722070 | P22: 2731069 | Q22: 2742204 | R22: 2755700 | S22: 2775586 | T22: 2797375 | U22: 2818747 | V22: 2858190 | W22: 2869225 | X22: 2885257 | Y22: 2893212 | Z22: 2900475 | AA22: 2909011 | AB22: 2910844 | AC22: 2908718 | AD22: 2911359 | AE22: 2913314
A23: KY | B23: 3692584 | C23: 3714686 | D23: 3756358 | E23: 3792288 | F23: 3823215 | G23: 3855248 | H23: 3881051 | I23: 3907816 | J23: 3934310 | K23: 3960825 | L23: 4048831 | M23: 4066442 | N23: 4086754 | O23: 4110922 | P23: 4135567 | Q23: 4165958 | R23: 4219374 | S23: 4256278 | T23: 4287931 | U23: 4314113 | V23: 4348181 | W23: 4369821 | X23: 4386346 | Y23: 4404659 | Z23: 4414349 | AA23: 4425976 | AB23: 4438182 | AC23: 4452268 | AD23: 4461153 | AE23: 4467673
A24: LA | B24: 4219179 | C24: 4240950 | D24: 4270849 | E24: 4284749 | F24: 4306500 | G24: 4327978 | H24: 4338763 | I24: 4351390 | J24: 4362758 | K24: 4372035 | L24: 4468879 | M24: 4460395 | N24: 4465215 | O24: 4473558 | P24: 4487830 | Q24: 4495627 | R24: 4240327 | S24: 4376122 | T24: 4451513 | U24: 4492076 | V24: 4544532 | W24: 4575625 | X24: 4600972 | Y24: 4624527 | Z24: 4644013 | AA24: 4664628 | AB24: 4678135 | AC24: 4670560 | AD24: 4659690 | AE24: 4648794
A25: ME | B25: 1231296 | C25: 1235439 | D25: 1235748 | E25: 1238256 | F25: 1237687 | G25: 1237438 | H25: 1241436 | I25: 1245215 | J25: 1247554 | K25: 1253040 | L25: 1277179 | M25: 1284663 | N25: 1293667 | O25: 1302729 | P25: 1307904 | Q25: 1311044 | R25: 1314963 | S25: 1317308 | T25: 1319691 | U25: 1318301 | V25: 1327629 | W25: 1328284 | X25: 1327729 | Y25: 1328009 | Z25: 1330513 | AA25: 1328262 | AB25: 1331317 | AC25: 1334612 | AD25: 1339057 | AE25: 1344212
A26: MD | B26: 4797431 | C26: 4856176 | D26: 4902545 | E26: 4942504 | F26: 4985411 | G26: 5023650 | H26: 5057142 | I26: 5092914 | J26: 5130072 | K26: 5171634 | L26: 5310451 | M26: 5375659 | N26: 5439327 | O26: 5495009 | P26: 5538989 | Q26: 5575552 | R26: 5612196 | S26: 5634242 | T26: 5658655 | U26: 5699478 | V26: 5788645 | W26: 5839419 | X26: 5886992 | Y26: 5923188 | Z26: 5957283 | AA26: 5985562 | AB26: 6003323 | AC26: 6023868 | AD26: 6035802 | AE26: 6045680
A27: MA | B27: 6018664 | C27: 5998652 | D27: 5993474 | E27: 6010884 | F27: 6031352 | G27: 6062335 | H27: 6085393 | I27: 6115476 | J27: 6144407 | K27: 6175169 | L27: 6362583 | M27: 6407269 | N27: 6433043 | O27: 6441440 | P27: 6437414 | Q27: 6434343 | R27: 6466399 | S27: 6499275 | T27: 6543595 | U27: 6593587 | V27: 6566307 | W27: 6613583 | X27: 6663005 | Y27: 6713315 | Z27: 6762596 | AA27: 6794228 | AB27: 6823608 | AC27: 6859789 | AD27: 6882635 | AE27: 6892503
A28: MI | B28: 9310462 | C28: 9395022 | D28: 9470323 | E28: 9529240 | F28: 9584481 | G28: 9659871 | H28: 9739184 | I28: 9785450 | J28: 9820231 | K28: 9863775 | L28: 9955146 | M28: 10004341 | N28: 10037303 | O28: 10065881 | P28: 10090280 | Q28: 10093266 | R28: 10082438 | S28: 10050847 | T28: 10002486 | U28: 9969727 | V28: 9877510 | W28: 9882412 | X28: 9897145 | Y28: 9913065 | Z28: 9929848 | AA28: 9931715 | AB28: 9950571 | AC28: 9973114 | AD28: 9984072 | AE28: 9986857
A29: MN | B29: 4387283 | C29: 4427429 | D29: 4471503 | E29: 4521709 | F29: 4566028 | G29: 4605445 | H29: 4647723 | I29: 4687726 | J29: 4726411 | K29: 4775508 | L29: 4933787 | M29: 4982339 | N29: 5016643 | O29: 5046708 | P29: 5078014 | Q29: 5104890 | R29: 5148346 | S29: 5191206 | T29: 5230567 | U29: 5266214 | V29: 5310828 | W29: 5346143 | X29: 5376643 | Y29: 5413479 | Z29: 5451079 | AA29: 5482032 | AB29: 5522744 | AC29: 5566230 | AD29: 5606249 | AE29: 5639632
A30: MS | B30: 2577426 | C30: 2591230 | D30: 2610193 | E30: 2635574 | F30: 2663450 | G30: 2690788 | H30: 2709925 | I30: 2731826 | J30: 2751335 | K30: 2768619 | L30: 2848293 | M30: 2853061 | N30: 2858013 | O30: 2866711 | P30: 2884596 | Q30: 2898209 | R30: 2897150 | S30: 2921723 | T30: 2940212 | U30: 2951996 | V30: 2970548 | W30: 2978731 | X30: 2983816 | Y30: 2988711 | Z30: 2990468 | AA30: 2988471 | AB30: 2987938 | AC30: 2988510 | AD30: 2981020 | AE30: 2976149
A31: MO | B31: 5126370 | C31: 5157770 | D31: 5193686 | E31: 5237757 | F31: 5281206 | G31: 5324610 | H31: 5367888 | I31: 5407113 | J31: 5437562 | K31: 5468338 | L31: 5605868 | M31: 5641994 | N31: 5675641 | O31: 5704639 | P31: 5742650 | Q31: 5785130 | R31: 5861572 | S31: 5909824 | T31: 5956335 | U31: 5987580 | V31: 5995974 | W31: 6010275 | X31: 6024367 | Y31: 6040715 | Z31: 6056202 | AA31: 6071732 | AB31: 6087135 | AC31: 6106670 | AD31: 6121623 | AE31: 6137428
A32: MT | B32: 799824 | C32: 807837 | D32: 822436 | E32: 839876 | F32: 854923 | G32: 868522 | H32: 876656 | I32: 878706 | J32: 879533 | K32: 882779 | L32: 903283 | M32: 905854 | N32: 909859 | O32: 916754 | P32: 925969 | Q32: 934888 | R32: 946230 | S32: 957225 | T32: 968035 | U32: 974989 | V32: 990697 | W32: 997316 | X32: 1003783 | Y32: 1013569 | Z32: 1021869 | AA32: 1030475 | AB32: 1040859 | AC32: 1052482 | AD32: 1060665 | AE32: 1068778
A33: NE | B33: 1580664 | C33: 1590805 | D33: 1602406 | E33: 1612149 | F33: 1621551 | G33: 1635142 | H33: 1647657 | I33: 1656042 | J33: 1660772 | K33: 1666028 | L33: 1713194 | M33: 1717705 | N33: 1724236 | O33: 1732873 | P33: 1741450 | Q33: 1751069 | R33: 1760435 | S33: 1769912 | T33: 1781949 | U33: 1796619 | V33: 1829542 | W33: 1840672 | X33: 1853303 | Y33: 1865279 | Z33: 1879321 | AA33: 1891277 | AB33: 1905616 | AC33: 1915947 | AD33: 1925614 | AE33: 1934408
A34: NV | B34: 1218629 | C34: 1285046 | D34: 1330694 | E34: 1380197 | F34: 1456388 | G34: 1525777 | H34: 1596476 | I34: 1675581 | J34: 1743772 | K34: 1809253 | L34: 2018244 | M34: 2093973 | N34: 2164518 | O34: 2233830 | P34: 2323875 | Q34: 2401671 | R34: 2493405 | S34: 2567752 | T34: 2615772 | U34: 2643085 | V34: 2702405 | W34: 2712730 | X34: 2743996 | Y34: 2775970 | Z34: 2817628 | AA34: 2866939 | AB34: 2917563 | AC34: 2969905 | AD34: 3027341 | AE34: 3080156
A35: NH | B35: 1111831 | C35: 1107055 | D35: 1112766 | E35: 1122191 | F35: 1133054 | G35: 1145604 | H35: 1160768 | I35: 1173239 | J35: 1185823 | K35: 1201134 | L35: 1240361 | M35: 1256625 | N35: 1270701 | O35: 1281260 | P35: 1292064 | Q35: 1300530 | R35: 1311894 | S35: 1317343 | T35: 1321872 | U35: 1324575 | V35: 1316762 | W35: 1320202 | X35: 1324232 | Y35: 1326622 | Z35: 1333341 | AA35: 1336350 | AB35: 1342307 | AC35: 1348787 | AD35: 1353465 | AE35: 1359711
A36: NJ | B36: 7757158 | C36: 7784269 | D36: 7827770 | E36: 7874891 | F36: 7918796 | G36: 7965523 | H36: 8009624 | I36: 8054178 | J36: 8095542 | K36: 8143412 | L36: 8430913 | M36: 8490942 | N36: 8547410 | O36: 8589562 | P36: 8620770 | Q36: 8634657 | R36: 8623721 | S36: 8636043 | T36: 8663398 | U36: 8707739 | V36: 8799446 | W36: 8828117 | X36: 8844942 | Y36: 8856972 | Z36: 8864525 | AA36: 8867949 | AB36: 8870827 | AC36: 8885525 | AD36: 8886025 | AE36: 8882190
A37: NM | B37: 1519933 | C37: 1547115 | D37: 1580750 | E37: 1614937 | F37: 1653329 | G37: 1682417 | H37: 1706151 | I37: 1722939 | J37: 1733535 | K37: 1739844 | L37: 1820704 | M37: 1828330 | N37: 1848986 | O37: 1867909 | P37: 1889266 | Q37: 1912884 | R37: 1942608 | S37: 1968731 | T37: 1986763 | U37: 2009671 | V37: 2064552 | W37: 2080450 | X37: 2087309 | Y37: 2092273 | Z37: 2089568 | AA37: 2089291 | AB37: 2091630 | AC37: 2091784 | AD37: 2092741 | AE37: 2096829
A38: NY | B38: 18002855 | C38: 18029532 | D38: 18082032 | E38: 18140894 | F38: 18156652 | G38: 18150928 | H38: 18143805 | I38: 18143184 | J38: 18159175 | K38: 18196601 | L38: 18998429 | M38: 19088220 | N38: 19161573 | O38: 19230877 | P38: 19301113 | Q38: 19336376 | R38: 19356564 | S38: 19422777 | T38: 19467789 | U38: 19541453 | V38: 19399878 | W38: 19499241 | X38: 19572932 | Y38: 19624447 | Z38: 19651049 | AA38: 19654666 | AB38: 19633428 | AC38: 19589572 | AD38: 19530351 | AE38: 19453561
A39: NC | B39: 6656987 | C39: 6748135 | D39: 6831850 | E39: 6947412 | F39: 7060959 | G39: 7185403 | H39: 7307658 | I39: 7428672 | J39: 7545828 | K39: 7650789 | L39: 8078824 | M39: 8199913 | N39: 8311263 | O39: 8409660 | P39: 8523199 | Q39: 8661061 | R39: 8866977 | S39: 9064074 | T39: 9247134 | U39: 9380884 | V39: 9574323 | W39: 9657592 | X39: 9749476 | Y39: 9843336 | Z39: 9932887 | AA39: 10031646 | AB39: 10154788 | AC39: 10268233 | AD39: 10381615 | AE39: 10488084
A40: ND | B40: 637364 | C40: 634199 | D40: 635427 | E40: 637229 | F40: 639762 | G40: 641548 | H40: 642858 | I40: 640945 | J40: 637808 | K40: 633666 | L40: 641183 | M40: 636211 | N40: 633521 | O40: 632689 | P40: 636196 | Q40: 635222 | R40: 636771 | S40: 638202 | T40: 641421 | U40: 646844 | V40: 674715 | W40: 685225 | X40: 701176 | Y40: 722036 | Z40: 737401 | AA40: 754066 | AB40: 754434 | AC40: 754942 | AD40: 758080 | AE40: 762062
A41: OH | B41: 10861837 | C41: 10933683 | D41: 11007609 | E41: 11070385 | F41: 11111451 | G41: 11155493 | H41: 11187032 | I41: 11212498 | J41: 11237752 | K41: 11256654 | L41: 11363719 | M41: 11391298 | N41: 11410582 | O41: 11430306 | P41: 11445095 | Q41: 11450954 | R41: 11492495 | S41: 11520815 | T41: 11528072 | U41: 11542645 | V41: 11539336 | W41: 11544663 | X41: 11548923 | Y41: 11576684 | Z41: 11602700 | AA41: 11617527 | AB41: 11634370 | AC41: 11659650 | AD41: 11676341 | AE41: 11689100
A42: OK | B42: 3147105 | C42: 3166471 | D42: 3204174 | E42: 3228829 | F42: 3246119 | G42: 3265547 | H42: 3289634 | I42: 3314259 | J42: 3339478 | K42: 3358044 | L42: 3453861 | M42: 3463387 | N42: 3482946 | O42: 3496157 | P42: 3511960 | Q42: 3530087 | R42: 3574334 | S42: 3612186 | T42: 3644025 | U42: 3687050 | V42: 3759944 | W42: 3788379 | X42: 3818814 | Y42: 3853214 | Z42: 3878187 | AA42: 3909500 | AB42: 3926331 | AC42: 3931316 | AD42: 3940235 | AE42: 3956971
A43: OR | B43: 2858547 | C43: 2918745 | D43: 2973934 | E43: 3034490 | F43: 3087142 | G43: 3141421 | H43: 3195087 | I43: 3243254 | J43: 3282055 | K43: 3316154 | L43: 3430828 | M43: 3470716 | N43: 3517982 | O43: 3551877 | P43: 3576262 | Q43: 3621939 | R43: 3677545 | S43: 3732957 | T43: 3782991 | U43: 3825657 | V43: 3837491 | W43: 3872036 | X43: 3899001 | Y43: 3922468 | Z43: 3963244 | AA43: 4015792 | AB43: 4089976 | AC43: 4143625 | AD43: 4181886 | AE43: 4217737
A44: PA | B44: 11895604 | C44: 11943160 | D44: 11980819 | E44: 12022128 | F44: 12042545 | G44: 12044780 | H44: 12038008 | I44: 12015888 | J44: 12002329 | K44: 11994016 | L44: 12285041 | M44: 12284522 | N44: 12298775 | O44: 12317647 | P44: 12335652 | Q44: 12351881 | R44: 12471142 | S44: 12522531 | T44: 12566368 | U44: 12604767 | V44: 12711160 | W44: 12745815 | X44: 12767118 | Y44: 12776309 | Z44: 12788313 | AA44: 12784826 | AB44: 12782275 | AC44: 12787641 | AD44: 12800922 | AE44: 12801989
A45: RI | B45: 1004649 | C45: 1003990 | D45: 1000571 | E45: 997852 | F45: 993412 | G45: 989203 | H45: 987858 | I45: 986966 | J45: 987704 | K45: 990819 | L45: 1050725 | M45: 1058065 | N45: 1065937 | O45: 1071302 | P45: 1071095 | Q45: 1064439 | R45: 1060196 | S45: 1055009 | T45: 1053502 | U45: 1053209 | V45: 1053959 | W45: 1053649 | X45: 1054621 | Y45: 1055081 | Z45: 1055936 | AA45: 1056065 | AB45: 1056770 | AC45: 1055673 | AD45: 1058287 | AE45: 1059361
A46: SC | B46: 3499064 | C46: 3559470 | D46: 3600576 | E46: 3634507 | F46: 3666456 | G46: 3699943 | H46: 3738974 | I46: 3790066 | J46: 3839578 | K46: 3885736 | L46: 4023396 | M46: 4061844 | N46: 4102211 | O46: 4143420 | P46: 4196799 | Q46: 4249385 | R46: 4339399 | S46: 4424232 | T46: 4503280 | U46: 4561242 | V46: 4635649 | W46: 4671994 | X46: 4717354 | Y46: 4764080 | Z46: 4823617 | AA46: 4891938 | AB46: 4957968 | AC46: 5021268 | AD46: 5084156 | AE46: 5148714
A47: SD | B47: 696667 | C47: 701445 | D47: 708698 | E47: 716258 | F47: 723038 | G47: 728251 | H47: 730699 | I47: 730855 | J47: 730789 | K47: 733133 | L47: 755657 | M47: 758705 | N47: 761709 | O47: 766440 | P47: 773539 | Q47: 779315 | R47: 788519 | S47: 797035 | T47: 804532 | U47: 812383 | V47: 816166 | W47: 823579 | X47: 833566 | Y47: 842316 | Z47: 849129 | AA47: 853988 | AB47: 862996 | AC47: 872868 | AD47: 878698 | AE47: 884659
A48: TN | B48: 4890626 | C48: 4946886 | D48: 5013999 | E48: 5085666 | F48: 5163016 | G48: 5241168 | H48: 5313576 | I48: 5378433 | J48: 5432679 | K48: 5483535 | L48: 5703094 | M48: 5753497 | N48: 5799093 | O48: 5849563 | P48: 5906936 | Q48: 5983211 | R48: 6089453 | S48: 6172862 | T48: 6240456 | U48: 6296254 | V48: 6355311 | W48: 6399291 | X48: 6453898 | Y48: 6494340 | Z48: 6541223 | AA48: 6591170 | AB48: 6646010 | AC48: 6708799 | AD48: 6771631 | AE48: 6829174
A49: TX | B49: 17044714 | C49: 17339904 | D49: 17650479 | E49: 17996764 | F49: 18338319 | G49: 18679706 | H49: 19006240 | I49: 19355427 | J49: 19712389 | K49: 20044141 | L49: 20946049 | M49: 21333928 | N49: 21713397 | O49: 22062119 | P49: 22424884 | Q49: 22811128 | R49: 23369024 | S49: 23837701 | T49: 24304290 | U49: 24782302 | V49: 25241971 | W49: 25645629 | X49: 26084481 | Y49: 26480266 | Z49: 26964333 | AA49: 27470056 | AB49: 27914410 | AC49: 28295273 | AD49: 28628666 | AE49: 28995881
A50: UT | B50: 1729722 | C50: 1771941 | D50: 1821498 | E50: 1875993 | F50: 1930436 | G50: 1976774 | H50: 2022253 | I50: 2065397 | J50: 2100562 | K50: 2129836 | L50: 2244210 | M50: 2291066 | N50: 2334462 | O50: 2380462 | P50: 2439852 | Q50: 2501262 | R50: 2583724 | S50: 2663796 | T50: 2727343 | U50: 2784572 | V50: 2775332 | W50: 2814384 | X50: 2853375 | Y50: 2897640 | Z50: 2936879 | AA50: 2981835 | AB50: 3041868 | AC50: 3101042 | AD50: 3153550 | AE50: 3205958
A51: VT | B51: 564526 | C51: 567141 | D51: 570115 | E51: 574004 | F51: 578900 | G51: 582827 | H51: 586352 | I51: 588665 | J51: 590579 | K51: 593740 | L51: 609876 | M51: 612134 | N51: 614994 | O51: 616702 | P51: 618432 | Q51: 619282 | R51: 619985 | S51: 620460 | T51: 621049 | U51: 621760 | V51: 625879 | W51: 627049 | X51: 626090 | Y51: 626210 | Z51: 625214 | AA51: 625216 | AB51: 623657 | AC51: 624344 | AD51: 624358 | AE51: 623989
A52: VA | B52: 6213526 | C52: 6283853 | D52: 6383315 | E52: 6464795 | F52: 6536771 | G52: 6601392 | H52: 6665491 | I52: 6732878 | J52: 6789225 | K52: 6872912 | L52: 7104354 | M52: 7188251 | N52: 7276785 | O52: 7363300 | P52: 7454688 | Q52: 7546725 | R52: 7646996 | S52: 7719749 | T52: 7795424 | U52: 7882590 | V52: 8023699 | W52: 8101155 | X52: 8185080 | Y52: 8252427 | Z52: 8310993 | AA52: 8361808 | AB52: 8410106 | AC52: 8463587 | AD52: 8501286 | AE52: 8535519
A53: WA | B53: 4900780 | C53: 5013443 | D53: 5139011 | E53: 5247704 | F53: 5334896 | G53: 5431024 | H53: 5509963 | I53: 5604105 | J53: 5687832 | K53: 5756361 | L53: 5911104 | M53: 5987181 | N53: 6055613 | O53: 6110202 | P53: 6179645 | Q53: 6254579 | R53: 6372243 | S53: 6464979 | T53: 6566073 | U53: 6664195 | V53: 6742830 | W53: 6826627 | X53: 6897058 | Y53: 6963985 | Z53: 7054655 | AA53: 7163657 | AB53: 7294771 | AC53: 7423362 | AD53: 7523869 | AE53: 7614893
A54: WV | B54: 1792481 | C54: 1798212 | D54: 1805462 | E54: 1816179 | F54: 1818490 | G54: 1820560 | H54: 1818983 | I54: 1815588 | J54: 1811688 | K54: 1806928 | L54: 1806977 | M54: 1798540 | N54: 1799392 | O54: 1802287 | P54: 1803312 | Q54: 1804020 | R54: 1807237 | S54: 1811198 | T54: 1814873 | U54: 1819777 | V54: 1854239 | W54: 1856301 | X54: 1856872 | Y54: 1853914 | Z54: 1849489 | AA54: 1842050 | AB54: 1831023 | AC54: 1817004 | AD54: 1804291 | AE54: 1792147
A55: WI | B55: 4902265 | C55: 4952675 | D55: 5004636 | E55: 5055318 | F55: 5095504 | G55: 5137004 | H55: 5173828 | I55: 5200235 | J55: 5222124 | K55: 5250446 | L55: 5374133 | M55: 5408061 | N55: 5444638 | O55: 5474360 | P55: 5508789 | Q55: 5538806 | R55: 5571680 | S55: 5601571 | T55: 5627610 | U55: 5654774 | V55: 5690475 | W55: 5705288 | X55: 5719960 | Y55: 5736754 | Z55: 5751525 | AA55: 5760940 | AB55: 5772628 | AC55: 5790186 | AD55: 5807406 | AE55: 5822434
A56: WY | B56: 453401 | C56: 457739 | D56: 463491 | E56: 469033 | F56: 474982 | G56: 478447 | H56: 480085 | I56: 480031 | J56: 480045 | K56: 479602 | L56: 493963 | M56: 492924 | N56: 496969 | O56: 499056 | P56: 502816 | Q56: 506007 | R56: 512841 | S56: 523414 | T56: 532981 | U56: 544270 | V56: 564487 | W56: 567299 | X56: 576305 | Y56: 582122 | Z56: 582531 | AA56: 585613 | AB56: 584215 | AC56: 578931 | AD56: 577601 | AE56: 578759
A57: US | B57: =SUM(B6:B56) -> 249464396 | C57: =SUM(C6:C56) -> 252153092 | D57: 255029699 | E57: 257782608 | F57: 260327021 | G57: 262803276 | H57: 265228572 | I57: 267783607 | J57: 270248003 | K57: 272690813 | L57: =SUM(L6:L56) -> 282171936 | M57: 285039803 | N57: 287726647 | O57: 290210914 | P57: 292892127 | Q57: 295560549 | R57: 298593212 | S57: 301579895 | T57: 304374846 | U57: =SUM(U6:U56) -> 307006550 | V57: =SUM(V6:V56) -> 309321666 | W57: 311556874 | X57: 313830990 | Y57: 315993715 | Z57: 318301008 | AA57: 320635163 | AB57: 322941311 | AC57: 324985539 | AD57: 326687501 | AE57: 328239523
B58: 1991-1999 estimates from http://www.census.gov/population/estimates/state/st-99-2.txt
B59: 2000+ sources in cell comments

Sheet Vegetable Data (hidden)
A1: Data on Vegetable Production were obtained from:
A2: USDA Quick Stats 2.0, Annual Vegetable Production. Available online by state: http://quickstats.nass.usda.gov/
A3: THIS DATASET IS NOT USED IN THE MODULE, DEFAULTS FOR VEGETABLE DATA ARE NOT PROVIDED IN THE STATE INVENTORY TOOL
A4: Vegetable Production, Metric Tons
A5: State | B5: 1998 | C5: 1999 | D5: 2000 | E5: 2001 | F5: 2002 | G5: 2003 | H5: 2004 | I5: 2005 | J5: 2006 | K5: 2007 | L5: 2008 | M5: 2009 | N5: 2010 | O5: 2011
A6: Alabama | B6: =B56/MT_Hundredweight+IF(ISERROR((VLOOKUP($A6,$Q$56:$Y$81,B$5-1996,FALSE)/MT_Ton)),0,(VLOOKUP($A6,$Q$56:$Y$81,B$5-1996,FALSE)/MT_Ton)) -> 31.64986049 | C6: 34.49479177 | D6: 50.04030912 | E6: 56.64461388 | F6: 57.50825373 | G6: 58.32109124 | H6: 35.96805975 | I6: 33.17393082 | J6: =J56/MT_Hundredweight+IF(ISERROR((VLOOKUP($A6,$Q$56:$Y$81,J$5-1996,FALSE)/MT_Ton)),0,(VLOOKUP($A6,$Q$56:$Y$81,J$5-1996,FALSE)/MT_Ton)) -> 39.32101448 | K6: 41.50551528 | L6: 43.84242312 | M6: 45.36649345 | N6: 46.33173799 | O6: 42.87717858
A7: Arizona | B7: 968.140275 | C7: 1180.951295 | D7: 1083.664806 | E7: 1052.776981 | F7: 1151.943157 | G7: 2075.732985 | H7: 2103.267856 | I7: 2064.708876 | J7: 2067.706215 | K7: 1878.670692 | L7: 1680.541549 | M7: =M57/MT_Hundredweight+IF(ISERROR((VLOOKUP($A7,$Q$56:$Y$81,M$5-1996,FALSE)/MT_Ton)),0,(VLOOKUP($A7,$Q$56:$Y$81,M$5-1996,FALSE)/MT_Ton)) -> 1605.455684 | N7: 1605.404882 | O7: 1687.755482
A8: Arkansas | B8: 34.08837301 | C8: 32.31029096 | D8: 28.19530108 | E8: 41.09909653 | F8: 40.59107308 | G8: 37.03490898 | H8: 24.74074167 | I8: 29.16054562 | J8: 34.34238474 | K8: 28.80492921 | L8: 31.24344173 | M8: 17.47600643 | N8: 26.67123075 | O8: 27.83968467
A9: California | B9: 8235454.97 | C9: 11241708.04 | D9: 9482669.405 | E9: 8004580.8 | F9: 10201492.46 | G9: 17233299.3 | H9: 21652308.54 | I9: 17879085.41 | J9: 11447.90187 | K9: 11265.62305 | L9: 11108.99943 | M9: =M59/MT_Hundredweight+IF(ISERROR((VLOOKUP($A9,$Q$56:$Y$81,M$5-1996,FALSE)/MT_Ton)),0,(VLOOKUP($A9,$Q$56:$Y$81,M$5-1996,FALSE)/MT_Ton)) -> 10897.81408 | N9: =N59/MT_Hundredweight+IF(ISERROR((VLOOKUP($A9,$Q$56:$Y$81,N$5-1996,FALSE)/MT_Ton)),0,(VLOOKUP($A9,$Q$56:$Y$81,N$5-1996,FALSE)/MT_Ton)) -> 11162.95152 | O9: =O59/MT_Hundredweight+IF(ISERROR((VLOOKUP($A9,$Q$56:$Y$81,O$5-1996,FALSE)/MT_Ton)),0,(VLOOKUP($A9,$Q$56:$Y$81,O$5-1996,FALSE)/MT_Ton)) -> 11032.94832
A10: Colorado | B10: 2172.373957 | C10: 794.9550834 | D10: 685.8316478 | E10: 483.7907246 | F10: 470.9377315 | G10: 417.1888513 | H10: 542.3658276 | I10: 482.2666543 | J10: 402.8117878 | K10: 368.2153914 | L10: 346.8784068 | M10: 352.7206764 | N10: 360.7474468 | O10: 361.0522608
A11: Connecticut | B11: 14.88508688 | C11: 9.652445414 | D11: 15.1390986 | E11: 13.25941186 | F11: 15.64712204 | G11: 14.02144702 | H11: 17.47600643 | I11: 17.17119237 | J11: 14.2246564 | K11: 18.28884394 | L11: 16.8663783 | M11: 13.86903999 | N11: 10.6684923 | O11: 7.874363364
A12: Delaware | B12: 52.83443806 | C12: 54.61252011 | D12: 55.67936934 | E12: 80.57251803 | F12: 62.38527878 | G12: 166686.0042 | H12: 136563.1079 | I12: 141072.9857 | J12: 57.40664904 | K12: 67.71952493 | L12: 83.46825166 | M12: 68.98958354 | N12: 68.07514134 | O12: 70.36124683
A13: Florida | B13: 56258.2785 | C13: 48752.97728 | D13: 66914.3564 | E13: 66649.77779 | F13: 66601.92198 | G13: 66355.88622 | H13: 66523.58476 | I13: 71329.36465 | J13: 1978.954519 | K13: 2190.800295 | L13: 2077.409462 | M13: 2094.580655 | N13: 1741.351955 | O13: 1925.307244
A14: Georgia | B14: 875.4767991 | C14: 977.9451275 | D14: 1289.973126 | E14: 1227.689452 | F14: 1149.504644 | G14: 49312.94313 | H14: 30908.80853 | I14: 27007.21632 | J14: 1179.884446 | K14: 1165.558185 | L14: 1118.312005 | M14: 1154.584879 | N14: 1115.162259 | O14: 877.3564858
A15: Hawaii | B15: 24.48672995 | C15: 24.74074167 | D15: 23.41988072 | E15: 7.061525856 | F15: 0 | G15: 0 | H15: 0 | I15: 0 | J15: 0 | K15: 0 | L15: 0 | M15: 0 | N15: 0 | O15: 0
A16: Idaho | B16: =B66/MT_Hundredweight+IF(ISERROR((VLOOKUP($A16,$Q$56:$Y$81,B$5-1996,FALSE)/MT_Ton)),0,(VLOOKUP($A16,$Q$56:$Y$81,B$5-1996,FALSE)/MT_Ton)) -> 131946.1239 | C16: 128121.1562 | D16: 148269.1544 | E16: 253.6053027 | F16: 318.6323034 | G16: 298.7177844 | H16: 406.825173 | I16: 308.8782532 | J16: 257.8726996 | K16: 346.7259997 | L16: 314.5681158 | M16: 330.824866 | N16: 347.4880349 | O16: 364.5576226
A17: Illinois | B17: 118377.4089 | C17: 132591.5536 | D17: 132633.3566 | E17: 143142.1005 | F17: 129316.681 | G17: 223132.5424 | H17: 211019.8156 | I17: 234805.3062 | J17: 282.2070225 | K17: 318.6323034 | L17: 293.2311312 | M17: 247.5598237 | N17: 248.0170448 | O17: 290.2337929
A18: Indiana | B18: 162299.0172 | C18: 216702.524 | D18: 237566.6613 | E18: 252230.0004 | F18: 257883.7297 | G18: 208597.3559 | H18: 272207.6945 | I18: 263478.746 | J18: 180.6023339 | K18: 187.3082434 | L18: 188.883116 | M18: 184.4125098 | N18: 200.0088294 | O18: 206.0035061
A19: Louisiana | B19: 23.06426431 | C19: 22.50543852 | D19: 12.29416732 | E19: 0 | F19: 10.97330637 | G19: 11.88774856 | H19: 6.604304757 | I19: 0 | J19: 0 | K19: 0 | L19: 0 | M19: 0 | N19: 0 | O19: 0
A20: Maine | B20: 6.451897724 | C20: 7.010723511 | D20: 5.893071937 | E20: 5.588257871 | F20: 5.588257871 | G20: 6.096281314 | H20: 6.096281314 | I20: 6.604304757 | J20: 6.299490691 | K20: 7.721956331 | L20: 5.486653183 | M20: 4.572210986 | N20: 5.029432084 | O20: 4.877025051
A21: Maryland | B21: 52.4280193 | C21: 69.85322339 | D21: 91.59662674 | E21: 92.86668535 | F21: 64.72218662 | G21: 112337.3857 | H21: 119851.6426 | I21: 121195.5972 | J21: 55.73017168 | K21: 48.71944817 | L21: 81.23294851 | M21: 60.9120108 | N21: 56.8986256 | O21: 62.79169754
A22: Massachusetts | B22: 24.68993932 | C22: 25.24876511 | D22: 22.75945024 | E22: 25.24876511 | F22: 20.27013537 | G22: 22.50543852 | H22: 26.51882372 | I22: 23.9787065 | J22: 18.49205332 | K22: 21.13377522 | L22: 21.13377522 | M22: 15.54551735 | N22: 19.81291427 | O22: 16.00273845
A23: Michigan | B23: 302237.2812 | C23: 351254.8016 | D23: 355433.0127 | E23: 289826.1123 | F23: 359750.6256 | G23: 707578.7358 | H23: 680477.8468 | I23: 613817.2474 | J23: 446.7050133 | K23: 424.0471677 | L23: 426.5364826 | M23: 462.301333 | N23: 426.2316685 | O23: 400.8304964
A24: Minnesota | B24: 870351.6739 | C24: 857401.6008 | D24: 834748.2045 | E24: 828327.1128 | F24: 912994.9424 | G24: 2042875.051 | H24: 1836934.121 | I24: 2033681.965 | J24: 0 | K24: 0 | L24: 0 | M24: 0 | N24: 0 | O24: 0
A25: Mississippi | B25: 12.09095794 | C25: 10.56688761 | D25: 9.398433693 | E25: 21.59099632 | F25: 26.77283544 | G25: 20.62575178 | H25: 19.20328614 | I25: 18.28884394 | J25: 19.71130958 | K25: 22.45463617 | L25: 22.45463617 | M25: 16.96798299 | N25: 22.86105493 | O25: 18.89847207
A26: Missouri | B26: =B76/MT_Hundredweight+IF(ISERROR((VLOOKUP($A26,$Q$56:$Y$81,B$5-1996,FALSE)/MT_Ton)),0,(VLOOKUP($A26,$Q$56:$Y$81,B$5-1996,FALSE)/MT_Ton)) -> 58.52430062 | C26: 64.62058193 | D26: 61.87725534 | E26: 58.42269593 | F26: 67.36390852 | G26: 38643.96888 | H26: 46367.80726 | I26: 42278.38422 | J26: 43.48680671 | K26: 37.64453711 | L26: 34.29158239 | M26: 43.5884114 | N26: 54.46011307 | O26: 48.61784348
A27: Nevada | B27: 93.88273224 | C27: 159.3161517 | D27: 171.0006909 | E27: 76.60993518 | F27: 103.3827706 | G27: 103.738387 | H27: 117.8614387 | I27: 112.7812043 | J27: 104.2972128 | K27: 107.3961558 | L27: 105.2624574 | M27: 128.8855474 | N27: 135.896271 | O27: 147.123589
A28: New Hampshire | B28: 5.486653183 | C28: 5.486653183 | D28: 5.486653183 | E28: 5.029432084 | F28: 4.318199264 | G28: 6.75671179 | H28: 6.40109538 | I28: 6.502700068 | J28: 4.572210986 | K28: 5.181839117 | L28: 6.502700068 | M28: 3.91178051 | N28: 3.91178051 | O28: 4.318199264
A29: New Jersey | B29: 240.2442861 | C29: 171.0006909 | D29: 282.5118366 | E29: 266.1026794 | F29: 238.16139 | G29: 38074.67759 | H29: 51413.57015 | I29: 44977.70224 | J29: 196.8082818 | K29: 202.7013537 | L29: 209.6612749 | M29: 198.4339568 | N29: 201.6345045 | O29: 200.4152482
A30: New Mexico | B30: 374.1084633 | C30: 358.6645506 | D30: 460.4724486 | E30: 273.9770427 | F30: 321.4772346 | G30: 349.9773498 | H30: 349.2153146 | I30: 319.9531643 | J30: 276.1615435 | K30: 262.64812 | L30: 267.3219356 | M30: 260.8700379 | N30: 257.1614668 | O30: 241.107926
A31: New York | B31: 411046.6753 | C31: 378092.7812 | D31: 351579.9875 | E31: 341054.2829 | F31: 159328.3636 | G31: 389296.8425 | H31: 383154.6412 | I31: 390324.6614 | J31: 649.558774 | K31: 754.9228361 | L31: 809.1797398 | M31: 619.2297745 | N31: 714.1793559 | O31: 571.932792
A32: North Carolina | B32: 71746.90255 | C32: 70986.31865 | D32: 82076.23425 | E32: 78664.40583 | F32: 73862.59583 | G32: 72915.74873 | H32: 63127.26618 | I32: 62691.3021 | J32: 329.504005 | K32: 315.5841627 | L32: 305.3220891 | M32: 400.5256823 | N32: 341.7981723 | O32: 347.2340232
A33: Ohio | B33: 185606.1456 | C33: 219256.1264 | D33: 165022.6986 | E33: 176278.4622 | F33: 162076.9165 | G33: 365344.6912 | H33: 403618.652 | I33: 371382.4065 | J33: 351.7554318 | K33: 296.4316789 | L33: 215.3511374 | M33: 287.9476874 | N33: 250.557162 | O33: 274.8406826
A34: Oklahoma | B34: 35.81565272 | C34: 34.29158239 | D34: 21.3369846 | E34: 38.10175821 | F34: 36.32367616 | G34: 42.6739692 | H34: 35.561641 | I34: 36.83169961 | J34: 16.25675017 | K34: 28.60171983 | L34: 18.28884394 | M34: 16.91718065 | N34: 27.94128936 | O34: 11.68453919
A35: Oregon | B35: 449522.7862 | C35: 496345.877 | D35: 465746.5415 | E35: 351208.129 | F35: 370956.5739 | G35: 751054.147 | H35: 760949.4596 | I35: 686584.2977 | J35: 649.4571693 | K35: 882.3351155 | L35: 801.8133998 | M35: 719.3103927 | N35: 788.9096044 | O35: 801.5593881
A36: Other States | B36: =B88/MT_Hundredweight+IF(ISERROR((VLOOKUP($A36,$Q$56:$Y$81,B$5-1996,FALSE)/MT_Ton)),0,(VLOOKUP($A36,$Q$56:$Y$81,B$5-1996,FALSE)/MT_Ton)) -> 709872.7488 | C36: 763795.0266 | D36: 787130.4171 | E36: 854493.7147 | F36: 660340.2979 | G36: 1174967.863 | H36: 1222713.009 | I36: 1280010.814 | J36: =J88/MT_Hundredweight+IF(ISERROR((VLOOKUP($A36,$Q$56:$Y$81,J$5-1996,FALSE)/MT_Ton)),0,(VLOOKUP($A36,$Q$56:$Y$81,J$5-1996,FALSE)/MT_Ton)) -> 0 | K36: 0 | L36: 0 | M36: 0 | N36: 0 | O36: 0
A37: Pennsylvania | B37: 60738.3288 | C37: 55890.86925 | D37: 75048.54795 | E37: 25148.76469 | F37: 24652.4474 | G37: 86671.46745 | H37: 99523.81128 | I37: =I89/MT_Hundredweight+IF(ISERROR((VLOOKUP($A37,$Q$56:$Y$81,I$5-1996,FALSE)/MT_Ton)),0,(VLOOKUP($A37,$Q$56:$Y$81,I$5-1996,FALSE)/MT_Ton)) -> 61854.05022 | J37: 155.6075805 | K37: 139.6048421 | L37: 164.091572 | M37: 0 | N37: 0 | O37: 0
A38: Rhode Island | B38: 3.860978166 | C38: 2.235303149 | D38: 2.540117214 | E38: 3.454559411 | F38: 3.251350034 | G38: 3.657768788 | H38: 5.029432084 | I38: 2.84493128 | J38: 1.828884394 | K38: 2.743326591 | L38: 3.454559411 | M38: 0 | N38: 0 | O38: 0
A39: South Carolina | B39: 5573.904242 | C39: 4893.442923 | D39: 8215.72128 | E39: 14861.67147 | F39: 12955.94433 | G39: 16831.91037 | H39: 20842.11801 | I39: 13092.53013 | J39: 127.9711053 | K39: 76.15271408 | L39: 133.102142 | M39: 127.2090701 | N39: 137.7251554 | O39: 119.7919278
A40: Tennessee | B40: 57.3558467 | C40: 57.50825373 | D40: 79.55647115 | E40: 47.75420363 | F40: 94.13674396 | G40: 8380.110481 | H40: 8342.618351 | I40: 8358.925903 | J40: 90.42817283 | K40: 85.14472902 | L40: 79.25165708 | M40: 2.286105493 | N40: 2.48931487 | O40: 2.336907837
A41: Texas | B41: 111672.7672 | C41: 120225.0396 | D41: 98046.84125 | E41: 128240.215 | F41: 100635.9835 | G41: 182069.4447 | H41: 147799.6388 | I41: 134472.0535 | J41: 852.1077207 | K41: 581.0772139 | L41: 645.1897724 | M41: 137.674353 | N41: 183.8028816 | O41: 210.5757171
A42: Utah | B42: 107.2945511 | C42: 127.6154888 | D42: 112.1715762 | E42: 48.56704114 | F42: 53.3424615 | G42: 42.06434107 | H42: 39.62582854 | I42: 37.7461418 | J42: 34.29158239 | K42: 46.63655205 | L42: 39.27021213 | M42: 85.19553136 | N42: 95.05118616 | O42: 68.22754837
A43: Vermont | B43: 3.657768788 | C43: 2.794128936 | D43: 2.082896116 | E43: 2.540117214 | F43: 2.438512526 | G43: 4.470606297 | H43: 2.794128936 | I43: 3.91178051 | J43: 2.540117214 | K43: 3.657768788 | L43: 2.540117214 | M43: 664.5962679 | N43: 683.2915306 | O43: 589.5104031
A44: Virginia | B44: 119.9951372 | C44: 129.9015943 | D44: 146.4123562 | E44: 171.6611213 | F44: 156.7252321 | G44: 5318.128868 | H44: 7443.046424 | I44: 3366.128024 | J44: 147.9872289 | K44: 125.4817904 | L44: 101.0966651 | M44: 35.46003631 | N44: 41.45471294 | O44: 38.2033629
A45: Washington | B45: 1014287.713 | C45: 1021376.043 | D45: 1014023.94 | E45: 984823.484 | F45: 1026408.707 | G45: 2121754.329 | H45: 1987223.881 | I45: 1841176.365 | J45: 779.7143801 | K45: 870.9045881 | L45: 808.8749257 | M45: 2.286105493 | N45: 2.540117214 | O45: 1.42246564
A46: Wisconsin | B46: 1109261.571 | C46: 1160881.399 | D46: 1123905.511 | E46: 1032216.723 | F46: 1016974.796 | G46: 2124676.64 | H46: 1824071.501 | I46: 2147236.56 | J46: 105.8212831 | K46: 112.882809 | L46: 80.62332038 | M46: 105.364062 | N46: 81.3345532 | O46: 83.62065869
A52: 1 metric ton = | B52: 19.684131 | C52: hundredweight | Q52: 1 metric ton = | R52: 1.102311 | S52: tons
A54: Thousand Hundredweight | Q54: Tons
A55: State | B55: 1998 | C55: 1999 | D55: 2000 | E55: 2001 | F55: 2002 | G55: 2003 | H55: 2004 | I55: 2005 | J55: 2006 | K55: 2007 | L55: 2008 | M55: 2009 | N55: 2010 | O55: 2011 | Q55: State | R55: 1998 | S55: 1999 | T55: 2000 | U55: 2001 | V55: 2002 | W55: 2003 | X55: 2004 | Y55: 2005 | Z55: 2006 | AA55: 2007 | AB55: 2008 | AC55: 2009 | AD55: 2010 | AE55: 2011
A56: Alabama | B56: 623 | C56: 679 | D56: 985 | E56: 1115 | F56: 1132 | G56: 1148 | H56: 708 | I56: 653 | J56: 774 | K56: 817 | L56: 863 | M56: 893 | N56: 912 | O56: 844 | Q56: California | R56: 9063620 | S56: 12376270 | T56: 10433500 | U56: 8805950 | V56: 11229730 | W56: 18983730 | X56: 23854720 | Y56: 19695780 | AB56: 11941950
A57: Arizona | B57: 19057 | C57: 23246 | D57: 21331 | E57: 20723 | F57: 22675 | G57: 40859 | H57: 41401 | I57: 40642 | J57: 40701 | K57: 36980 | L57: 33080 | M57: 31602 | N57: 31601 | O57: 33222 | Q57: Colorado | R57: 1440
A58: Arkansas | B58: 671 | C58: 636 | D58: 555 | E58: 809 | F58: 799 | G58: 729 | H58: 487 | I58: 574 | J58: 676 | K58: 567 | L58: 615 | M58: 344 | N58: 525 | O58: 548 | Q58: Delaware | W58: 183700 | X58: 150470 | Y58: 155440 | AB58: 10080
A59: California | B59: 257368 | C59: 278365 | D59: 345550 | E59: 314062 | F59: 276560 | G59: 227239 | H59: 229605 | I59: 223795 | J59: 225342 | K59: 221754 | L59: 218671 | M59: 214514 | N59: 219733 | O59: 217174 | Q59: Florida | R59: 59500 | S59: 50920 | T59: 70850 | U59: 70850 | V59: 70850 | W59: 70850 | X59: 70850 | Y59: 76250 | AB59: 73500
A60: Colorado | B60: 17047 | C60: 15648 | D60: 13500 | E60: 9523 | F60: 9270 | G60: 8212 | H60: 10676 | I60: 9493 | J60: 7929 | K60: 7248 | L60: 6828 | M60: 6943 | N60: 7101 | O60: 7107 | Q60: Georgia | W60: 53220 | X60: 32880 | Y60: 28550
A61: Connecticut | B61: 293 | C61: 190 | D61: 298 | E61: 261 | F61: 308 | G61: 276 | H61: 344 | I61: 338 | J61: 280 | K61: 360 | L61: 332 | M61: 273 | N61: 210 | O61: 155 | Q61: Idaho | R61: 144900 | S61: 140610 | T61: 162900
A62: Delaware | B62: 1040 | C62: 1075 | D62: 1096 | E62: 1586 | F62: 1228 | G62: 711 | H62: 1161 | I62: 1184 | J62: 1130 | K62: 1333 | L62: 1643 | M62: 1358 | N62: 1340 | O62: 1385 | Q62: Illinois | R62: 130440 | S62: 146120 | T62: 145960 | U62: 157570 | V62: 142340 | W62: 245750 | X62: 232320 | Y62: 258510 | AB62: 44820
A63: Florida | B63: 44895 | C63: 50374 | D63: 51972 | E63: 46764 | F63: 45822 | G63: 40979 | H63: 44280 | I63: 42449 | J63: 38954 | K63: 43124 | L63: 40892 | M63: 41230 | N63: 34277 | O63: 37898 | Q63: Indiana | R63: 178730 | S63: 238710 | T63: 261710 | U63: 277810 | V63: 284070 | W63: 229730 | X63: 299850 | Y63: 290230 | AB63: 270290
A64: Georgia | B64: 17233 | C64: 19250 | D64: 25392 | E64: 24166 | F64: 22627 | G64: 20325 | H64: 21270 | I64: 21792 | J64: 23225 | K64: 22943 | L64: 22013 | M64: 22727 | N64: 21951 | O64: 17270 | Q64: Iowa | W64: 10790 | X64: 9600 | Y64: 18930
A65: Hawaii | B65: 482 | C65: 487 | D65: 461 | E65: 139 | Q65: Maryland | W65: 123780 | X65: 132050 | Y65: 133530 | AB65: 50370
A66: Idaho | B66: 9744 | C66: 11060 | D66: 9620 | E66: 4992 | F66: 6272 | G66: 5880 | H66: 8008 | I66: 6080 | J66: 5076 | K66: 6825 | L66: 6192 | M66: 6512 | N66: 6840 | O66: 7176 | Q66: Michigan | R66: 332000 | S66: 385970 | T66: 390580 | U66: 318280 | V66: 396030 | W66: 779420 | X66: 749560 | Y66: 676120 | AB66: 413350
A67: Illinois | B67: 870 | C67: 663 | D67: 4343 | E67: 3877 | F67: 3700 | G67: 3776 | H67: 5169 | I67: 5687 | J67: 5555 | K67: 6272 | L67: 5772 | M67: 4873 | N67: 4882 | O67: 5713 | Q67: Minnesota | R67: 959370 | S67: 945110 | T67: 920150 | U67: 913070 | V67: 1006400 | W67: 2251880 | X67: 2024870 | Y67: 2241750 | AB67: 1016340
A68: Indiana | B68: 3107 | C68: 2921 | D68: 2899 | E68: 4034 | F68: 3537 | G68: 3735 | H68: 3706 | I68: 3670 | J68: 3555 | K68: 3687 | L68: 3718 | M68: 3630 | N68: 3937 | O68: 4055 | Q68: Missouri | W68: 42520 | X68: 51060 | Y68: 46550
A69: Louisiana | B69: 454 | C69: 443 | D69: 242 | F69: 216 | G69: 234 | H69: 130 | Q69: New Jersey | W69: 41750 | X69: 56440 | Y69: 49380
A70: Maine | B70: 127 | C70: 138 | D70: 116 | E70: 110 | F70: 110 | G70: 120 | H70: 120 | I70: 130 | J70: 124 | K70: 152 | L70: 108 | M70: 90 | N70: 99 | O70: 96 | Q70: New York | R70: 452150 | S70: 415810 | T70: 386320 | U70: 374940 | V70: 174850 | W70: 428360 | X70: 421520 | Y70: 429580 | AB70: 77590
A71: Maryland | B71: 1032 | C71: 1375 | D71: 1803 | E71: 1828 | F71: 1274 | G71: 906 | H71: 1139 | I71: 1165 | J71: 1097 | K71: 959 | L71: 1599 | M71: 1199 | N71: 1120 | O71: 1236 | Q71: North Carolina | R71: 78750 | S71: 77920 | T71: 90000 | U71: 86240 | V71: 81000 | W71: 80040 | X71: 69300 | Y71: 68800 | AB71: 42300
A72: Massachusetts | B72: 486 | C72: 497 | D72: 448 | E72: 497 | F72: 399 | G72: 443 | H72: 522 | I72: 472 | J72: 364 | K72: 416 | L72: 416 | M72: 306 | N72: 390 | O72: 315 | Q72: Ohio | R72: 204410 | S72: 241500 | T72: 181640 | U72: 194010 | V72: 178330 | W72: 402440 | X72: 444640 | Y72: 409040 | AB72: 153940
A73: Michigan | B73: 20705 | C73: 21822 | D73: 21745 | E73: 21402 | F73: 9412 | G73: 9854 | H73: 9611 | I73: 8884 | J73: 8793 | K73: 8347 | L73: 8396 | M73: 9100 | N73: 8390 | O73: 7890 | Q73: Oregon | R73: 495420 | S73: 547020 | T73: 513190 | U73: 386920 | V73: 408740 | W73: 827220 | X73: 838010 | Y73: 756160 | AB73: 324770
A74: Minnesota | B74: 504 | C74: 236 | D74: 38 | E74: 73 | F74: 78 | G74: 65 | H74: 48 | I74: 0 | J74: 0 | Q74: Other States | R74: 767970 | S74: 827240 | T74: 858420 | U74: 932490 | V74: 721840 | W74: 1295180 | X74: 1347810 | Y74: 1410970 | AB74: 861260
A75: Mississippi | B75: 238 | C75: 208 | D75: 185 | E75: 425 | F75: 527 | G75: 406 | H75: 378 | I75: 360 | J75: 388 | K75: 442 | L75: 442 | M75: 334 | N75: 450 | O75: 372 | Q75: Pennsylvania | R75: 66830 | S75: 61510 | T75: 82530 | U75: 27570 | V75: 27000 | W75: 95410 | X75: 109500 | Y75: 68020 | AB75: 37250
A76: Missouri | B76: 1152 | C76: 1272 | D76: 1218 | E76: 1150 | F76: 1326 | G76: 1387 | H76: 924 | I76: 963 | J76: 856 | K76: 741 | L76: 675 | M76: 858 | N76: 1072 | O76: 957 | Q76: South Carolina | R76: 6010 | S76: 5270 | T76: 8860 | U76: 16170 | V76: 14130 | W76: 18400 | X76: 22800 | Y76: 14350 | AB76: 10500
A77: Nevada | B77: 1848 | C77: 3136 | D77: 3366 | E77: 1508 | F77: 2035 | G77: 2042 | H77: 2320 | I77: 2220 | J77: 2053 | K77: 2114 | L77: 2072 | M77: 2537 | N77: 2675 | O77: 2896 | Q77: Tennessee | W77: 9120 | X77: 9120 | Y77: 9120
A78: New Hampshire | B78: 108 | C78: 108 | D78: 108 | E78: 99 | F78: 85 | G78: 133 | H78: 126 | I78: 128 | J78: 90 | K78: 102 | L78: 128 | M78: 77 | N78: 77 | O78: 85 | Q78: Texas | R78: 121970 | S78: 131280 | T78: 106860 | U78: 140060 | V78: 109800 | W78: 199600 | X78: 161920 | Y78: 147310 | AB78: 37000
A79: New Jersey | B79: 4729 | C79: 3366 | D79: 5561 | E79: 5238 | F79: 4688 | G79: 3931 | H79: 4174 | I79: 3561 | J79: 3874 | K79: 3990 | L79: 4127 | M79: 3906 | N79: 3969 | O79: 3945 | Q79: Virginia | W79: 5700 | X79: 8030 | Y79: 3540
A80: New Mexico | B80: 7364 | C80: 7060 | D80: 9064 | E80: 5393 | F80: 6328 | G80: 6889 | H80: 6874 | I80: 6298 | J80: 5436 | K80: 5170 | L80: 5262 | M80: 5135 | N80: 5062 | O80: 4746 | Q80: Washington | R80: 1115680 | S80: 1124720 | T80: 1115240 | U80: 1083750 | V80: 1130750 | W80: 2338060 | X80: 2189710 | Y80: 2028700 | AB80: 892950
A81: New York | B81: 16987 | C81: 17247 | D81: 21973 | E81: 17998 | F81: 13918 | G81: 13682 | H81: 14921 | I81: 12128 | J81: 12786 | K81: 14860 | L81: 15928 | M81: 12189 | N81: 14058 | O81: 11258 | Q81: Wisconsin | R81: 1222540 | S81: 1279470 | T81: 1238730 | U81: 1137710 | V81: 1120910 | W81: 2341930 | X81: 2010600 | Y81: 2366820 | AB81: 1172200
A82: North Carolina | B82: 6025 | C82: 5875 | D82: 8456 | E82: 8440 | F82: 7492 | G82: 5997 | H82: 5105 | I82: 5452 | J82: 6486 | K82: 6212 | L82: 6010 | M82: 7884 | N82: 6728 | O82: 6835
A83: Ohio | B83: 3316 | C83: 3365 | D83: 4756 | E83: 5423 | F83: 5878 | G83: 5062 | H83: 4880 | I83: 6052 | J83: 6924 | K83: 5835 | L83: 4239 | M83: 5668 | N83: 4932 | O83: 5410
A84: Oklahoma | B84: 705 | C84: 675 | D84: 420 | E84: 750 | F84: 715 | G84: 840 | H84: 700 | I84: 725 | J84: 320 | K84: 563 | L84: 360 | M84: 333 | N84: 550 | O84: 230
A85: Oregon | B85: 1677 | C85: 1920 | D85: 3706 | E85: 3939 | F85: 3027 | G85: 12058 | H85: 14160 | I85: 11954 | J85: 12784 | K85: 17368 | L85: 15783 | M85: 14159 | N85: 15529 | O85: 15778
A86: Oregon - OR Malhuer | B86: 12240 | C86: 17286 | D86: 13920 | E86: 7006 | F86: 7800
A87: Oregon - OR Other | B87: 6600 | C87: 7200 | D87: 6344 | E87: 2964 | F87: 3869
A88: Other States | B88: 259474 | C88: 262494 | D88: 165045 | E88: 168354 | F88: 108221
A89: Pennsylvania | B89: 2188 | C89: 1770 | D89: 3515 | E89: 2710 | F89: 3119 | G89: 2302 | H89: 3682 | I89: 2900 | J89: 3063 | K89: 2748 | L89: 3230 | M89: 2504 | N89: 2711 | O89: 2358
A90: Rhode Island | B90: 76 | C90: 44 | D90: 50 | E90: 68 | F90: 64 | G90: 72 | H90: 99 | I90: 56 | J90: 36 | K90: 54 | L90: 68 | M90: 45 | N90: 49 | O90: 46
A91: South Carolina | B91: 2396 | C91: 2216 | D91: 3505 | E91: 3789 | F91: 2705 | G91: 2750 | H91: 3116 | I91: 1465 | J91: 2519 | K91: 1499 | L91: 2620 | M91: 2710 | N91: 3618 | O91: 4145
A92: Tennessee | B92: 1129 | C92: 1132 | D92: 1566 | E92: 940 | F92: 1853 | G92: 2098 | H92: 1360 | I92: 1681 | J92: 1780 | K92: 1676 | L92: 1560 | M92: 1677 | N92: 1871 | O92: 1343
A93: Texas | B93: 20145 | C93: 22239 | D93: 21752 | E93: 23225 | F93: 20217 | G93: 19592 | H93: 17878 | I93: 16429 | J93: 16773 | K93: 11438 | L93: 12700 | M93: 13082 | N93: 13450 | O93: 11604
A94: Utah | B94: 2112 | C94: 2512 | D94: 2208 | E94: 956 | F94: 1050 | G94: 828 | H94: 780 | I94: 743 | J94: 675 | K94: 918 | L94: 773 | M94: 698 | N94: 816 | O94: 752
A95: Vermont | B95: 72 | C95: 55 | D95: 41 | E95: 50 | F95: 48 | G95: 88 | H95: 55 | I95: 77 | J95: 50 | K95: 72 | L95: 50 | M95: 45 | N95: 50 | O95: 28
A96: Virginia | B96: 2362 | C96: 2557 | D96: 2882 | E96: 3379 | F96: 3085 | G96: 2897 | H96: 3117 | I96: 3045 | J96: 2913 | K96: 2470 | L96: 1990 | M96: 2074 | N96: 1601 | O96: 1646
A97: Washington | B97: 42509 | C97: 20608 | D97: 45174 | E97: 32710 | F97: 11993 | G97: 13806 | H97: 14799 | I97: 15160 | J97: 15348 | K97: 17143 | L97: 15922 | M97: 17096 | N97: 17458 | O97: 16404
A98: Wisconsin | B98: 3772 | C98: 3256 | D98: 2918 | E98: 2033 | F98: 2009 | G98: 2222 | H98: 1680 | I98: 1830 | J98: 2083 | K98: 2222 | L98: 1587 | M98: 2562 | N98: 1683 | O98: 2145
A100: Source: USDA Quick Stats 2.0, Annual Vegetable Production. Available online by state: http://quickstats.nass.usda.gov. Choose Survey, Crops, Vegetables, Vegetable Totals, Production, Vegetable Totals 34 Major Varies by Season Fresh Market - Production, Measured in CWT (Don't choose Total in the Domain), State, Select All States, Select All Years, Get the Data.

Sheet Red Meat Data
A1: Data on Red Meat Production were obtained from:
A2: USDA Quick Stats 2.0, Annual Red Meat Production. Available online by state: http://quickstats.nass.usda.gov/
A5: Red Meat Production, Metric Tons
A6: State | C6: 1990 | D6: 1991 | E6: 1992 | F6: 1993 | G6: 1994 | H6: 1995 | I6: 1996 | J6: 1997 | K6: 1998 | L6: 1999 | M6: 2000 | N6: 2001 | O6: 2002 | P6: 2003 | Q6: 2004 | R6: 2005 | S6: 2006 | T6: 2007 | U6: 2008 | V6: 2009 | W6: 2010 | X6: 2011 | Y6: 2012 | Z6: 2013 | AA6: 2014 | AB6: 2015 | AC6: 2016 | AD6: 2017 | AE6: 2018 | AF6: 2019 | AG6: 2020
A7: Alabama | B7: AL | C7: =(C58/MT_Lbs)*10^6 -> 94802.4 | D7: 86909.76 | E7: 17917.2 | F7: 18325.44 | G7: 18234.72 | H7: 51846.48 | I7: 62596.8 | J7: 60419.52 | K7: 69718.32 | L7: 42366.24 | M7: 19141.92 | N7: 20684.16 | O7: 22634.64 | P7: 18370.8 | Q7: 15286.32 | R7: 14061.6 | S7: =(S58/MT_Lbs)*10^6 -> 13880.16 | T7: 12519.36 | U7: 10886.4 | V7: 10342.08 | W7: 9843.12 | X7: =(X58/MT_Lbs)*10^6 -> 9117.36 | Y7: 5171.04 | Z7: =(Z58/MT_Lbs)*10^6 -> 5034.96 | AA7: 4173.12 | AB7: =(AB58/MT_Lbs)*10^6 -> 3991.68 | AC7: 4581.36 | AD7: =(AD58/MT_Lbs)*10^6 -> 6032.88 | AE7: 6259.68 | AF7: =(AF58/MT_Lbs)*10^6 -> 4263.84 | AG7: 0
A8: Alaska | B8: AK | C8: =(C59/MT_Lbs)*10^6 -> 0 | D8: 0 | E8: 0 | F8: 0 | G8: 0 | H8: 0 | I8: 0 | J8: 0 | K8: 0 | L8: 181.44 | M8: 272.16 | N8: 226.8 | O8: 272.16 | P8: 226.8 | Q8: 226.8 | R8: 317.52 | S8: 317.52 | T8: 226.8 | U8: 226.8 | V8: 272.16 | W8: 272.16 | X8: 272.16 | Y8: 226.8 | Z8: 317.52 | AA8: 272.16 | AB8: 272.16 | AC8: 589.68 | AD8: =(AD59/MT_Lbs)*10^6 -> 453.6 | AE8: 408.24 | AF8: =(AF59/MT_Lbs)*10^6 -> 317.52 | AG8: 0
A9: Arizona | B9: AZ | C9: =(C60/MT_Lbs)*10^6 -> 102695.04 | D9: 108319.68 | E9: 108546.48 | F9: 112855.68 | G9: 123197.76 | H9: 141750 | I9: 152364.24 | J9: 145923.12 | K9: 149189.04 | L9: 162660.96 | M9: 177040.08 | N9: 189287.28 | O9: 203666.4 | P9: 192643.92 | Q9: 160529.04 | R9: 163522.8 | S9: 175316.4 | T9: 184116.24 | U9: 185204.88 | V9: 164430 | W9: 177448.32 | X9: 187654.32 | Y9: 175225.68 | Z9: 183118.32 | AA9: 189695.52 | AB9: 204120 | AC9: 222490.8 | AD9: =(AD60/MT_Lbs)*10^6 -> 206705.52 | AE9: 212330.16 | AF9: =(AF60/MT_Lbs)*10^6 -> 210878.64 | AG9: 0
A10: Arkansas | B10: AR | C10: =(C61/MT_Lbs)*10^6 -> 30391.2 | D10: 33022.08 | E10: 32568.48 | F10: 29892.24 | G10: 31389.12 | H10: 35471.52 | I10: 34972.56 | J10: 31842.72 | K10: 31026.24 | L10: 31661.28 | M10: 25310.88 | N10: 26898.48 | O10: 30300.48 | P10: 29756.16 | Q10: 27397.44 | R10: 25764.48 | S10: 24630.48 | T10: 26399.52 | U10: 29166.48 | V10: 27034.56 | W10: 23451.12 | X10: 19368.72 | Y10: 20638.8 | Z10: 7212.24 | AA10: 2131.92 | AB10: 1950.48 | AC10: 2268 | AD10: =(AD61/MT_Lbs)*10^6 -> 2268 | AE10: 1905.12 | AF10: =(AF61/MT_Lbs)*10^6 -> 1905.12 | AG10: 0
A11: California | B11: CA | C11: =(C62/MT_Lbs)*10^6 -> 509846.4 | D11: 485215.92 | E11: 430375.68 | F11: 413274.96 | G11: 434412.72 | H11: 473104.8 | I11: 477187.2 | J11: 470020.32 | K11: 473195.52 | L11: 480952.08 | M11: 487302.48 | N11: 513429.84 | O11: 613720.8 | P11: 647650.08 | Q11: 648149.04 | R11: 666383.76 | S11: 729207.36 | T11: 758600.64 | U11: 753973.92 | V11: 772843.68 | W11: 781961.04 | X11: 786315.6 | Y11: 783367.2 | Z11: 785272.32 | AA11: 657720 | AB11: 601428.24 | AC11: 617893.92 | AD11: =(AD62/MT_Lbs)*10^6 -> 649146.96 | AE11: 656948.88 | AF11: =(AF62/MT_Lbs)*10^6 -> 722358 | AG11: 0
A12: Colorado | B12: CO | C12: =(C63/MT_Lbs)*10^6 -> 721042.56 | D12: 795523.68 | E12: 878623.2 | F12: 861522.48 | G12: 885744.72 | H12: 917269.92 | I12: 921034.8 | J12: 919311.12 | K12: 887014.8 | L12: 969751.44 | M12: 975421.44 | N12: 969887.52 | O12: 991070.64 | P12: 898989.84 | Q12: 894998.16 | R12: 798971.04 | S12: 829452.96 | T12: 856079.28 | U12: 967937.04 | V12: 924436.8 | W12: 966576.24 | X12: 975285.36 | Y12: 1003227.12 | Z12: 1028810.16 | AA12: 990798.48 | AB12: 966666.96 | AC12: 1013750.64 | AD12: =(AD63/MT_Lbs)*10^6 -> 1017107.28 | AE12: 1014113.52 | AF12: =(AF63/MT_Lbs)*10^6 -> 993338.64 | AG12: 0
A13: Delaware | B13: DE | C13: =(C64/MT_Lbs)*10^6 -> 0 | D13: 0 | E13: 0 | F13: 0 | G13: 0 | H13: 0 | I13: 0 | J13: 0 | K13: 0 | L13: 0 | M13: 0 | N13: 0 | O13: 0 | P13: 0 | Q13: 0 | R13: 0 | S13: 0 | T13: 0 | U13: 0 | V13: 0 | W13: 0 | X13: 0 | Y13: 0 | Z13: 0 | AA13: 0 | AB13: 0 | AC13: 0 | AD13: =(AD64/MT_Lbs)*10^6 -> 0 | AE13: 0 | AF13: =(AF64/MT_Lbs)*10^6 -> 0 | AG13: 0
A14: Florida | B14: FL | C14: =(C65/MT_Lbs)*10^6 -> 44588.88 | D14: 22589.28 | E14: 18280.08 | F14: 18416.16 | G14: 19459.44 | H14: 20412 | I14: 22453.2 | J14: 21092.4 | K14: 20230.56 | L14: 21273.84 | M14: 25356.24 | N14: 28622.16 | O14: 31162.32 | P14: 30209.76 | Q14: 24993.36 | R14: 24494.4 | S14: 30255.12 | T14: 39327.12 | U14: 45178.56 | V14: 46811.52 | W14: 51665.04 | X14: =(X65/MT_Lbs)*10^6 -> 53570.16 | Y14: 52844.4 | Z14: =(Z65/MT_Lbs)*10^6 -> 53978.4 | AA14: 42729.12 | AB14: 42094.08 | AC14: 19822.32 | AD14: =(AD65/MT_Lbs)*10^6 -> 13608 | AE14: 14243.04 | AF14: =(AF65/MT_Lbs)*10^6 -> 16374.96 | AG14: 0
A15: Georgia | B15: GA | C15: =(C66/MT_Lbs)*10^6 -> 179761.68 | D15: 194957.28 | E15: 202305.6 | F15: 194186.16 | G15: 205480.8 | H15: 207295.2 | I15: 158034.24 | J15: 133766.64 | K15: 127416.24 | L15: 137077.92 | M15: 148780.8 | N15: 148327.2 | O15: 116393.76 | P15: 112447.44 | Q15: 72258.48 | R15: 61372.08 | S15: 67087.44 | T15: 74118.24 | U15: 71260.56 | V15: 58559.76 | W15: 56881.44 | X15: 61236 | Y15: 64048.32 | Z15: 64184.4 | AA15: 54477.36 | AB15: 56473.2 | AC15: 64728.72 | AD15: =(AD66/MT_Lbs)*10^6 -> 71079.12 | AE15: 72077.04 | AF15: =(AF66/MT_Lbs)*10^6 -> 75978 | AG15: 0
A16: Hawaii | B16: HI | C16: =(C67/MT_Lbs)*10^6 -> 17554.32 | D16: 15649.2 | E16: 13199.76 | F16: 7892.64 | G16: 7212.24 | H16: 6577.2 | I16: 7076.16 | J16: 7529.76 | K16: 6940.08 | L16: 6577.2 | M16: 6486.48 | N16: 5579.28 | O16: 5307.12 | P16: 4853.52 | Q16: 4762.8 | R16: 4173.12 | S16: 4581.36 | T16: 4536 | U16: 4898.88 | V16: 4626.72 | W16: 4853.52 | X16: 4808.16 | Y16: 4581.36 | Z16: 4173.12 | AA16: 4173.12 | AB16: 3946.32 | AC16: 3810.24 | AD16: =(AD67/MT_Lbs)*10^6 -> 3946.32 | AE16: 3674.16 | AF16: =(AF67/MT_Lbs)*10^6 -> 4173.12 | AG16: 0
A17: Idaho | B17: ID | C17: =(C68/MT_Lbs)*10^6 -> 210198.24 | D17: 200536.56 | E17: 215868.24 | F17: 207385.92 | G17: 227162.88 | H17: 236325.6 | I17: 247983.12 | J17: 246531.6 | K17: 248436.72 | L17: 263768.4 | M17: 266716.8 | N17: 291392.64 | O17: 283726.8 | P17: 259822.08 | Q17: 203666.4 | R17: 141840.72 | S17: 102241.44 | T17: 81194.4 | U17: 105008.4 | V17: 103375.44 | W17: 92579.76 | X17: 42275.52 | Y17: 19867.68 | Z17: 20684.16 | AA17: 19731.6 | AB17: 21137.76 | AC17: 24358.32 | AD17: =(AD68/MT_Lbs)*10^6 -> 67132.8 | AE17: 140978.88 | AF17: =(AF68/MT_Lbs)*10^6 -> 165881.52 | AG17: 0
A18: Illinois | B18: IL | C18: =(C69/MT_Lbs)*10^6 -> 1121027.04 | D18: 1072174.32 | E18: 1082198.88 | F18: 1023140.16 | G18: 1168201.44 | H18: 1183124.88 | I18: 1102384.08 | J18: 1085782.32 | K18: 1166069.52 | L18: 1182126.96 | M18: 1216192.32 | N18: 1201450.32 | O18: 1190926.8 | P18: 1131686.64 | Q18: 1200769.92 | R18: 1213788.24 | S18: 1241684.64 | T18: 1297976.4 | U18: 1374135.84 | V18: 1282145.76 | W18: 1231750.8 | X18: 1250620.56 | Y18: 1350140.4 | Z18: 1381574.88 | AA18: 1373954.4 | AB18: 1489123.44 | AC18: 1529629.92 | AD18: =(AD69/MT_Lbs)*10^6 -> 1532669.04 | AE18: 1542240 | AF18: =(AF69/MT_Lbs)*10^6 -> 1579707.36 | AG18: 0
A19: Indiana | B19: IN | C19: =(C70/MT_Lbs)*10^6 -> 327726 | D19: 330084.72 | E19: 405609.12 | F19: 367642.8 | G19: 333758.88 | H19: 321919.92 | I19: 370591.2 | J19: 440490.96 | K19: 557519.76 | L19: 552666.24 | M19: 574302.96 | N19: 597527.28 | O19: 627419.52 | P19: 644248.08 | Q19: 652322.16 | R19: 651777.84 | S19: 680626.8 | T19: 709566.48 | U19: 761957.28 | V19: 787177.44 | W19: 790352.64 | X19: 795342.24 | Y19: 795705.12 | Z19: 799923.6 | AA19: 805276.08 | AB19: 829135.44 | AC19: 831630.24 | AD19: =(AD70/MT_Lbs)*10^6 -> 860388.48 | AE19: 821787.12 | AF19: =(AF70/MT_Lbs)*10^6 -> 827683.92 | AG19: 0
A20: Iowa | B20: IA | C20: =(C71/MT_Lbs)*10^6 -> 2790093.6 | D20: 2908846.08 | E20: 3059441.28 | F20: 3013400.88 | G20: 3244328.64 | H20: 3151295.28 | I20: 2628748.08 | J20: 2445221.52 | K20: 2804427.36 | L20: 2860265.52 | M20: 2697559.2 | N20: 2710622.88 | O20: 2823523.92 | P20: 2913109.92 | Q20: 2981875.68 | R20: 2940053.76 | S20: 2966407.92 | T20: 2992807.44 | U20: 3205954.08 | V20: 3159550.8 | W20: 2980242.72 | X20: 2990040.48 | Y20: 3011087.52 | Z20: 2981013.84 | AA20: 2992444.56 | AB20: 3161138.4 | AC20: 3200238.72 | AD20: =(AD71/MT_Lbs)*10^6 -> 3279301.2 | AE20: 3492946.8 | AF20: =(AF71/MT_Lbs)*10^6 -> 3911846.4 | AG20: 0
A21: Kansas | B21: KS | C21: =(C72/MT_Lbs)*10^6 -> 2096221.68 | D21: 2030857.92 | E21: 2045010.24 | F21: 2063018.16 | G21: 2382216.48 | H21: 2438961.84 | I21: 2373189.84 | J21: 2469489.12 | K21: 2604798 | L21: 2811367.44 | M21: 2875824 | N21: 2549322.72 | O21: 2668664.88 | P21: 2597676.48 | Q21: 2541203.28 | R21: 2636005.68 | S21: 2782609.2 | T21: 2823523.92 | U21: 2426578.56 | V21: 2396459.52 | W21: 2440368 | X21: 2422722.96 | Y21: 2392377.12 | Z21: 2444042.16 | AA21: 2301203.52 | AB21: 2285599.68 | AC21: 2457695.52 | AD21: =(AD72/MT_Lbs)*10^6 -> 2581573.68 | AE21: 2665036.08 | AF21: =(AF72/MT_Lbs)*10^6 -> 2533718.88 | AG21: 0
A22: Kentucky | B22: KY | C22: =(C73/MT_Lbs)*10^6 -> 255104.64 | D22: 264902.4 | E22: 254016 | F22: 246849.12 | G22: 263949.84 | H22: 281232 | I22: 232515.36 | J22: 203484.96 | K22: 232787.52 | L22: 215913.6 | M22: 198268.56 | N22: 195365.52 | O22: 203212.8 | P22: 213509.52 | Q22: 227253.6 | R22: 214189.92 | S22: 226391.76 | T22: 255376.8 | U22: 266762.16 | V22: 257962.32 | W22: 254333.52 | X22: 251112.96 | Y22: 248255.28 | Z22: 234828.72 | AA22: 232606.08 | AB22: 253154.16 | AC22: 252110.88 | AD22: =(AD73/MT_Lbs)*10^6 -> 246849.12 | AE22: 249525.36 | AF22: =(AF73/MT_Lbs)*10^6 -> 262316.88 | AG22: 0
A23: Louisiana | B23: LA | C23: =(C74/MT_Lbs)*10^6 -> 16828.56 | D23: 14424.48 | E23: 13471.92 | F23: 12247.2 | G23: 11702.88 | H23: 11702.88 | I23: 12791.52 | J23: 10886.4 | K23: 9797.76 | L23: 8663.76 | M23: 7847.28 | N23: 7756.56 | O23: 7529.76 | P23: 6849.36 | Q23: 5987.52 | R23: 5488.56 | S23: 4037.04 | T23: 3402 | U23: 3265.92 | V23: 2903.04 | W23: 2676.24 | X23: 2721.6 | Y23: 2358.72 | Z23: 2222.64 | AA23: 2313.36 | AB23: 2540.16 | AC23: 2313.36 | AD23: =(AD74/MT_Lbs)*10^6 -> 1995.84 | AE23: 1995.84 | AF23: =(AF74/MT_Lbs)*10^6 -> 1859.76 | AG23: 0
A24: Maryland | B24: MD | C24: =(C75/MT_Lbs)*10^6 -> 0 | D24: 0 | E24: 0 | F24: 0 | G24: 0 | H24: 0 | I24: 0 | J24: 0 | K24: 0 | L24: 0 | M24: 0 | N24: 0 | O24: 0 | P24: 0 | Q24: 0 | R24: 0 | S24: 0 | T24: 17191.44 | U24: 16737.84 | V24: 17781.12 | W24: 17236.8 | X24: 16284.24 | Y24: 14152.32 | Z24: 13834.8 | AA24: 14106.96 | AB24: 15513.12 | AC24: 16284.24 | AD24: =(AD75/MT_Lbs)*10^6 -> 16420.32 | AE24: 16873.92 | AF24: =(AF75/MT_Lbs)*10^6 -> 16284.24 | AG24: 0
A25: Michigan | B25: MI | C25: =(C76/MT_Lbs)*10^6 -> 451967.04 | D25: 423934.56 | E25: 409782.24 | F25: 397897.92 | G25: 452738.16 | H25: 474737.76 | I25: 466164.72 | J25: 435773.52 | K25: 280007.28 | L25: 159803.28 | M25: 162207.36 | N25: 175180.32 | O25: 190829.52 | P25: 182029.68 | Q25: 173184.48 | R25: 177720.48 | S25: 206614.8 | T25: 224758.8 | U25: 237731.76 | V25: 237051.36 | W25: 238003.92 | X25: =(X76/MT_Lbs)*10^6 -> 230791.68 | Y25: 224894.88 | Z25: 217682.64 | AA25: 211377.6 | AB25: 202986 | AC25: 218998.08 | AD25: =(AD76/MT_Lbs)*10^6 -> 266762.16 | AE25: 448111.44 | AF25: =(AF76/MT_Lbs)*10^6 -> 485805.6 | AG25: 0
A26: Minnesota | B26: MN | C26: =(C77/MT_Lbs)*10^6 -> 777969.36 | D26: 948659.04 | E26: 1020237.12 | F26: 1015746.48 | G26: 937364.4 | H26: 926840.88 | I26: 931921.2 | J26: 938453.04 | K26: 895224.96 | L26: 936048.96 | M26: 918131.76 | N26: 969706.08 | O26: 1031985.36 | P26: 1053077.76 | Q26: 1040785.2 | R26: 1038970.8 | S26: 1083106.08 | T26: 1107645.84 | U26: 1172374.56 | V26: 1171558.08 | W26: 1229528.16 | X26: 1249713.36 | Y26: 1273890.24 | Z26: 1217008.8 | AA26: 1136993.76 | AB26: 1176547.68 | AC26: 1159900.56 | AD26: =(AD77/MT_Lbs)*10^6 -> 1249214.4 | AE26: 1278380.88 | AF26: =(AF77/MT_Lbs)*10^6 -> 1295209.44 | AG26: 0
A27: Mississippi | B27: MS | C27: =(C78/MT_Lbs)*10^6 -> 179943.12 | D27: 168603.12 | E27: 161481.6 | F27: 140117.04 | G27: 144970.56 | H27: 137985.12 | I27: 125102.88 | J27: 132133.68 | K27: 133993.44 | L27: 133857.36 | M27: 126735.84 | N27: 132224.4 | O27: 133766.64 | P27: 136170.72 | Q27: 135308.88 | R27: 131770.8 | S27: 131589.36 | T27: 35698.32 | U27: 7030.8 | V27: 11748.24 | W27: 10704.96 | X27: 11702.88 | Y27: 12065.76 | Z27: 6259.68 | AA27: 2948.4 | AB27: =(AB78/MT_Lbs)*10^6 -> 2630.88 | AC27: 2721.6 | AD27: =(AD78/MT_Lbs)*10^6 -> 2812.32 | AE27: 3084.48 | AF27: =(AF78/MT_Lbs)*10^6 -> 3039.12 | AG27: 0
A28: Missouri | B28: MO | C28: =(C79/MT_Lbs)*10^6 -> 307268.64 | D28: 234465.84 | E28: 264811.68 | F28: 307676.88 | G28: 200037.6 | H28: 288126.72 | I28: 329495.04 | J28: 334212.48 | K28: 361519.2 | L28: 368187.12 | M28: 356983.2 | N28: 288671.04 | O28: 197951.04 | P28: 202895.28 | Q28: 204800.4 | R28: 219769.2 | S28: 430103.52 | T28: 680490.72 | U28: 766946.88 | V28: 788175.36 | W28: 770167.44 | X28: 796294.8 | Y28: 800876.16 | Z28: 831403.44 | AA28: 855807.12 | AB28: 885109.68 | AC28: 908424.72 | AD28: =(AD79/MT_Lbs)*10^6 -> 926024.4 | AE28: 905204.16 | AF28: =(AF79/MT_Lbs)*10^6 -> 886198.32 | AG28: 0
A29: Montana | B29: MT | C29: =(C80/MT_Lbs)*10^6 -> 9344.16 | D29: 7529.76 | E29: 7801.92 | F29: 7847.28 | G29: 9026.64 | H29: 8074.08 | I29: 8210.16 | J29: 6940.08 | K29: 8799.84 | L29: 10069.92 | M29: 9752.4 | N29: 7439.04 | O29: 7620.48 | P29: 7257.6 | Q29: 7030.8 | R29: 7892.64 | S29: 7348.32 | T29: 7348.32 | U29: 7529.76 | V29: 8346.24 | W29: 7938 | X29: 7302.96 | Y29: 7393.68 | Z29: 7575.12 | AA29: 7529.76 | AB29: 7393.68 | AC29: 8074.08 | AD29: =(AD80/MT_Lbs)*10^6 -> 10251.36 | AE29: 9616.32 | AF29: =(AF80/MT_Lbs)*10^6 -> 9525.6 | AG29: 0
A30: Nebraska | B30: NE | C30: =(C81/MT_Lbs)*10^6 -> 2289908.88 | D30: 2493076.32 | E30: 2626842.96 | F30: 2592278.64 | G30: 2663992.8 | H30: 2724140.16 | I30: 2868475.68 | J30: 2940915.6 | K30: 3043701.36 | L30: 3110879.52 | M30: 3222964.08 | N30: 3248274.96 | O30: 3446861.04 | P30: 3286422.72 | Q30: 3084480 | R30: 3196746 | S30: 3278076.48 | T30: 3275082.72 | U30: 3353374.08 | V30: 3250588.32 | W30: 3236753.52 | X30: 3249545.04 | Y30: 3304521.36 | Z30: 3335320.8 | AA30: 3299667.84 | AB30: 3390705.36 | AC30: 3632338.08 | AD30: =(AD81/MT_Lbs)*10^6 -> 3680056.8 | AE30: 3677063.04 | AF30: =(AF81/MT_Lbs)*10^6 -> 3759981.12 | AG30: 0
A31: Nevada | B31: NV | C31: =(C82/MT_Lbs)*10^6 -> 589.68 | D31: 680.4 | E31: 589.68 | F31: 544.32 | G31: 544.32 | H31: 544.32 | I31: 589.68 | J31: 498.96 | K31: 408.24 | L31: 408.24 | M31: 408.24 | N31: 408.24 | O31: 408.24 | P31: 408.24 | Q31: 453.6 | R31: 498.96 | S31: 362.88 | T31: 453.6 | U31: 589.68 | V31: =(V82/MT_Lbs)*10^6 -> 498.96 | W31: =(W82/MT_Lbs)*10^6 -> 362.88 | X31: 498.96 | Y31: 408.24 | Z31: 453.6 | AA31: 498.96 | AB31: 544.32 | AC31: 589.68 | AD31: =(AD82/MT_Lbs)*10^6 -> 635.04 | AE31: 635.04 | AF31: =(AF82/MT_Lbs)*10^6 -> 498.96 | AG31: 0
A32: New Hampshire | B32: NH | C32: 0 | D32: 0 | E32: 0 | F32: 0 | G32: 0 | H32: 0 | I32: 0 | J32: 0 | K32: 0 | L32: 0 | M32: 0 | N32: 0 | O32: 0 | P32: 0 | Q32: 0 | R32: 0 | S32: 0 | T32: 5806.08 | U32: 6259.68 | V32: =(V83/MT_Lbs)*10^6 -> 7393.68 | W32: =(W83/MT_Lbs)*10^6 -> 7393.68 | X32: 7892.64 | Y32: 8482.32 | Z32: 8890.56 | AA32: 9298.8 | AB32: 10024.56 | AC32: 11067.84 | AD32: =(AD83/MT_Lbs)*10^6 -> 11249.28 | AE32: 11340 | AF32: =(AF83/MT_Lbs)*10^6 -> 12337.92 | AG32: 0
A33: New Jersey | B33: NJ | C33: =(C84/MT_Lbs)*10^6 -> 13199.76 | D33: 14288.4 | E33: 14696.64 | F33: 13925.52 | G33: 13834.8 | H33: 16193.52 | I33: 19459.44 | J33: 23178.96 | K33: 24811.92 | L33: 24766.56 | M33: 25673.76 | N33: 27079.92 | O33: 27397.44 | P33: 24358.32 | Q33: 22543.92 | R33: 22271.76 | S33: 23541.84 | T33: 23904.72 | U33: 21818.16 | V33: 22498.56 | W33: 24630.48 | X33: 24857.28 | Y33: 22816.08 | Z33: 22725.36 | AA33: 20502.72 | AB33: 20548.08 | AC33: 16057.44 | AD33: =(AD84/MT_Lbs)*10^6 -> 17236.8 | AE33: 17962.56 | AF33: =(AF84/MT_Lbs)*10^6 -> 18824.4 | AG33: 0
A34: New Mexico | B34: NM | C34: =(C85/MT_Lbs)*10^6 -> 40506.48 | D34: 38057.04 | E34: 26127.36 | F34: 13562.64 | G34: 12700.8 | H34: 9117.36 | I34: 9162.72 | J34: 6214.32 | K34: 5397.84 | L34: 6078.24 | M34: 4490.64 | N34: 4490.64 | O34: 4853.52 | P34: 5624.64 | Q34: 3583.44 | R34: 3039.12 | S34: 2766.96 | T34: 2222.64 | U34: 2585.52 | V34: 2358.72 | W34: 2177.28 | X34: 2086.56 | Y34: 1632.96 | Z34: 1678.32 | AA34: 1587.6 | AB34: 1587.6 | AC34: 1451.52 | AD34: =(AD85/MT_Lbs)*10^6 -> 1451.52 | AE34: 1723.68 | AF34: =(AF85/MT_Lbs)*10^6 -> 1678.32 | AG34: 0
A35: New York | B35: NY | C35: =(C86/MT_Lbs)*10^6 -> 39463.2 | D35: 41549.76 | E35: 46720.8 | F35: 37195.2 | G35: 41368.32 | H35: 45405.36 | I35: 50803.2 | J35: 42366.24 | K35: 30300.48 | L35: 23950.08 | M35: 22770.72 | N35: 18552.24 | O35: 20412 | P35: 20457.36 | Q35: 17327.52 | R35: 17871.84 | S35: 15921.36 | T35: 15240.96 | U35: 16647.12 | V35: 15331.68 | W35: 15014.16 | X35: 14968.8 | Y35: 14832.72 | Z35: 15331.68 | AA35: 15830.64 | AB35: 16420.32 | AC35: 18779.04 | AD35: =(AD86/MT_Lbs)*10^6 -> 18370.8 | AE35: 18053.28 | AF35: =(AF86/MT_Lbs)*10^6 -> 17055.36 | AG35: 0
A36: North Carolina | B36: NC | C36: =(C87/MT_Lbs)*10^6 -> 243492.48 | D36: 273157.92 | E36: 343919.52 | F36: 509075.28 | G36: 568043.28 | H36: 665884.8 | I36: 786587.76 | J36: 823284 | K36: 844194.96 | L36: 873542.88 | M36: 878396.4 | N36: 898989.84 | O36: 935504.64 | P36: 997965.36 | Q36: 983404.8 | R36: 1014884.64 | S36: 1039878 | T36: 1058702.4 | U36: 1138808.16 | V36: 1161034.56 | W36: 1107419.04 | X36: 1081518.48 | Y36: 1107645.84 | Z36: 1137764.88 | AA36: 1039106.88 | AB36: 1104788.16 | AC36: 1131278.4 | AD36: =(AD87/MT_Lbs)*10^6 -> 1166795.28 | AE36: 1158585.12 | AF36: =(AF87/MT_Lbs)*10^6 -> 1228394.16 | AG36: 0
A37: North Dakota | B37: ND | C37: =(C88/MT_Lbs)*10^6 -> 56019.6 | D37: 57743.28 | E37: 58242.24 | F37: 55157.76 | G37: 51302.16 | H37: 49034.16 | I37: 56427.84 | J37: 49397.04 | K37: 48535.2 | L37: 13698.72 | M37: 12610.08 | N37: 15739.92 | O37: 16238.88 | P37: 14515.2 | Q37: 14787.36 | R37: 15377.04 | S37: 14923.44 | T37: 13517.28 | U37: 12927.6 | V37: 13471.92 | W37: 17599.68 | X37: 16964.64 | Y37: 6531.84 | Z37: 3583.44 | AA37: 3538.08 | AB37: 3492.72 | AC37: 3719.52 | AD37: =(AD88/MT_Lbs)*10^6 -> 3764.88 | AE37: 3356.64 | AF37: =(AF88/MT_Lbs)*10^6 -> 3356.64 | AG37: 0
A38: Ohio | B38: OH | C38: =(C89/MT_Lbs)*10^6 -> 283091.76 | D38: 291891.6 | E38: 304229.52 | F38: 280415.52 | G38: 181530.72 | H38: 159485.76 | I38: 147918.96 | J38: 141387.12 | K38: 154405.44 | L38: 152681.76 | M38: 143020.08 | N38: 134719.2 | O38: 142158.24 | P38: 146784.96 | Q38: 144607.68 | R38: 131725.44 | S38: 131045.04 | T38: 131226.48 | U38: 140298.48 | V38: 138620.16 | W38: 137259.36 | X38: 134719.2 | Y38: 126418.32 | Z38: 125737.92 | AA38: 122018.4 | AB38: 119206.08 | AC38: 120702.96 | AD38: =(AD89/MT_Lbs)*10^6 -> 116030.88 | AE38: 112492.8 | AF38: =(AF89/MT_Lbs)*10^6 -> 115305.12 | AG38: 0
A39: Oklahoma | B39: OK | C39: =(C90/MT_Lbs)*10^6 -> 27714.96 | D39: 26444.88 | E39: 29257.2 | F39: 25401.6 | G39: 25129.44 | H39: 23859.36 | I39: 144562.32 | J39: 305091.36 | K39: 376578.72 | L39: 416949.12 | M39: 431555.04 | N39: 437769.36 | O39: 441352.8 | P39: 446886.72 | Q39: 473331.6 | R39: 484535.52 | S39: 476280 | T39: 469929.6 | U39: 508258.8 | V39: 514926.72 | W39: 521912.16 | X39: 542369.52 | Y39: 523635.84 | Z39: 520959.6 | AA39: 477187.2 | AB39: 543730.32 | AC39: 522955.44 | AD39: =(AD90/MT_Lbs)*10^6 -> 521277.12 | AE39: 545771.52 | AF39: =(AF90/MT_Lbs)*10^6 -> 553437.36 | AG39: 0
A40: Oregon | B40: OR | C40: =(C91/MT_Lbs)*10^6 -> 27714.96 | D40: 21546 | E40: 21183.12 | F40: 22044.96 | G40: 15513.12 | H40: 16873.92 | I40: 18189.36 | J40: 18688.32 | K40: 18779.04 | L40: 19550.16 | M40: 20412 | N40: 20321.28 | O40: 19686.24 | P40: 19504.8 | Q40: 18915.12 | R40: 19822.32 | S40: 22997.52 | T40: 25673.76 | U40: 26218.08 | V40: 25855.2 | W40: 26626.32 | X40: 31207.68 | Y40: 33022.08 | Z40: 36151.92 | AA40: 34700.4 | AB40: 34564.32 | AC40: 32205.6 | AD40: =(AD91/MT_Lbs)*10^6 -> 30164.4 | AE40: 23541.84 | AF40: =(AF91/MT_Lbs)*10^6 -> 21772.8 | AG40: 0
A41: Pennsylvania | B41: PA | C41: =(C92/MT_Lbs)*10^6 -> 450606.24 | D41: 471335.76 | E41: 486712.8 | F41: 492201.36 | G41: 500411.52 | H41: 514155.6 | I41: 526811.04 | J41: 509755.68 | K41: 512568 | L41: 541553.04 | M41: 537470.64 | N41: 529850.16 | O41: 568179.36 | P41: 573259.68 | Q41: 529215.12 | R41: 524679.12 | S41: 554571.36 | T41: 584372.88 | U41: 606417.84 | V41: 581424.48 | W41: 582422.4 | X41: 576843.12 | Y41: 580018.32 | Z41: 565457.76 | AA41: 578521.44 | AB41: 609184.8 | AC41: 658854 | AD41: =(AD92/MT_Lbs)*10^6 -> 662845.68 | AE41: 668969.28 | AF41: =(AF92/MT_Lbs)*10^6 -> 686432.88 | AG41: 0
A42: South Carolina | B42: SC | C42: =(C93/MT_Lbs)*10^6 -> 78699.6 | D42: 76340.88 | E42: 81103.68 | F42: 81149.04 | G42: 77429.52 | H42: 74481.12 | I42: 72530.64 | J42: 74798.64 | K42: 81920.16 | L42: 100381.68 | M42: 99202.32 | N42: 105053.76 | O42: 111948.48 | P42: 110587.68 | Q42: 111812.4 | R42: 109589.76 | S42: 112538.16 | T42: 115350.48 | U42: 114261.84 | V42: 106958.88 | W42: 110270.16 | X42: 111177.36 | Y42: 112039.2 | Z42: 106006.32 | AA42: 111449.52 | AB42: 104464.08 | AC42: 72031.68 | AD42: =(AD93/MT_Lbs)*10^6 -> 52572.24 | AE42: 50757.84 | AF42: =(AF93/MT_Lbs)*10^6 -> 66225.6 | AG42: 0
A43: South Dakota | B43: SD | C43: =(C94/MT_Lbs)*10^6 -> 562191.84 | D43: 571717.44 | E43: 571082.4 | F43: 524180.16 | G43: 564641.28 | H43: 579836.88 | I43: 543684.96 | J43: 504947.52 | K43: 467616.24 | L43: 452057.76 | M43: 441534.24 | N43: 460494.72 | O43: 425839.68 | P43: 445888.8 | Q43: 446977.44 | R43: 454915.44 | S43: 429786 | T43: 465892.56 | U43: 467208 | V43: 433868.4 | W43: 449154.72 | X43: 473331.6 | Y43: 478003.68 | Z43: 486395.28 | AA43: 497327.04 | AB43: 536064.48 | AC43: 595395.36 | AD43: =(AD94/MT_Lbs)*10^6 -> 667608.48 | AE43: 688791.6 | AF43: =(AF94/MT_Lbs)*10^6 -> 704440.8 | AG43: 0
A44: Tennessee | B44: TN | C44: =(C95/MT_Lbs)*10^6 -> 107684.64 | D44: 77701.68 | E44: 87227.28 | F44: 97569.36 | G44: 104872.32 | H44: 89903.52 | I44: 91808.64 | J44: 95392.08 | K44: 102060 | L44: 105552.72 | M44: 106097.04 | N44: 102921.84 | O44: 103239.36 | P44: 105643.44 | Q44: 100744.56 | R44: 97796.16 | S44: 95709.6 | T44: 98748.72 | U44: 102150.72 | V44: 105824.88 | W44: 106686.72 | X44: 105734.16 | Y44: 108002.16 | Z44: 109499.04 | AA44: 108954.72 | AB44: 116030.88 | AC44: 118888.56 | AD44: =(AD95/MT_Lbs)*10^6 -> 123016.32 | AE44: 117391.68 | AF44: =(AF95/MT_Lbs)*10^6 -> 122426.64 | AG44: 0
A45: Texas | B45: TX | C45: =(C96/MT_Lbs)*10^6 -> 1760240.16 | D45: 1781922.24 | E45: 1805055.84 | F45: 1881941.04 | G45: 1966446.72 | H45: 2034577.44 | I45: 2102436 | J45: 2088283.68 | K45: 2205448.56 | L45: 2227402.8 | M45: 2197238.4 | N45: 2168570.88 | O45: 2213568 | P45: 2197056.96 | Q45: 2090597.04 | R45: 2125977.84 | S45: 2234841.84 | T45: 2121124.32 | U45: 2343796.56 | V45: 2317714.56 | W45: 2295261.36 | X45: 2332955.52 | Y45: 2274305.04 | Z45: 2081615.76 | AA45: 1896320.16 | AB45: 1851958.08 | AC45: 1992392.64 | AD45: =(AD96/MT_Lbs)*10^6 -> 2048548.32 | AE45: 2111553.36 | AF45: =(AF96/MT_Lbs)*10^6 -> 2122349.04 | AG45: 0
A46: United States | B46: US | C46: =(C97/MT_Lbs)*10^6 -> 17511772.32 | D46: 17872520.4 | E46: 18505110.96 | F46: 18401780.88 | G46: 19289657.52 | H46: 19739674.08 | I46: 19567215.36 | J46: 19599194.16 | K46: 20472374.16 | L46: 20924704.08 | M46: 20934275.04 | N46: 20713371.84 | O46: 21395813.04 | P46: 21126873.6 | Q46: 20601604.8 | R46: 20734282.8 | S46: 21562964.64 | T46: 22082971.68 | U46: 22781878.56 | V46: 22350731.76 | W46: 22244226.48 | X46: 22331499.12 | Y46: 22425938.64 | Z46: 22305326.4 | AA46: 21474285.84 | AB46: 21968755.2 | AC46: 22855951.44 | AD46: =(AD97/MT_Lbs)*10^6 -> 23583299.04 | AE46: 24229815.12 | AF46: =(AF97/MT_Lbs)*10^6 -> 24954940.08 | AG46: 0
A47: Utah | B47: UT | C47: =(C98/MT_Lbs)*10^6 -> 178582.32 | D47: 182301.84 | E47: 190920.24 | F47: 197814.96 | G47: 210515.76 | H47: 192281.04 | I47: 188561.52 | J47: 184978.08 | K47: 208429.2 | L47: 224486.64 | M47: 225529.92 | N47: 236507.04 | O47: 230746.32 | P47: 208746.72 | Q47: 186021.36 | R47: 209245.68 | S47: 227707.2 | T47: 215641.44 | U47: 235962.72 | V47: 199629.36 | W47: 206388 | X47: 205798.32 | Y47: 223035.12 | Z47: 216639.36 | AA47: 212511.6 | AB47: =(AB98/MT_Lbs)*10^6 -> 210334.32 | AC47: 224078.4 | AD47: =(AD98/MT_Lbs)*10^6 -> 239818.32 | AE47: 254923.2 | AF47: =(AF98/MT_Lbs)*10^6 -> 265537.44 | AG47: 0
A48: Virginia | B48: VA | C48: =(C99/MT_Lbs)*10^6 -> 370228.32 | D48: 383745.6 | E48: 387283.68 | F48: 322600.32 | G48: 381205.44 | H48: 399757.68 | I48: 371861.28 | J48: 351721.44 | K48: 351131.76 | L48: 334983.6 | M48: 327635.28 | N48: 348682.32 | O48: 366236.64 | P48: 341832.96 | Q48: 344191.68 | R48: 298468.8 | S48: 186248.16 | T48: 217546.56 | U48: 230292.72 | V48: 209608.56 | W48: 220268.16 | X48: 221084.64 | Y48: 235872 | Z48: 235236.96 | AA48: 217410.48 | AB48: 226936.08 | AC48: 229068 | AD48: =(AD99/MT_Lbs)*10^6 -> 235917.36 | AE48: 238412.16 | AF48: =(AF99/MT_Lbs)*10^6 -> 243038.88 | AG48: 0
A49: Washington | B49: WA | C49: =(C100/MT_Lbs)*10^6 -> 275562 | D49: 272658.96 | E49: 279871.2 | F49: 273974.4 | G49: 294749.28 | H49: 308357.28 | I49: 333622.8 | J49: 313528.32 | K49: 317973.6 | L49: 298242 | M49: 314798.4 | N49: 304365.6 | O49: 293887.44 | P49: 271207.44 | Q49: 221220.72 | R49: 280324.8 | S49: 343239.12 | T49: 399893.76 | U49: 369684 | V49: 374673.6 | W49: 392636.16 | X49: 392772.24 | Y49: 406879.2 | Z49: 398850.48 | AA49: 392817.6 | AB49: 386875.44 | AC49: 414046.08 | AD49: =(AD100/MT_Lbs)*10^6 -> 416223.36 | AE49: 412639.92 | AF49: =(AF100/MT_Lbs)*10^6 -> 437542.56 | AG49: 0
A50: West Virginia | B50: WV | C50: =(C101/MT_Lbs)*10^6 -> 7302.96 | D50: 7892.64 | E50: 8164.8 | F50: 7756.56 | G50: 8663.76 | H50: 8346.24 | I50: 9162.72 | J50: 6078.24 | K50: 4263.84 | L50: 4445.28 | M50: 3810.24 | N50: 3447.36 | O50: 3492.72 | P50: 3220.56 | Q50: 3175.2 | R50: 2812.32 | S50: 2676.24 | T50: 3039.12 | U50: 3311.28 | V50: 3810.24 | W50: 3628.8 | X50: 3900.96 | Y50: 3356.64 | Z50: 3311.28 | AA50: 3039.12 | AB50: 3039.12 | AC50: 3311.28 | AD50: =(AD101/MT_Lbs)*10^6 -> 3583.44 | AE50: 3810.24 | AF50: =(AF101/MT_Lbs)*10^6 -> 3719.52 | AG50: 0
A51: Wisconsin | B51: WI | C51: =(C102/MT_Lbs)*10^6 -> 396537.12 | D51: 383881.68 | E51: 435138.48 | F51: 456321.6 | G51: 450334.08 | H51: 461084.4 | I51: 506671.2 | J51: 531210.96 | K51: 557565.12 | L51: 593399.52 | M51: 611498.16 | N51: 591358.32 | O51: 614628 | P51: 596620.08 | Q51: 556521.84 | R51: 559606.32 | S51: 605782.8 | T51: 643839.84 | U51: 657266.4 | V51: 628009.2 | W51: 638714.16 | X51: 634042.08 | Y51: 589362.48 | Z51: 601020 | AA51: 527264.64 | AB51: 463216.32 | AC51: 492428.16 | AD51: =(AD102/MT_Lbs)*10^6 -> 552212.64 | AE51: 552212.64 | AF51: =(AF102/MT_Lbs)*10^6 -> 560105.28 | AG51: 0
A52: Wyoming | B52: WY | C52: =(C103/MT_Lbs)*10^6 -> 2041.2 | D52: 1814.4 | E52: 1950.48 | F52: 2086.56 | G52: 2222.64 | H52: 2540.16 | I52: 2494.8 | J52: 2268 | K52: 2449.44 | L52: 2540.16 | M52: 2268 | N52: 2086.56 | O52: 2585.52 | P52: 2993.76 | Q52: 3129.84 | R52: 2948.4 | S52: 2812.32 | T52: 2766.96 | U52: 2812.32 | V52: 2948.4 | W52: 2766.96 | X52: 2857.68 | Y52: 2721.6 | Z52: 2449.44 | AA52: 2358.72 | AB52: 2131.92 | AC52: 2131.92 | AD52: =(AD103/MT_Lbs)*10^6 -> 1995.84 | AE52: 2041.2 | AF52: =(AF103/MT_Lbs)*10^6 -> 1950.48 | AG52: 0
A54: 1 metric ton = | C54: =2000/0.9072 -> 2204.585538 | D54: pounds
A55: Red Meat Production Data from USDA Quick Stats.
A56: (in million pounds) | C56: 2 | D56: 3 | E56: 4 | F56: 5 | G56: 6 | H56: 7 | I56: 8 | J56: 9 | K56: 10 | L56: 11 | M56: 12 | N56: 13 | O56: 14 | P56: 15 | Q56: 16 | R56: 17 | S56: 18 | T56: 19 | U56: 20 | V56: 21 | W56: 22 | X56: 23 | Y56: 24 | Z56: 25 | AA56: 26 | AB56: 27 | AC56: 28 | AD56: 29 | AE56: 30 | AF56: 31 | AG56: 32
A57: State | C57: 1990 | D57: 1991 | E57: 1992 | F57: 1993 | G57: 1994 | H57: 1995 | I57: 1996 | J57: 1997 | K57: 1998 | L57: 1999 | M57: 2000 | N57: 2001 | O57: 2002 | P57: 2003 | Q57: 2004 | R57: 2005 | S57: 2006 | T57: 2007 | U57: 2008 | V57: 2009 | W57: 2010 | X57: 2011 | Y57: 2012 | Z57: 2013 | AA57: 2014 | AB57: 2015 | AC57: 2016 | AD57: 2017 | AE57: 2018 | AF57: 2019 | AG57: 2020
A58: Alabama | B58: Alabama | C58: 209 | D58: 191.6 | E58: 39.5 | F58: 40.4 | G58: 40.2 | H58: 114.3 | I58: 138 | J58: 133.2 | K58: 153.7 | L58: 93.4 | M58: 42.2 | N58: 45.6 | O58: 49.9 | P58: 40.5 | Q58: 33.7 | R58: 31 | S58: 30.6 | T58: 27.6 | U58: 24 | V58: 22.8 | W58: 21.7 | X58: 20.1 | Y58: 11.4 | Z58: 11.1 | AA58: 9.2 | AB58: 8.8 | AC58: 10.1 | AD58: 13.3 | AE58: 13.8 | AF58: 9.4 | AG58: 0
A59: Alaska | B59: Alaska | C59: 0 | D59: 0 | E59: 0 | F59: 0 | G59: 0 | H59: 0 | I59: 0 | J59: 0 | K59: 0 | L59: 0.4 | M59: 0.6 | N59: 0.5 | O59: 0.6 | P59: 0.5 | Q59: 0.5 | R59: 0.7 | S59: 0.7 | T59: 0.5 | U59: 0.5 | V59: 0.6 | W59: 0.6 | X59: 0.6 | Y59: 0.5 | Z59: 0.7 | AA59: 0.6 | AB59: 0.6 | AC59: 1.3 | AD59: 1 | AE59: 0.9 | AF59: 0.7 | AG59: 0
A60: Arizona | B60: Arizona | C60: 226.4 | D60: 238.8 | E60: 239.3 | F60: 248.8 | G60: 271.6 | H60: 312.5 | I60: 335.9 | J60: 321.7 | K60: 328.9 | L60: 358.6 | M60: 390.3 | N60: 417.3 | O60: 449 | P60: 424.7 | Q60: 353.9 | R60: 360.5 | S60: 386.5 | T60: 405.9 | U60: 408.3 | V60: 362.5 | W60: 391.2 | X60: 413.7 | Y60: 386.3 | Z60: 403.7 | AA60: 418.2 | AB60: 450 | AC60: 490.5 | AD60: 455.7 | AE60: 468.1 | AF60: 464.9 | AG60: 0
A61: Arkansas | B61: Arkansas | C61: 67 | D61: 72.8 | E61: 71.8 | F61: 65.9 | G61: 69.2 | H61: 78.2 | I61: 77.1 | J61: 70.2 | K61: 68.4 | L61: 69.8 | M61: 55.8 | N61: 59.3 | O61: 66.8 | P61: 65.6 | Q61: 60.4 | R61: 56.8 | S61: 54.3 | T61: 58.2 | U61: 64.3 | V61: 59.6 | W61: 51.7 | X61: 42.7 | Y61: 45.5 | Z61: 15.9 | AA61: 4.7 | AB61: 4.3 | AC61: 5 | AD61: 5 | AE61: 4.2 | AF61: 4.2 | AG61: 0
A62: California | B62: California | C62: 1124 | D62: 1069.7 | E62: 948.8 | F62: 911.1 | G62: 957.7 | H62: 1043 | I62: 1052 | J62: 1036.2 | K62: 1043.2 | L62: 1060.3 | M62: 1074.3 | N62: 1131.9 | O62: 1353 | P62: 1427.8 | Q62: 1428.9 | R62: 1469.1 | S62: 1607.6 | T62: 1672.4 | U62: 1662.2 | V62: 1703.8 | W62: 1723.9 | X62: 1733.5 | Y62: 1727 | Z62: 1731.2 | AA62: 1450 | AB62: 1325.9 | AC62: 1362.2 | AD62: 1431.1 | AE62: 1448.3 | AF62: 1592.5 | AG62: 0
A63: Colorado | B63: Colorado | C63: 1589.6 | D63: 1753.8 | E63: 1937 | F63: 1899.3 | G63: 1952.7 | H63: 2022.2 | I63: 2030.5 | J63: 2026.7 | K63: 1955.5 | L63: 2137.9 | M63: 2150.4 | N63: 2138.2 | O63: 2184.9 | P63: 1981.9 | Q63: 1973.1 | R63: 1761.4 | S63: 1828.6 | T63: 1887.3 | U63: 2133.9 | V63: 2038 | W63: 2130.9 | X63: 2150.1 | Y63: 2211.7 | Z63: 2268.1 | AA63: 2184.3 | AB63: 2131.1 | AC63: 2234.9 | AD63: 2242.3 | AE63: 2235.7 | AF63: 2189.9 | AG63: 0
A64: Delaware | B64: Delaware | C64: 0 | D64: 0 | E64: 0 | F64: 0 | G64: 0 | H64: 0 | I64: 0 | J64: 0 | K64: 0 | L64: 0 | M64: 0 | N64: 0 | O64: 0 | P64: 0 | Q64: 0 | R64: 0 | S64: 0 | T64: 0 | U64: 0 | V64: 0 | W64: 0 | X64: 0 | Y64: 0 | Z64: 0 | AA64: 0 | AB64: 0 | AC64: 0 | AD64: 0 | AE64: 0 | AF64: 0 | AG64: 0
A65: Florida | B65: Florida | C65: 98.3 | D65: 49.8 | E65: 40.3 | F65: 40.6 | G65: 42.9 | H65: 45 | I65: 49.5 | J65: 46.5 | K65: 44.6 | L65: 46.9 | M65: 55.9 | N65: 63.1 | O65: 68.7 | P65: 66.6 | Q65: 55.1 | R65: 54 | S65: 66.7 | T65: 86.7 | U65: 99.6 | V65: 103.2 | W65: 113.9 | X65: 118.1 | Y65: 116.5 | Z65: 119 | AA65: 94.2 | AB65: 92.8 | AC65: 43.7 | AD65: 30 | AE65: 31.4 | AF65: 36.1 | AG65: 0
A66: Georgia | B66: Georgia | C66: 396.3 | D66: 429.8 | E66: 446 | F66: 428.1 | G66: 453 | H66: 457 | I66: 348.4 | J66: 294.9 | K66: 280.9 | L66: 302.2 | M66: 328 | N66: 327 | O66: 256.6 | P66: 247.9 | Q66: 159.3 | R66: 135.3 | S66: 147.9 | T66: 163.4 | U66: 157.1 | V66: 129.1 | W66: 125.4 | X66: 135 | Y66: 141.2 | Z66: 141.5 | AA66: 120.1 | AB66: 124.5 | AC66: 142.7 | AD66: 156.7 | AE66: 158.9 | AF66: 167.5 | AG66: 0
A67: Hawaii | B67: Hawaii | C67: 38.7 | D67: 34.5 | E67: 29.1 | F67: 17.4 | G67: 15.9 | H67: 14.5 | I67: 15.6 | J67: 16.6 | K67: 15.3 | L67: 14.5 | M67: 14.3 | N67: 12.3 | O67: 11.7 | P67: 10.7 | Q67: 10.5 | R67: 9.2 | S67: 10.1 | T67: 10 | U67: 10.8 | V67: 10.2 | W67: 10.7 | X67: 10.6 | Y67: 10.1 | Z67: 9.2 | AA67: 9.2 | AB67: 8.7 | AC67: 8.4 | AD67: 8.7 | AE67: 8.1 | AF67: 9.2 | AG67: 0
A68: Idaho | B68: Idaho | C68: 463.4 | D68: 442.1 | E68: 475.9 | F68: 457.2 | G68: 500.8 | H68: 521 | I68: 546.7 | J68: 543.5 | K68: 547.7 | L68: 581.5 | M68: 588 | N68: 642.4 | O68: 625.5 | P68: 572.8 | Q68: 449 | R68: 312.7 | S68: 225.4 | T68: 179 | U68: 231.5 | V68: 227.9 | W68: 204.1 | X68: 93.2 | Y68: 43.8 | Z68: 45.6 | AA68: 43.5 | AB68: 46.6 | AC68: 53.7 | AD68: 148 | AE68: 310.8 | AF68: 365.7 | AG68: 0
A69: Illinois | B69: Illinois | C69: 2471.4 | D69: 2363.7 | E69: 2385.8 | F69: 2255.6 | G69: 2575.4 | H69: 2608.3 | I69: 2430.3 | J69: 2393.7 | K69: 2570.7 | L69: 2606.1 | M69: 2681.2 | N69: 2648.7 | O69: 2625.5 | P69: 2494.9 | Q69: 2647.2 | R69: 2675.9 | S69: 2737.4 | T69: 2861.5 | U69: 3029.4 | V69: 2826.6 | W69: 2715.5 | X69: 2757.1 | Y69: 2976.5 | Z69: 3045.8 | AA69: 3029 | AB69: 3282.9 | AC69: 3372.2 | AD69: 3378.9 | AE69: 3400 | AF69: 3482.6 | AG69: 0
A70: Indiana | B70: Indiana | C70: 722.5 | D70: 727.7 | E70: 894.2 | F70: 810.5 | G70: 735.8 | H70: 709.7 | I70: 817 | J70: 971.1 | K70: 1229.1 | L70: 1218.4 | M70: 1266.1 | N70: 1317.3 | O70: 1383.2 | P70: 1420.3 | Q70: 1438.1 | R70: 1436.9 | S70: 1500.5 | T70: 1564.3 | U70: 1679.8 | V70: 1735.4 | W70: 1742.4 | X70: 1753.4 | Y70: 1754.2 | Z70: 1763.5 | AA70: 1775.3 | AB70: 1827.9 | AC70: 1833.4 | AD70: 1896.8 | AE70: 1811.7 | AF70: 1824.7 | AG70: 0
A71: Iowa | B71: Iowa | C71: 6151 | D71: 6412.8 | E71: 6744.8 | F71: 6643.3 | G71: 7152.4 | H71: 6947.3 | I71: 5795.3 | J71: 5390.7 | K71: 6182.6 | L71: 6305.7 | M71: 5947 | N71: 5975.8 | O71: 6224.7 | P71: 6422.2 | Q71: 6573.8 | R71: 6481.6 | S71: 6539.7 | T71: 6597.9 | U71: 7067.8 | V71: 6965.5 | W71: 6570.2 | X71: 6591.8 | Y71: 6638.2 | Z71: 6571.9 | AA71: 6597.1 | AB71: 6969 | AC71: 7055.2 | AD71: 7229.5 | AE71: 7700.5 | AF71: 8624 | AG71: 0
A72: Kansas | B72: Kansas | C72: 4621.3 | D72: 4477.2 | E72: 4508.4 | F72: 4548.1 | G72: 5251.8 | H72: 5376.9 | I72: 5231.9 | J72: 5444.2 | K72: 5742.5 | L72: 6197.9 | M72: 6340 | N72: 5620.2 | O72: 5883.3 | P72: 5726.8 | Q72: 5602.3 | R72: 5811.3 | S72: 6134.5 | T72: 6224.7 | U72: 5349.6 | V72: 5283.2 | W72: 5380 | X72: 5341.1 | Y72: 5274.2 | Z72: 5388.1 | AA72: 5073.2 | AB72: 5038.8 | AC72: 5418.2 | AD72: 5691.3 | AE72: 5875.3 | AF72: 5585.8 | AG72: 0
A73: Kentucky | B73: Kentucky | C73: 562.4 | D73: 584 | E73: 560 | F73: 544.2 | G73: 581.9 | H73: 620 | I73: 512.6 | J73: 448.6 | K73: 513.2 | L73: 476 | M73: 437.1 | N73: 430.7 | O73: 448 | P73: 470.7 | Q73: 501 | R73: 472.2 | S73: 499.1 | T73: 563 | U73: 588.1 | V73: 568.7 | W73: 560.7 | X73: 553.6 | Y73: 547.3 | Z73: 517.7 | AA73: 512.8 | AB73: 558.1 | AC73: 555.8 | AD73: 544.2 | AE73: 550.1 | AF73: 578.3 | AG73: 0
A74: Louisiana | B74: Louisiana | C74: 37.1 | D74: 31.8 | E74: 29.7 | F74: 27 | G74: 25.8 | H74: 25.8 | I74: 28.2 | J74: 24 | K74: 21.6 | L74: 19.1 | M74: 17.3 | N74: 17.1 | O74: 16.6 | P74: 15.1 | Q74: 13.2 | R74: 12.1 | S74: 8.9 | T74: 7.5 | U74: 7.2 | V74: 6.4 | W74: 5.9 | X74: 6 | Y74: 5.2 | Z74: 4.9 | AA74: 5.1 | AB74: 5.6 | AC74: 5.1 | AD74: 4.4 | AE74: 4.4 | AF74: 4.1 | AG74: 0
A75: Maryland | B75: Maryland | C75: 0 | D75: 0 | E75: 0 | F75: 0 | G75: 0 | H75: 0 | I75: 0 | J75: 0 | K75: 0 | L75: 0 | M75: 0 | N75: 0 | O75: 0 | P75: 0 | Q75: 0 | R75: 0 | S75: 0 | T75: 37.9 | U75: 36.9 | V75: 39.2 | W75: 38 | X75: 35.9 | Y75: 31.2 | Z75: 30.5 | AA75: 31.1 | AB75: 34.2 | AC75: 35.9 | AD75: 36.2 | AE75: 37.2 | AF75: 35.9 | AG75: 0
A76: Michigan | B76: Michigan | C76: 996.4 | D76: 934.6 | E76: 903.4 | F76: 877.2 | G76: 998.1 | H76: 1046.6 | I76: 1027.7 | J76: 960.7 | K76: 617.3 | L76: 352.3 | M76: 357.6 | N76: 386.2 | O76: 420.7 | P76: 401.3 | Q76: 381.8 | R76: 391.8 | S76: 455.5 | T76: 495.5 | U76: 524.1 | V76: 522.6 | W76: 524.7 | X76: 508.8 | Y76: 495.8 | Z76: 479.9 | AA76: 466 | AB76: 447.5 | AC76: 482.8 | AD76: 588.1 | AE76: 987.9 | AF76: 1071 | AG76: 0
A77: Minnesota | B77: Minnesota | C77: 1715.1 | D77: 2091.4 | E77: 2249.2 | F77: 2239.3 | G77: 2066.5 | H77: 2043.3 | I77: 2054.5 | J77: 2068.9 | K77: 1973.6 | L77: 2063.6 | M77: 2024.1 | N77: 2137.8 | O77: 2275.1 | P77: 2321.6 | Q77: 2294.5 | R77: 2290.5 | S77: 2387.8 | T77: 2441.9 | U77: 2584.6 | V77: 2582.8 | W77: 2710.6 | X77: 2755.1 | Y77: 2808.4 | Z77: 2683 | AA77: 2506.6 | AB77: 2593.8 | AC77: 2557.1 | AD77: 2754 | AE77: 2818.3 | AF77: 2855.4 | AG77: 0
A78: Mississippi | B78: Mississippi | C78: 396.7 | D78: 371.7 | E78: 356 | F78: 308.9 | G78: 319.6 | H78: 304.2 | I78: 275.8 | J78: 291.3 | K78: 295.4 | L78: 295.1 | M78: 279.4 | N78: 291.5 | O78: 294.9 | P78: 300.2 | Q78: 298.3 | R78: 290.5 | S78: 290.1 | T78: 78.7 | U78: 15.5 | V78: 25.9 | W78: 23.6 | X78: 25.8 | Y78: 26.6 | Z78: 13.8 | AA78: 6.5 | AB78: 5.8 | AC78: 6 | AD78: 6.2 | AE78: 6.8 | AF78: 6.7 | AG78: 0
A79: Missouri | B79: Missouri | C79: 677.4 | D79: 516.9 | E79: 583.8 | F79: 678.3 | G79: 441 | H79: 635.2 | I79: 726.4 | J79: 736.8 | K79: 797 | L79: 811.7 | M79: 787 | N79: 636.4 | O79: 436.4 | P79: 447.3 | Q79: 451.5 | R79: 484.5 | S79: 948.2 | T79: 1500.2 | U79: 1690.8 | V79: 1737.6 | W79: 1697.9 | X79: 1755.5 | Y79: 1765.6 | Z79: 1832.9 | AA79: 1886.7 | AB79: 1951.3 | AC79: 2002.7 | AD79: 2041.5 | AE79: 1995.6 | AF79: 1953.7 | AG79: 0
A80: Montana | B80: Montana | C80: 20.6 | D80: 16.6 | E80: 17.2 | F80: 17.3 | G80: 19.9 | H80: 17.8 | I80: 18.1 | J80: 15.3 | K80: 19.4 | L80: 22.2 | M80: 21.5 | N80: 16.4 | O80: 16.8 | P80: 16 | Q80: 15.5 | R80: 17.4 | S80: 16.2 | T80: 16.2 | U80: 16.6 | V80: 18.4 | W80: 17.5 | X80: 16.1 | Y80: 16.3 | Z80: 16.7 | AA80: 16.6 | AB80: 16.3 | AC80: 17.8 | AD80: 22.6 | AE80: 21.2 | AF80: 21 | AG80: 0
A81: Nebraska | B81: Nebraska | C81: 5048.3 | D81: 5496.2 | E81: 5791.1 | F81: 5714.9 | G81: 5873 | H81: 6005.6 | I81: 6323.8 | J81: 6483.5 | K81: 6710.1 | L81: 6858.2 | M81: 7105.3 | N81: 7161.1 | O81: 7598.9 | P81: 7245.2 | Q81: 6800 | R81: 7047.5 | S81: 7226.8 | T81: 7220.2 | U81: 7392.8 | V81: 7166.2 | W81: 7135.7 | X81: 7163.9 | Y81: 7285.1 | Z81: 7353 | AA81: 7274.4 | AB81: 7475.1 | AC81: 8007.8 | AD81: 8113 | AE81: 8106.4 | AF81: 8289.2 | AG81: 0
A82: Nevada | B82: Nevada | C82: 1.3 | D82: 1.5 | E82: 1.3 | F82: 1.2 | G82: 1.2 | H82: 1.2 | I82: 1.3 | J82: 1.1 | K82: 0.9 | L82: 0.9 | M82: 0.9 | N82: 0.9 | O82: 0.9 | P82: 0.9 | Q82: 1 | R82: 1.1 | S82: 0.8 | T82: 1 | U82: 1.3 | V82: 1.1 | W82: 0.8 | X82: 1.1 | Y82: 0.9 | Z82: 1 | AA82: 1.1 | AB82: 1.2 | AC82: 1.3 | AD82: 1.4 | AE82: 1.4 | AF82: 1.1 | AG82: 0
A83: New Hampshire | B83: New Hampshire | C83: 0 | D83: 0 | E83: 0 | F83: 0 | G83: 0 | H83: 0 | I83: 0 | J83: 0 | K83: 0 | L83: 0 | M83: 0 | N83: 0 | O83: 0 | P83: 0 | Q83: 0 | R83: 0 | S83: 0 | T83: 12.8 | U83: 13.8 | V83: 16.3 | W83: 16.3 | X83: 17.4 | Y83: 18.7 | Z83: 19.6 | AA83: 20.5 | AB83: 22.1 | AC83: 24.4 | AD83: 24.8 | AE83: 25 | AF83: 27.2 | AG83: 0
A84: New Jersey | B84: New Jersey | C84: 29.1 | D84: 31.5 | E84: 32.4 | F84: 30.7 | G84: 30.5 | H84: 35.7 | I84: 42.9 | J84: 51.1 | K84: 54.7 | L84: 54.6 | M84: 56.6 | N84: 59.7 | O84: 60.4 | P84: 53.7 | Q84: 49.7 | R84: 49.1 | S84: 51.9 | T84: 52.7 | U84: 48.1 | V84: 49.6 | W84: 54.3 | X84: 54.8 | Y84: 50.3 | Z84: 50.1 | AA84: 45.2 | AB84: 45.3 | AC84: 35.4 | AD84: 38 | AE84: 39.6 | AF84: 41.5 | AG84: 0
A85: New Mexico | B85: New Mexico | C85: 89.3 | D85: 83.9 | E85: 57.6 | F85: 29.9 | G85: 28 | H85: 20.1 | I85: 20.2 | J85: 13.7 | K85: 11.9 | L85: 13.4 | M85: 9.9 | N85: 9.9 | O85: 10.7 | P85: 12.4 | Q85: 7.9 | R85: 6.7 | S85: 6.1 | T85: 4.9 | U85: 5.7 | V85: 5.2 | W85: 4.8 | X85: 4.6 | Y85: 3.6 | Z85: 3.7 | AA85: 3.5 | AB85: 3.5 | AC85: 3.2 | AD85: 3.2 | AE85: 3.8 | AF85: 3.7 | AG85: 0
A86: New York | B86: New York | C86: 87 | D86: 91.6 | E86: 103 | F86: 82 | G86: 91.2 | H86: 100.1 | I86: 112 | J86: 93.4 | K86: 66.8 | L86: 52.8 | M86: 50.2 | N86: 40.9 | O86: 45 | P86: 45.1 | Q86: 38.2 | R86: 39.4 | S86: 35.1 | T86: 33.6 | U86: 36.7 | V86: 33.8 | W86: 33.1 | X86: 33 | Y86: 32.7 | Z86: 33.8 | AA86: 34.9 | AB86: 36.2 | AC86: 41.4 | AD86: 40.5 | AE86: 39.8 | AF86: 37.6 | AG86: 0
A87: North Carolina | B87: North Carolina | C87: 536.8 | D87: 602.2 | E87: 758.2 | F87: 1122.3 | G87: 1252.3 | H87: 1468 | I87: 1734.1 | J87: 1815 | K87: 1861.1 | L87: 1925.8 | M87: 1936.5 | N87: 1981.9 | O87: 2062.4 | P87: 2200.1 | Q87: 2168 | R87: 2237.4 | S87: 2292.5 | T87: 2334 | U87: 2510.6 | V87: 2559.6 | W87: 2441.4 | X87: 2384.3 | Y87: 2441.9 | Z87: 2508.3 | AA87: 2290.8 | AB87: 2435.6 | AC87: 2494 | AD87: 2572.3 | AE87: 2554.2 | AF87: 2708.1 | AG87: 0
A88: North Dakota | B88: North Dakota | C88: 123.5 | D88: 127.3 | E88: 128.4 | F88: 121.6 | G88: 113.1 | H88: 108.1 | I88: 124.4 | J88: 108.9 | K88: 107 | L88: 30.2 | M88: 27.8 | N88: 34.7 | O88: 35.8 | P88: 32 | Q88: 32.6 | R88: 33.9 | S88: 32.9 | T88: 29.8 | U88: 28.5 | V88: 29.7 | W88: 38.8 | X88: 37.4 | Y88: 14.4 | Z88: 7.9 | AA88: 7.8 | AB88: 7.7 | AC88: 8.2 | AD88: 8.3 | AE88: 7.4 | AF88: 7.4 | AG88: 0
A89: Ohio | B89: Ohio | C89: 624.1 | D89: 643.5 | E89: 670.7 | F89: 618.2 | G89: 400.2 | H89: 351.6 | I89: 326.1 | J89: 311.7 | K89: 340.4 | L89: 336.6 | M89: 315.3 | N89: 297 | O89: 313.4 | P89: 323.6 | Q89: 318.8 | R89: 290.4 | S89: 288.9 | T89: 289.3 | U89: 309.3 | V89: 305.6 | W89: 302.6 | X89: 297 | Y89: 278.7 | Z89: 277.2 | AA89: 269 | AB89: 262.8 | AC89: 266.1 | AD89: 255.8 | AE89: 248 | AF89: 254.2 | AG89: 0
A90: Oklahoma | B90: Oklahoma | C90: 61.1 | D90: 58.3 | E90: 64.5 | F90: 56 | G90: 55.4 | H90: 52.6 | I90: 318.7 | J90: 672.6 | K90: 830.2 | L90: 919.2 | M90: 951.4 | N90: 965.1 | O90: 973 | P90: 985.2 | Q90: 1043.5 | R90: 1068.2 | S90: 1050 | T90: 1036 | U90: 1120.5 | V90: 1135.2 | W90: 1150.6 | X90: 1195.7 | Y90: 1154.4 | Z90: 1148.5 | AA90: 1052 | AB90: 1198.7 | AC90: 1152.9 | AD90: 1149.2 | AE90: 1203.2 | AF90: 1220.1 | AG90: 0
A91: Oregon | B91: Oregon | C91: 61.1 | D91: 47.5 | E91: 46.7 | F91: 48.6 | G91: 34.2 | H91: 37.2 | I91: 40.1 | J91: 41.2 | K91: 41.4 | L91: 43.1 | M91: 45 | N91: 44.8 | O91: 43.4 | P91: 43 | Q91: 41.7 | R91: 43.7 | S91: 50.7 | T91: 56.6 | U91: 57.8 | V91: 57 | W91: 58.7 | X91: 68.8 | Y91: 72.8 | Z91: 79.7 | AA91: 76.5 | AB91: 76.2 | AC91: 71 | AD91: 66.5 | AE91: 51.9 | AF91: 48 | AG91: 0
A92: Pennsylvania | B92: Pennsylvania | C92: 993.4 | D92: 1039.1 | E92: 1073 | F92: 1085.1 | G92: 1103.2 | H92: 1133.5 | I92: 1161.4 | J92: 1123.8 | K92: 1130 | L92: 1193.9 | M92: 1184.9 | N92: 1168.1 | O92: 1252.6 | P92: 1263.8 | Q92: 1166.7 | R92: 1156.7 | S92: 1222.6 | T92: 1288.3 | U92: 1336.9 | V92: 1281.8 | W92: 1284 | X92: 1271.7 | Y92: 1278.7 | Z92: 1246.6 | AA92: 1275.4 | AB92: 1343 | AC92: 1452.5 | AD92: 1461.3 | AE92: 1474.8 | AF92: 1513.3 | AG92: 0
A93: South Carolina | B93: South Carolina | C93: 173.5 | D93: 168.3 | E93: 178.8 | F93: 178.9 | G93: 170.7 | H93: 164.2 | I93: 159.9 | J93: 164.9 | K93: 180.6 | L93: 221.3 | M93: 218.7 | N93: 231.6 | O93: 246.8 | P93: 243.8 | Q93: 246.5 | R93: 241.6 | S93: 248.1 | T93: 254.3 | U93: 251.9 | V93: 235.8 | W93: 243.1 | X93: 245.1 | Y93: 247 | Z93: 233.7 | AA93: 245.7 | AB93: 230.3 | AC93: 158.8 | AD93: 115.9 | AE93: 111.9 | AF93: 146 | AG93: 0
A94: South Dakota | B94: South Dakota | C94: 1239.4 | D94: 1260.4 | E94: 1259 | F94: 1155.6 | G94: 1244.8 | H94: 1278.3 | I94: 1198.6 | J94: 1113.2 | K94: 1030.9 | L94: 996.6 | M94: 973.4 | N94: 1015.2 | O94: 938.8 | P94: 983 | Q94: 985.4 | R94: 1002.9 | S94: 947.5 | T94: 1027.1 | U94: 1030 | V94: 956.5 | W94: 990.2 | X94: 1043.5 | Y94: 1053.8 | Z94: 1072.3 | AA94: 1096.4 | AB94: 1181.8 | AC94: 1312.6 | AD94: 1471.8 | AE94: 1518.5 | AF94: 1553 | AG94: 0
A95: Tennessee | B95: Tennessee | C95: 237.4 | D95: 171.3 | E95: 192.3 | F95: 215.1 | G95: 231.2 | H95: 198.2 | I95: 202.4 | J95: 210.3 | K95: 225 | L95: 232.7 | M95: 233.9 | N95: 226.9 | O95: 227.6 | P95: 232.9 | Q95: 222.1 | R95: 215.6 | S95: 211 | T95: 217.7 | U95: 225.2 | V95: 233.3 | W95: 235.2 | X95: 233.1 | Y95: 238.1 | Z95: 241.4 | AA95: 240.2 | AB95: 255.8 | AC95: 262.1 | AD95: 271.2 | AE95: 258.8 | AF95: 269.9 | AG95: 0
A96: Texas | B96: Texas | C96: 3880.6 | D96: 3928.4 | E96: 3979.4 | F96: 4148.9 | G96: 4335.2 | H96: 4485.4 | I96: 4635 | J96: 4603.8 | K96: 4862.1 | L96: 4910.5 | M96: 4844 | N96: 4780.8 | O96: 4880 | P96: 4843.6 | Q96: 4608.9 | R96: 4686.9 | S96: 4926.9 | T96: 4676.2 | U96: 5167.1 | V96: 5109.6 | W96: 5060.1 | X96: 5143.2 | Y96: 5013.9 | Z96: 4589.1 | AA96: 4180.6 | AB96: 4082.8 | AC96: 4392.4 | AD96: 4516.2 | AE96: 4655.1 | AF96: 4678.9 | AG96: 0
A97: United States | B97: US TOTAL | C97: 38606.2 | D97: 39401.5 | E97: 40796.1 | F97: 40568.3 | G97: 42525.7 | H97: 43517.8 | I97: 43137.6 | J97: 43208.1 | K97: 45133.1 | L97: 46130.3 | M97: 46151.4 | N97: 45664.4 | O97: 47168.9 | P97: 46576 | Q97: 45418 | R97: 45710.5 | S97: 47537.4 | T97: 48683.8 | U97: 50224.6 | V97: 49274.1 | W97: 49039.3 | X97: 49231.7 | Y97: 49439.9 | Z97: 49174 | AA97: 47341.9 | AB97: 48432 | AC97: 50387.9 | AD97: 51991.4 | AE97: 53416.7 | AF97: 55015.3 | AG97: 0
A98: Utah | B98: Utah | C98: 393.7 | D98: 401.9 | E98: 420.9 | F98: 436.1 | G98: 464.1 | H98: 423.9 | I98: 415.7 | J98: 407.8 | K98: 459.5 | L98: 494.9 | M98: 497.2 | N98: 521.4 | O98: 508.7 | P98: 460.2 | Q98: 410.1 | R98: 461.3 | S98: 502 | T98: 475.4 | U98: 520.2 | V98: 440.1 | W98: 455 | X98: 453.7 | Y98: 491.7 | Z98: 477.6 | AA98: 468.5 | AB98: 463.7 | AC98: 494 | AD98: 528.7 | AE98: 562 | AF98: 585.4 | AG98: 0
A99: Virginia | B99: Virginia | C99: 816.2 | D99: 846 | E99: 853.8 | F99: 711.2 | G99: 840.4 | H99: 881.3 | I99: 819.8 | J99: 775.4 | K99: 774.1 | L99: 738.5 | M99: 722.3 | N99: 768.7 | O99: 807.4 | P99: 753.6 | Q99: 758.8 | R99: 658 | S99: 410.6 | T99: 479.6 | U99: 507.7 | V99: 462.1 | W99: 485.6 | X99: 487.4 | Y99: 520 | Z99: 518.6 | AA99: 479.3 | AB99: 500.3 | AC99: 505 | AD99: 520.1 | AE99: 525.6 | AF99: 535.8 | AG99: 0
A100: Washington | B100: Washington | C100: 607.5 | D100: 601.1 | E100: 617 | F100: 604 | G100: 649.8 | H100: 679.8 | I100: 735.5 | J100: 691.2 | K100: 701 | L100: 657.5 | M100: 694 | N100: 671 | O100: 647.9 | P100: 597.9 | Q100: 487.7 | R100: 618 | S100: 756.7 | T100: 881.6 | U100: 815 | V100: 826 | W100: 865.6 | X100: 865.9 | Y100: 897 | Z100: 879.3 | AA100: 866 | AB100: 852.9 | AC100: 912.8 | AD100: 917.6 | AE100: 909.7 | AF100: 964.6 | AG100: 0
A101: West Virginia | B101: West Virginia | C101: 16.1 | D101: 17.4 | E101: 18 | F101: 17.1 | G101: 19.1 | H101: 18.4 | I101: 20.2 | J101: 13.4 | K101: 9.4 | L101: 9.8 | M101: 8.4 | N101: 7.6 | O101: 7.7 | P101: 7.1 | Q101: 7 | R101: 6.2 | S101: 5.9 | T101: 6.7 | U101: 7.3 | V101: 8.4 | W101: 8 | X101: 8.6 | Y101: 7.4 | Z101: 7.3 | AA101: 6.7 | AB101: 6.7 | AC101: 7.3 | AD101: 7.9 | AE101: 8.4 | AF101: 8.2 | AG101: 0
A102: Wisconsin | B102: Wisconsin | C102: 874.2 | D102: 846.3 | E102: 959.3 | F102: 1006 | G102: 992.8 | H102: 1016.5 | I102: 1117 | J102: 1171.1 | K102: 1229.2 | L102: 1308.2 | M102: 1348.1 | N102: 1303.7 | O102: 1355 | P102: 1315.3 | Q102: 1226.9 | R102: 1233.7 | S102: 1335.5 | T102: 1419.4 | U102: 1449 | V102: 1384.5 | W102: 1408.1 | X102: 1397.8 | Y102: 1299.3 | Z102: 1325 | AA102: 1162.4 | AB102: 1021.2 | AC102: 1085.6 | AD102: 1217.4 | AE102: 1217.4 | AF102: 1234.8 | AG102: 0
A103: Wyoming | B103: Wyoming | C103: 4.5 | D103: 4 | E103: 4.3 | F103: 4.6 | G103: 4.9 | H103: 5.6 | I103: 5.5 | J103: 5 | K103: 5.4 | L103: 5.6 | M103: 5 | N103: 4.6 | O103: 5.7 | P103: 6.6 | Q103: 6.9 | R103: 6.5 | S103: 6.2 | T103: 6.1 | U103: 6.2 | V103: 6.5 | W103: 6.1 | X103: 6.3 | Y103: 6 | Z103: 5.4 | AA103: 5.2 | AB103: 4.7 | AC103: 4.7 | AD103: 4.4 | AE103: 4.5 | AF103: 4.3 | AG103: 0
A105: Source: USDA Quick Stats 2.0, Annual Red Meat Production. Available online by state: http://quickstats.nass.usda.gov. Choose Survey, Animals & Products, Livestock, Red Meat, Production, Red Meat Slaughter Commercial Production Measured in LB (Don't choose Total in the Domain), Choose National AND State, Select All States (including US Total), 1990-20XX, Annual, Year, Get Data.

Sheet Data Sources
N1: Municipal WW, CH4
B2: Recommended Data Sources for Wastewater Treatment Activity Data
B6: Methane Emissions from Municipal Wastewater Treatment
C8: - State agencies responsible for handling demographic or census information
C9: - State and local public works agencies (for BOD5 and wastewater characteristics)
B13: Nitrous Oxide Emissions from Municipal Wastewater Treatment (Formerly “Human Sewage”)
C15: - State data, if available
C16: - See Inventory of U.S. Greenhouse Gas Emissions and Sinks (U.S. EPA 2020) Table 7-16, for data on annual per capita protein consumption for the United States
B20: Methane Emissions from Industrial Wastewater Treatment
C22: - Published data on annual production are not readily available.
C24: - Default factors for wastewater outflow, industry-specific COD, and the fraction of industrial wastewater that is anaerobically treated that are used to estimate emissions from industrial wastewater in the Inventory of U.S. Greenhouse Gas Emissions and Sinks (U.S. EPA 2020) are provided in the control sheet.

Sheet Lookups
B1: Select a state . . . | C1: =VLOOKUP(SelectedState,$B$3:$C$55,2,FALSE) -> XX | D1: =VLOOKUP(SelectedState,$B$3:$D$55,3,FALSE) -> 0 | F1: 1 | H1: =VLOOKUP($F$1,$F$3:$H$18,3,FALSE) -> Control
B2: State | C2: StateAbbr. | D2: State ID | G2: SheetList | H2: Sheet.name | J2: VersionNumber | K2: 0
B3: Select a State . . . | C3: XX | D3: 0 | F3: 1 | G3: Control Panel | H3: Control | J3: VersionDate | K3: 2020-10-06
B4: Alabama | C4: AL | D4: 1 | F4: 2 | G4: Domestic - Methane Emissions | H4: Dom WW
B5: Alaska | C5: AK | D5: 2 | F5: 3 | G5: Domestic - Nitrous Oxide Emissions | H5: Human Sewage
B6: Arizona | C6: AZ | D6: 3 | F6: 4 | G6: Industrial - Fruits and Vegetables (Methane) | H6: Ind WW Fruit
B7: Arkansas | C7: AR | D7: 4 | F7: 5 | G7: Industrial - Red Meat and Poultry (Methane) | H7: Ind WW Meat
B8: California | C8: CA | D8: 5 | F8: 6 | G8: Industrial - Pulp and Paper (Methane) | H8: Ind WW P&P
B9: Colorado | C9: CO | D9: 6 | F9: 7 | G9: Summary | H9: Summary
B10: Connecticut | C10: CT | D10: 7 | F10: 8
B11: Delaware | C11: DE | D11: 8 | F11: 9
B12: District of Columbia | C12: DC | D12: 9 | F12: 10
B13: Florida | C13: FL | D13: 10 | F13: 11
B14: Georgia | C14: GA | D14: 11 | F14: 12
B15: Hawaii | C15: HI | D15: 12 | F15: 13
B16: Idaho | C16: ID | D16: 13 | F16: 14
B17: Illinois | C17: IL | D17: 14 | F17: 15
B18: Indiana | C18: IN | D18: 15 | F18: 16
B19: Iowa | C19: IA | D19: 16
B20: Kansas | C20: KS | D20: 17 | F20: Conversions
B21: Kentucky | C21: KY | D21: 18 | F21: C_CO2 | G21: =44/12 -> 3.666666667
B22: Louisiana | C22: LA | D22: 19
B23: Maine | C23: ME | D23: 20
B24: Maryland | C24: MD | D24: 21
B25: Massachusetts | C25: MA | D25: 22
B26: Michigan | C26: MI | D26: 23
B27: Minnesota | C27: MN | D27: 24
B28: Mississippi | C28: MS | D28: 25
B29: Missouri | C29: MO | D29: 26
B30: Montana | C30: MT | D30: 27
B31: Nebraska | C31: NE | D31: 28
B32: Nevada | C32: NV | D32: 29
B33: New Hampshire | C33: NH | D33: 30
B34: New Jersey | C34: NJ | D34: 31
B35: New Mexico | C35: NM | D35: 32
B36: New York | C36: NY | D36: 33
B37: North Carolina | C37: NC | D37: 34
B38: North Dakota | C38: ND | D38: 35
B39: Ohio | C39: OH | D39: 36
B40: Oklahoma | C40: OK | D40: 37
B41: Oregon | C41: OR | D41: 38
B42: Pennsylvania | C42: PA | D42: 39
B43: Rhode Island | C43: RI | D43: 40
B44: South Carolina | C44: SC | D44: 41
B45: South Dakota | C45: SD | D45: 42
B46: Tennessee | C46: TN | D46: 43
B47: Texas | C47: TX | D47: 44
B48: Utah | C48: UT | D48: 45
B49: Vermont | C49: VT | D49: 46
B50: Virginia | C50: VA | D50: 47
B51: Washington | C51: WA | D51: 48
B52: West Virginia | C52: WV | D52: 49
B53: Wisconsin | C53: WI | D53: 50
B54: Wyoming | C54: WY | D54: 51
B55: United States | C55: US | D55: 52

Sheet Notes
Z1: Control
Z2: $E$12
A3: Notes and Comments
A4: Use this sheet to keep a record of data sources, edits, or any other useful notes about the use of this tool.
